{"text_format":"3","workbook":"xlsx","n_sheets":2,"sheets":["Gantt","Over"],"not_rendered":{"defined_names":5},"read":"whole","date_system":"1900"}

{"sheet":"Gantt","index":0,"n_rows":33,"n_cols":63,"rows_kept":33,"merged":[[1,2,1,3],[1,4,1,5],[2,2,2,3],[3,2,3,3]]}
["Maak in dit werkblad een Gantt-diagram.\nVoer in cel B1 de titel van dit project in. \nInformatie over hoe u dit werkblad gebruikt, waaronder instructies voor schermlezers en over de auteur van deze werkmap, staat op het werkblad Over.\nNavigeer verder omlaag in kolom A voor verdere instructies.","PROJECTTITEL"]
["Voer in cel B2 de bedrijfsnaam in.\nVoer in cel E2 de Begindatum project in of laat de voorbeeldformule de kleinste datumwaarde vinden in de tabel Gantt-gegevens. Het label Begindatum project staat in cel C2.","Bedrijfsnaam","Begindatum project:",null,{"$f":"IFERROR(IF(MIN(Mijlpalen[Begin])=0,TODAY(),MIN(Mijlpalen[Begin])),TODAY())","v":"2018-09-16"}]
["Voer in cel B3 de naam van de projectleider in. \nIn cel E3 staat een scrolverhoging. De schuifbalk staat in de cellen H3 t/m M3. Als u de scrolverhoging verhoogt of de schuifbalk gebruikt, wordt de tijdlijn van het Gantt-diagram verhoogt. \nAls u in cel E3 de waarde 0 invoert, wordt de grafiek opnieuw ingesteld op het begin van het project.","Projectleider","Scrolverhoging:",null,0]
["Als u het standaardtype mijlpaalmarkering wilt wijzigen, voert u in cel E5 de waarde 0, 1 of 2 in. De bijbehorende markering verschijnt dan in cel F5. Als u de markeringen wilt veranderen, wijzigt u de voorwaardelijke opmaak voor die cel en de tabel eronder.\nMaanden voor de datums in rij 5 worden in de cellen H4 t/m BK4 weergegeven.\nWijzig deze cellen niet. Ze worden automatisch bijgewerkt op basis van de begindatum project en de scrolverhoging.\nHet label Scrolverhoging staat in cel C4.",null,"Mijlpaalmarkering:",null,1,{"$f":"Milestone_Markering","v":1},null,{"$f":"TEXT(H5,\"mmmm\")","v":"September"},{"$nulls":6},{"$f":"IF(TEXT(O5,\"mmmm\")=H4,\"\",TEXT(O5,\"mmmm\"))","v":""},{"$nulls":6},{"$f":"IF(OR(TEXT(V5,\"mmmm\")=O4,TEXT(V5,\"mmmm\")=H4),\"\",TEXT(V5,\"mmmm\"))","v":""},{"$nulls":6},{"$f":"IF(OR(TEXT(AC5,\"mmmm\")=V4,TEXT(AC5,\"mmmm\")=O4,TEXT(AC5,\"mmmm\")=H4),\"\",TEXT(AC5,\"mmmm\"))","v":"October"},{"$nulls":6},{"$f":"IF(OR(TEXT(AJ5,\"mmmm\")=AC4,TEXT(AJ5,\"mmmm\")=V4,TEXT(AJ5,\"mmmm\")=O4,TEXT(AJ5,\"mmmm\")=H4),\"\",TEXT(AJ5,\"mmmm\"))","v":""},{"$nulls":6},{"$f":"IF(OR(TEXT(AQ5,\"mmmm\")=AJ4,TEXT(AQ5,\"mmmm\")=AC4,TEXT(AQ5,\"mmmm\")=V4,TEXT(AQ5,\"mmmm\")=O4),\"\",TEXT(AQ5,\"mmmm\"))","v":""},{"$nulls":6},{"$f":"IF(OR(TEXT(AX5,\"mmmm\")=AQ4,TEXT(AX5,\"mmmm\")=AJ4,TEXT(AX5,\"mmmm\")=AC4,TEXT(AX5,\"mmmm\")=V4),\"\",TEXT(AX5,\"mmmm\"))","v":""},{"$nulls":6},{"$f":"IF(OR(TEXT(BE5,\"mmmm\")=AX4,TEXT(BE5,\"mmmm\")=AQ4,TEXT(BE5,\"mmmm\")=AJ4,TEXT(BE5,\"mmmm\")=AC4),\"\",TEXT(BE5,\"mmmm\"))","v":"November"}]
["De cellen H5 t/m BK5 bevatten het dagnummer van de maand voor de Maand die wordt weergegeven in het celblok boven elke datumcel, en worden automatisch berekend.\nWijzig deze cellen niet.\nDatums tot aan Vandaag zijn gearceerd.",{"$nulls":6},{"$f":"IFERROR(Project_Start+Scrolverhoging,TODAY())","v":"2018-09-16"},{"$f":"H5+1","v":"2018-09-17"},{"$f":"I5+1","v":"2018-09-18"},{"$f":"J5+1","v":"2018-09-19"},"2018-09-20","2018-09-21","2018-09-22",{"$f":"N5+1","v":"2018-09-23"},{"$f":"O5+1","v":"2018-09-24"},"2018-09-25","2018-09-26","2018-09-27","2018-09-28","2018-09-29",{"$f":"U5+1","v":"2018-09-30"},{"$f":"V5+1","v":"2018-10-01"},"2018-10-02","2018-10-03","2018-10-04","2018-10-05","2018-10-06",{"$f":"AB5+1","v":"2018-10-07"},{"$f":"AC5+1","v":"2018-10-08"},"2018-10-09","2018-10-10","2018-10-11","2018-10-12","2018-10-13",{"$f":"AI5+1","v":"2018-10-14"},{"$f":"AJ5+1","v":"2018-10-15"},"2018-10-16","2018-10-17","2018-10-18","2018-10-19","2018-10-20",{"$f":"AP5+1","v":"2018-10-21"},{"$f":"AQ5+1","v":"2018-10-22"},"2018-10-23","2018-10-24","2018-10-25","2018-10-26","2018-10-27",{"$f":"AW5+1","v":"2018-10-28"},{"$f":"AX5+1","v":"2018-10-29"},{"$f":"AY5+1","v":"2018-10-30"},"2018-10-31","2018-11-01","2018-11-02","2018-11-03",{"$f":"BD5+1","v":"2018-11-04"},{"$f":"BE5+1","v":"2018-11-05"},{"$f":"BF5+1","v":"2018-11-06"},"2018-11-07","2018-11-08","2018-11-09","2018-11-10"]
["Deze rij bevat kopteksten voor de projectplanning die eronder staat. \nNavigeer van B7 t/m BK7 om de inhoud te horen. De eerste letter van elke dag van de week voor de datum boven die kop begint in cel H7 en gaat verder tot en met cel BK7.\nAlle projecttijdlijnen worden automatisch op de grafiek geplaatst op basis van de categorie, de begindatum en het aantal dagen die zijn ingevoerd in de tabel Mijlpalen.\nFormules in deze cellen helpen het uiterlijk van het Gantt-diagram te bepalen. Wijzig deze cellen niet.","Mijlpaalbeschrijving","Toegewezen aan","Voortgang","Begin","Aantal dagen",null,{"$f":"LEFT(TEXT(H5,\"ddd\"),1)","v":"S"},{"$f":"LEFT(TEXT(I5,\"ddd\"),1)","v":"M"},{"$f":"LEFT(TEXT(J5,\"ddd\"),1)","v":"T"},{"$f":"LEFT(TEXT(K5,\"ddd\"),1)","v":"W"},"T","F","S","S","M","T","W","T","F","S","S","M","T","W","T","F","S","S","M","T","W","T","F","S","S","M","T","W",{"$f":"LEFT(TEXT(AN5,\"ddd\"),1)","v":"T"},"F","S","S","M","T","W","T","F","S","S","M","T","W","T","F","S","S","M","T","W","T","F","S"]
["Verwijder deze rij niet. Deze rij is verborgen om een formule te handhaven die wordt gebruikt om de huidige dag in de projectplanning te markeren. "]
["Voer in de cellen B8 t/m F8 projectgegevens in. \nVoorbeeldgegevens staan in de cellen B8 t/m G32.\nVoer een beschrijving van de mijlpaal in, wijs iemand aan het item toe, voer de voortgang van de taak als een voltooiingspercentage in, voer een begindatum in en voer een taakduur in dagen in.\nHet Gantt-diagram wordt automatisch bijgewerkt terwijl de gegevens worden ingevoerd.\nDe volgende aanwijzing staat in cel A33.","Titel 1",{"$nulls":5},{"$f":"IFERROR(IF(LEN(Mijlpalen[[#This Row],[Aantal dagen]])=0,\"\",IF(AND(H$5=$E8,$F8=1),Milestone_Markering,\"\")),\"\")","v":""},{"$f":"IFERROR(IF(LEN(Mijlpalen[[#This Row],[Aantal dagen]])=0,\"\",IF(AND(I$5=$E8,$F8=1),Milestone_Markering,\"\")),\"\")","v":""},{"$f":"IFERROR(IF(LEN(Mijlpalen[[#This Row],[Aantal dagen]])=0,\"\",IF(AND(J$5=$E8,$F8=1),Milestone_Markering,\"\")),\"\")","v":""},{"$f":"IFERROR(IF(LEN(Mijlpalen[[#This Row],[Aantal dagen]])=0,\"\",IF(AND(K$5=$E8,$F8=1),Milestone_Markering,\"\")),\"\")","v":""},{"$f":"IFERROR(IF(LEN(Mijlpalen[[#This Row],[Aantal dagen]])=0,\"\",IF(AND(L$5=$E8,$F8=1),Milestone_Markering,\"\")),\"\")","v":""},{"$f":"IFERROR(IF(LEN(Mijlpalen[[#This Row],[Aantal dagen]])=0,\"\",IF(AND(M$5=$E8,$F8=1),Milestone_Markering,\"\")),\"\")","v":""},{"$f":"IFERROR(IF(LEN(Mijlpalen[[#This Row],[Aantal dagen]])=0,\"\",IF(AND(N$5=$E8,$F8=1),Milestone_Markering,\"\")),\"\")","v":""},{"$f":"IFERROR(IF(LEN(Mijlpalen[[#This Row],[Aantal dagen]])=0,\"\",IF(AND(O$5=$E8,$F8=1),Milestone_Markering,\"\")),\"\")","v":""},{"$f":"IFERROR(IF(LEN(Mijlpalen[[#This Row],[Aantal dagen]])=0,\"\",IF(AND(P$5=$E8,$F8=1),Milestone_Markering,\"\")),\"\")","v":""},{"$f":"IFERROR(IF(LEN(Mijlpalen[[#This Row],[Aantal dagen]])=0,\"\",IF(AND(Q$5=$E8,$F8=1),Milestone_Markering,\"\")),\"\")","v":""},{"$f":"IFERROR(IF(LEN(Mijlpalen[[#This Row],[Aantal dagen]])=0,\"\",IF(AND(R$5=$E8,$F8=1),Milestone_Markering,\"\")),\"\")","v":""},{"$f":"IFERROR(IF(LEN(Mijlpalen[[#This Row],[Aantal dagen]])=0,\"\",IF(AND(S$5=$E8,$F8=1),Milestone_Markering,\"\")),\"\")","v":""},{"$f":"IFERROR(IF(LEN(Mijlpalen[[#This Row],[Aantal dagen]])=0,\"\",IF(AND(T$5=$E8,$F8=1),Milestone_Markering,\"\")),\"\")","v":""},{"$f":"IFERROR(IF(LEN(Mijlpalen[[#This Row],[Aantal dagen]])=0,\"\",IF(AND(U$5=$E8,$F8=1),Milestone_Markering,\"\")),\"\")","v":""},{"$f":"IFERROR(IF(LEN(Mijlpalen[[#This Row],[Aantal dagen]])=0,\"\",IF(AND(V$5=$E8,$F8=1),Milestone_Markering,\"\")),\"\")","v":""},{"$f":"IFERROR(IF(LEN(Mijlpalen[[#This Row],[Aantal dagen]])=0,\"\",IF(AND(W$5=$E8,$F8=1),Milestone_Markering,\"\")),\"\")","v":""},{"$f":"IFERROR(IF(LEN(Mijlpalen[[#This Row],[Aantal dagen]])=0,\"\",IF(AND(X$5=$E8,$F8=1),Milestone_Markering,\"\")),\"\")","v":""},{"$f":"IFERROR(IF(LEN(Mijlpalen[[#This Row],[Aantal dagen]])=0,\"\",IF(AND(Y$5=$E8,$F8=1),Milestone_Markering,\"\")),\"\")","v":""},{"$f":"IFERROR(IF(LEN(Mijlpalen[[#This Row],[Aantal dagen]])=0,\"\",IF(AND(Z$5=$E8,$F8=1),Milestone_Markering,\"\")),\"\")","v":""},{"$f":"IFERROR(IF(LEN(Mijlpalen[[#This Row],[Aantal dagen]])=0,\"\",IF(AND(AA$5=$E8,$F8=1),Milestone_Markering,\"\")),\"\")","v":""},{"$f":"IFERROR(IF(LEN(Mijlpalen[[#This Row],[Aantal dagen]])=0,\"\",IF(AND(AB$5=$E8,$F8=1),Milestone_Markering,\"\")),\"\")","v":""},{"$f":"IFERROR(IF(LEN(Mijlpalen[[#This Row],[Aantal dagen]])=0,\"\",IF(AND(AC$5=$E8,$F8=1),Milestone_Markering,\"\")),\"\")","v":""},{"$f":"IFERROR(IF(LEN(Mijlpalen[[#This Row],[Aantal dagen]])=0,\"\",IF(AND(AD$5=$E8,$F8=1),Milestone_Markering,\"\")),\"\")","v":""},{"$f":"IFERROR(IF(LEN(Mijlpalen[[#This Row],[Aantal dagen]])=0,\"\",IF(AND(AE$5=$E8,$F8=1),Milestone_Markering,\"\")),\"\")","v":""},{"$f":"IFERROR(IF(LEN(Mijlpalen[[#This Row],[Aantal dagen]])=0,\"\",IF(AND(AF$5=$E8,$F8=1),Milestone_Markering,\"\")),\"\")","v":""},{"$f":"IFERROR(IF(LEN(Mijlpalen[[#This Row],[Aantal dagen]])=0,\"\",IF(AND(AG$5=$E8,$F8=1),Milestone_Markering,\"\")),\"\")","v":""},{"$f":"IFERROR(IF(LEN(Mijlpalen[[#This Row],[Aantal dagen]])=0,\"\",IF(AND(AH$5=$E8,$F8=1),Milestone_Markering,\"\")),\"\")","v":""},{"$f":"IFERROR(IF(LEN(Mijlpalen[[#This Row],[Aantal dagen]])=0,\"\",IF(AND(AI$5=$E8,$F8=1),Milestone_Markering,\"\")),\"\")","v":""},{"$f":"IFERROR(IF(LEN(Mijlpalen[[#This Row],[Aantal dagen]])=0,\"\",IF(AND(AJ$5=$E8,$F8=1),Milestone_Markering,\"\")),\"\")","v":""},{"$f":"IFERROR(IF(LEN(Mijlpalen[[#This Row],[Aantal dagen]])=0,\"\",IF(AND(AK$5=$E8,$F8=1),Milestone_Markering,\"\")),\"\")","v":""},{"$f":"IFERROR(IF(LEN(Mijlpalen[[#This Row],[Aantal dagen]])=0,\"\",IF(AND(AL$5=$E8,$F8=1),Milestone_Markering,\"\")),\"\")","v":""},{"$f":"IFERROR(IF(LEN(Mijlpalen[[#This Row],[Aantal dagen]])=0,\"\",IF(AND(AM$5=$E8,$F8=1),Milestone_Markering,\"\")),\"\")","v":""},{"$f":"IFERROR(IF(LEN(Mijlpalen[[#This Row],[Aantal dagen]])=0,\"\",IF(AND(AN$5=$E8,$F8=1),Milestone_Markering,\"\")),\"\")","v":""},{"$f":"IFERROR(IF(LEN(Mijlpalen[[#This Row],[Aantal dagen]])=0,\"\",IF(AND(AO$5=$E8,$F8=1),Milestone_Markering,\"\")),\"\")","v":""},{"$f":"IFERROR(IF(LEN(Mijlpalen[[#This Row],[Aantal dagen]])=0,\"\",IF(AND(AP$5=$E8,$F8=1),Milestone_Markering,\"\")),\"\")","v":""},{"$f":"IFERROR(IF(LEN(Mijlpalen[[#This Row],[Aantal dagen]])=0,\"\",IF(AND(AQ$5=$E8,$F8=1),Milestone_Markering,\"\")),\"\")","v":""},{"$f":"IFERROR(IF(LEN(Mijlpalen[[#This Row],[Aantal dagen]])=0,\"\",IF(AND(AR$5=$E8,$F8=1),Milestone_Markering,\"\")),\"\")","v":""},{"$f":"IFERROR(IF(LEN(Mijlpalen[[#This Row],[Aantal dagen]])=0,\"\",IF(AND(AS$5=$E8,$F8=1),Milestone_Markering,\"\")),\"\")","v":""},{"$f":"IFERROR(IF(LEN(Mijlpalen[[#This Row],[Aantal dagen]])=0,\"\",IF(AND(AT$5=$E8,$F8=1),Milestone_Markering,\"\")),\"\")","v":""},{"$f":"IFERROR(IF(LEN(Mijlpalen[[#This Row],[Aantal dagen]])=0,\"\",IF(AND(AU$5=$E8,$F8=1),Milestone_Markering,\"\")),\"\")","v":""},{"$f":"IFERROR(IF(LEN(Mijlpalen[[#This Row],[Aantal dagen]])=0,\"\",IF(AND(AV$5=$E8,$F8=1),Milestone_Markering,\"\")),\"\")","v":""},{"$f":"IFERROR(IF(LEN(Mijlpalen[[#This Row],[Aantal dagen]])=0,\"\",IF(AND(AW$5=$E8,$F8=1),Milestone_Markering,\"\")),\"\")","v":""},{"$f":"IFERROR(IF(LEN(Mijlpalen[[#This Row],[Aantal dagen]])=0,\"\",IF(AND(AX$5=$E8,$F8=1),Milestone_Markering,\"\")),\"\")","v":""},{"$f":"IFERROR(IF(LEN(Mijlpalen[[#This Row],[Aantal dagen]])=0,\"\",IF(AND(AY$5=$E8,$F8=1),Milestone_Markering,\"\")),\"\")","v":""},{"$f":"IFERROR(IF(LEN(Mijlpalen[[#This Row],[Aantal dagen]])=0,\"\",IF(AND(AZ$5=$E8,$F8=1),Milestone_Markering,\"\")),\"\")","v":""},{"$f":"IFERROR(IF(LEN(Mijlpalen[[#This Row],[Aantal dagen]])=0,\"\",IF(AND(BA$5=$E8,$F8=1),Milestone_Markering,\"\")),\"\")","v":""},{"$f":"IFERROR(IF(LEN(Mijlpalen[[#This Row],[Aantal dagen]])=0,\"\",IF(AND(BB$5=$E8,$F8=1),Milestone_Markering,\"\")),\"\")","v":""},{"$f":"IFERROR(IF(LEN(Mijlpalen[[#This Row],[Aantal dagen]])=0,\"\",IF(AND(BC$5=$E8,$F8=1),Milestone_Markering,\"\")),\"\")","v":""},{"$f":"IFERROR(IF(LEN(Mijlpalen[[#This Row],[Aantal dagen]])=0,\"\",IF(AND(BD$5=$E8,$F8=1),Milestone_Markering,\"\")),\"\")","v":""},{"$f":"IFERROR(IF(LEN(Mijlpalen[[#This Row],[Aantal dagen]])=0,\"\",IF(AND(BE$5=$E8,$F8=1),Milestone_Markering,\"\")),\"\")","v":""},{"$f":"IFERROR(IF(LEN(Mijlpalen[[#This Row],[Aantal dagen]])=0,\"\",IF(AND(BF$5=$E8,$F8=1),Milestone_Markering,\"\")),\"\")","v":""},{"$f":"IFERROR(IF(LEN(Mijlpalen[[#This Row],[Aantal dagen]])=0,\"\",IF(AND(BG$5=$E8,$F8=1),Milestone_Markering,\"\")),\"\")","v":""},{"$f":"IFERROR(IF(LEN(Mijlpalen[[#This Row],[Aantal dagen]])=0,\"\",IF(AND(BH$5=$E8,$F8=1),Milestone_Markering,\"\")),\"\")","v":""},{"$f":"IFERROR(IF(LEN(Mijlpalen[[#This Row],[Aantal dagen]])=0,\"\",IF(AND(BI$5=$E8,$F8=1),Milestone_Markering,\"\")),\"\")","v":""},{"$f":"IFERROR(IF(LEN(Mijlpalen[[#This Row],[Aantal dagen]])=0,\"\",IF(AND(BJ$5=$E8,$F8=1),Milestone_Markering,\"\")),\"\")","v":""},{"$f":"IFERROR(IF(LEN(Mijlpalen[[#This Row],[Aantal dagen]])=0,\"\",IF(AND(BK$5=$E8,$F8=1),Milestone_Markering,\"\")),\"\")","v":""}]
[null,"Taak 1","Naam",{"v":0.25,"d":"25%"},{"$f":"TODAY()","v":"2018-09-19"},3,null,{"$f":"IFERROR(IF(LEN(Mijlpalen[[#This Row],[Aantal dagen]])=0,\"\",IF(AND(H$5=$E9,$F9=1),Milestone_Markering,\"\")),\"\")","v":""},{"$f":"IFERROR(IF(LEN(Mijlpalen[[#This Row],[Aantal dagen]])=0,\"\",IF(AND(I$5=$E9,$F9=1),Milestone_Markering,\"\")),\"\")","v":""},{"$f":"IFERROR(IF(LEN(Mijlpalen[[#This Row],[Aantal dagen]])=0,\"\",IF(AND(J$5=$E9,$F9=1),Milestone_Markering,\"\")),\"\")","v":""},{"$f":"IFERROR(IF(LEN(Mijlpalen[[#This Row],[Aantal dagen]])=0,\"\",IF(AND(K$5=$E9,$F9=1),Milestone_Markering,\"\")),\"\")","v":""},{"$f":"IFERROR(IF(LEN(Mijlpalen[[#This Row],[Aantal dagen]])=0,\"\",IF(AND(L$5=$E9,$F9=1),Milestone_Markering,\"\")),\"\")","v":""},{"$f":"IFERROR(IF(LEN(Mijlpalen[[#This Row],[Aantal dagen]])=0,\"\",IF(AND(M$5=$E9,$F9=1),Milestone_Markering,\"\")),\"\")","v":""},{"$f":"IFERROR(IF(LEN(Mijlpalen[[#This Row],[Aantal dagen]])=0,\"\",IF(AND(N$5=$E9,$F9=1),Milestone_Markering,\"\")),\"\")","v":""},{"$f":"IFERROR(IF(LEN(Mijlpalen[[#This Row],[Aantal dagen]])=0,\"\",IF(AND(O$5=$E9,$F9=1),Milestone_Markering,\"\")),\"\")","v":""},{"$f":"IFERROR(IF(LEN(Mijlpalen[[#This Row],[Aantal dagen]])=0,\"\",IF(AND(P$5=$E9,$F9=1),Milestone_Markering,\"\")),\"\")","v":""},{"$f":"IFERROR(IF(LEN(Mijlpalen[[#This Row],[Aantal dagen]])=0,\"\",IF(AND(Q$5=$E9,$F9=1),Milestone_Markering,\"\")),\"\")","v":""},{"$f":"IFERROR(IF(LEN(Mijlpalen[[#This Row],[Aantal dagen]])=0,\"\",IF(AND(R$5=$E9,$F9=1),Milestone_Markering,\"\")),\"\")","v":""},{"$f":"IFERROR(IF(LEN(Mijlpalen[[#This Row],[Aantal dagen]])=0,\"\",IF(AND(S$5=$E9,$F9=1),Milestone_Markering,\"\")),\"\")","v":""},{"$f":"IFERROR(IF(LEN(Mijlpalen[[#This Row],[Aantal dagen]])=0,\"\",IF(AND(T$5=$E9,$F9=1),Milestone_Markering,\"\")),\"\")","v":""},{"$f":"IFERROR(IF(LEN(Mijlpalen[[#This Row],[Aantal dagen]])=0,\"\",IF(AND(U$5=$E9,$F9=1),Milestone_Markering,\"\")),\"\")","v":""},{"$f":"IFERROR(IF(LEN(Mijlpalen[[#This Row],[Aantal dagen]])=0,\"\",IF(AND(V$5=$E9,$F9=1),Milestone_Markering,\"\")),\"\")","v":""},{"$f":"IFERROR(IF(LEN(Mijlpalen[[#This Row],[Aantal dagen]])=0,\"\",IF(AND(W$5=$E9,$F9=1),Milestone_Markering,\"\")),\"\")","v":""},{"$f":"IFERROR(IF(LEN(Mijlpalen[[#This Row],[Aantal dagen]])=0,\"\",IF(AND(X$5=$E9,$F9=1),Milestone_Markering,\"\")),\"\")","v":""},{"$f":"IFERROR(IF(LEN(Mijlpalen[[#This Row],[Aantal dagen]])=0,\"\",IF(AND(Y$5=$E9,$F9=1),Milestone_Markering,\"\")),\"\")","v":""},{"$f":"IFERROR(IF(LEN(Mijlpalen[[#This Row],[Aantal dagen]])=0,\"\",IF(AND(Z$5=$E9,$F9=1),Milestone_Markering,\"\")),\"\")","v":""},{"$f":"IFERROR(IF(LEN(Mijlpalen[[#This Row],[Aantal dagen]])=0,\"\",IF(AND(AA$5=$E9,$F9=1),Milestone_Markering,\"\")),\"\")","v":""},{"$f":"IFERROR(IF(LEN(Mijlpalen[[#This Row],[Aantal dagen]])=0,\"\",IF(AND(AB$5=$E9,$F9=1),Milestone_Markering,\"\")),\"\")","v":""},{"$f":"IFERROR(IF(LEN(Mijlpalen[[#This Row],[Aantal dagen]])=0,\"\",IF(AND(AC$5=$E9,$F9=1),Milestone_Markering,\"\")),\"\")","v":""},{"$f":"IFERROR(IF(LEN(Mijlpalen[[#This Row],[Aantal dagen]])=0,\"\",IF(AND(AD$5=$E9,$F9=1),Milestone_Markering,\"\")),\"\")","v":""},{"$f":"IFERROR(IF(LEN(Mijlpalen[[#This Row],[Aantal dagen]])=0,\"\",IF(AND(AE$5=$E9,$F9=1),Milestone_Markering,\"\")),\"\")","v":""},{"$f":"IFERROR(IF(LEN(Mijlpalen[[#This Row],[Aantal dagen]])=0,\"\",IF(AND(AF$5=$E9,$F9=1),Milestone_Markering,\"\")),\"\")","v":""},{"$f":"IFERROR(IF(LEN(Mijlpalen[[#This Row],[Aantal dagen]])=0,\"\",IF(AND(AG$5=$E9,$F9=1),Milestone_Markering,\"\")),\"\")","v":""},{"$f":"IFERROR(IF(LEN(Mijlpalen[[#This Row],[Aantal dagen]])=0,\"\",IF(AND(AH$5=$E9,$F9=1),Milestone_Markering,\"\")),\"\")","v":""},{"$f":"IFERROR(IF(LEN(Mijlpalen[[#This Row],[Aantal dagen]])=0,\"\",IF(AND(AI$5=$E9,$F9=1),Milestone_Markering,\"\")),\"\")","v":""},{"$f":"IFERROR(IF(LEN(Mijlpalen[[#This Row],[Aantal dagen]])=0,\"\",IF(AND(AJ$5=$E9,$F9=1),Milestone_Markering,\"\")),\"\")","v":""},{"$f":"IFERROR(IF(LEN(Mijlpalen[[#This Row],[Aantal dagen]])=0,\"\",IF(AND(AK$5=$E9,$F9=1),Milestone_Markering,\"\")),\"\")","v":""},{"$f":"IFERROR(IF(LEN(Mijlpalen[[#This Row],[Aantal dagen]])=0,\"\",IF(AND(AL$5=$E9,$F9=1),Milestone_Markering,\"\")),\"\")","v":""},{"$f":"IFERROR(IF(LEN(Mijlpalen[[#This Row],[Aantal dagen]])=0,\"\",IF(AND(AM$5=$E9,$F9=1),Milestone_Markering,\"\")),\"\")","v":""},{"$f":"IFERROR(IF(LEN(Mijlpalen[[#This Row],[Aantal dagen]])=0,\"\",IF(AND(AN$5=$E9,$F9=1),Milestone_Markering,\"\")),\"\")","v":""},{"$f":"IFERROR(IF(LEN(Mijlpalen[[#This Row],[Aantal dagen]])=0,\"\",IF(AND(AO$5=$E9,$F9=1),Milestone_Markering,\"\")),\"\")","v":""},{"$f":"IFERROR(IF(LEN(Mijlpalen[[#This Row],[Aantal dagen]])=0,\"\",IF(AND(AP$5=$E9,$F9=1),Milestone_Markering,\"\")),\"\")","v":""},{"$f":"IFERROR(IF(LEN(Mijlpalen[[#This Row],[Aantal dagen]])=0,\"\",IF(AND(AQ$5=$E9,$F9=1),Milestone_Markering,\"\")),\"\")","v":""},{"$f":"IFERROR(IF(LEN(Mijlpalen[[#This Row],[Aantal dagen]])=0,\"\",IF(AND(AR$5=$E9,$F9=1),Milestone_Markering,\"\")),\"\")","v":""},{"$f":"IFERROR(IF(LEN(Mijlpalen[[#This Row],[Aantal dagen]])=0,\"\",IF(AND(AS$5=$E9,$F9=1),Milestone_Markering,\"\")),\"\")","v":""},{"$f":"IFERROR(IF(LEN(Mijlpalen[[#This Row],[Aantal dagen]])=0,\"\",IF(AND(AT$5=$E9,$F9=1),Milestone_Markering,\"\")),\"\")","v":""},{"$f":"IFERROR(IF(LEN(Mijlpalen[[#This Row],[Aantal dagen]])=0,\"\",IF(AND(AU$5=$E9,$F9=1),Milestone_Markering,\"\")),\"\")","v":""},{"$f":"IFERROR(IF(LEN(Mijlpalen[[#This Row],[Aantal dagen]])=0,\"\",IF(AND(AV$5=$E9,$F9=1),Milestone_Markering,\"\")),\"\")","v":""},{"$f":"IFERROR(IF(LEN(Mijlpalen[[#This Row],[Aantal dagen]])=0,\"\",IF(AND(AW$5=$E9,$F9=1),Milestone_Markering,\"\")),\"\")","v":""},{"$f":"IFERROR(IF(LEN(Mijlpalen[[#This Row],[Aantal dagen]])=0,\"\",IF(AND(AX$5=$E9,$F9=1),Milestone_Markering,\"\")),\"\")","v":""},{"$f":"IFERROR(IF(LEN(Mijlpalen[[#This Row],[Aantal dagen]])=0,\"\",IF(AND(AY$5=$E9,$F9=1),Milestone_Markering,\"\")),\"\")","v":""},{"$f":"IFERROR(IF(LEN(Mijlpalen[[#This Row],[Aantal dagen]])=0,\"\",IF(AND(AZ$5=$E9,$F9=1),Milestone_Markering,\"\")),\"\")","v":""},{"$f":"IFERROR(IF(LEN(Mijlpalen[[#This Row],[Aantal dagen]])=0,\"\",IF(AND(BA$5=$E9,$F9=1),Milestone_Markering,\"\")),\"\")","v":""},{"$f":"IFERROR(IF(LEN(Mijlpalen[[#This Row],[Aantal dagen]])=0,\"\",IF(AND(BB$5=$E9,$F9=1),Milestone_Markering,\"\")),\"\")","v":""},{"$f":"IFERROR(IF(LEN(Mijlpalen[[#This Row],[Aantal dagen]])=0,\"\",IF(AND(BC$5=$E9,$F9=1),Milestone_Markering,\"\")),\"\")","v":""},{"$f":"IFERROR(IF(LEN(Mijlpalen[[#This Row],[Aantal dagen]])=0,\"\",IF(AND(BD$5=$E9,$F9=1),Milestone_Markering,\"\")),\"\")","v":""},{"$f":"IFERROR(IF(LEN(Mijlpalen[[#This Row],[Aantal dagen]])=0,\"\",IF(AND(BE$5=$E9,$F9=1),Milestone_Markering,\"\")),\"\")","v":""},{"$f":"IFERROR(IF(LEN(Mijlpalen[[#This Row],[Aantal dagen]])=0,\"\",IF(AND(BF$5=$E9,$F9=1),Milestone_Markering,\"\")),\"\")","v":""},{"$f":"IFERROR(IF(LEN(Mijlpalen[[#This Row],[Aantal dagen]])=0,\"\",IF(AND(BG$5=$E9,$F9=1),Milestone_Markering,\"\")),\"\")","v":""},{"$f":"IFERROR(IF(LEN(Mijlpalen[[#This Row],[Aantal dagen]])=0,\"\",IF(AND(BH$5=$E9,$F9=1),Milestone_Markering,\"\")),\"\")","v":""},{"$f":"IFERROR(IF(LEN(Mijlpalen[[#This Row],[Aantal dagen]])=0,\"\",IF(AND(BI$5=$E9,$F9=1),Milestone_Markering,\"\")),\"\")","v":""},{"$f":"IFERROR(IF(LEN(Mijlpalen[[#This Row],[Aantal dagen]])=0,\"\",IF(AND(BJ$5=$E9,$F9=1),Milestone_Markering,\"\")),\"\")","v":""},{"$f":"IFERROR(IF(LEN(Mijlpalen[[#This Row],[Aantal dagen]])=0,\"\",IF(AND(BK$5=$E9,$F9=1),Milestone_Markering,\"\")),\"\")","v":""}]
[null,"Taak 2",null,null,{"$f":"TODAY()+5","v":"2018-09-24"},1,null,{"$f":"IFERROR(IF(LEN(Mijlpalen[[#This Row],[Aantal dagen]])=0,\"\",IF(AND(H$5=$E10,$F10=1),Milestone_Markering,\"\")),\"\")","v":""},{"$f":"IFERROR(IF(LEN(Mijlpalen[[#This Row],[Aantal dagen]])=0,\"\",IF(AND(I$5=$E10,$F10=1),Milestone_Markering,\"\")),\"\")","v":""},{"$f":"IFERROR(IF(LEN(Mijlpalen[[#This Row],[Aantal dagen]])=0,\"\",IF(AND(J$5=$E10,$F10=1),Milestone_Markering,\"\")),\"\")","v":""},{"$f":"IFERROR(IF(LEN(Mijlpalen[[#This Row],[Aantal dagen]])=0,\"\",IF(AND(K$5=$E10,$F10=1),Milestone_Markering,\"\")),\"\")","v":""},{"$f":"IFERROR(IF(LEN(Mijlpalen[[#This Row],[Aantal dagen]])=0,\"\",IF(AND(L$5=$E10,$F10=1),Milestone_Markering,\"\")),\"\")","v":""},{"$f":"IFERROR(IF(LEN(Mijlpalen[[#This Row],[Aantal dagen]])=0,\"\",IF(AND(M$5=$E10,$F10=1),Milestone_Markering,\"\")),\"\")","v":""},{"$f":"IFERROR(IF(LEN(Mijlpalen[[#This Row],[Aantal dagen]])=0,\"\",IF(AND(N$5=$E10,$F10=1),Milestone_Markering,\"\")),\"\")","v":""},{"$f":"IFERROR(IF(LEN(Mijlpalen[[#This Row],[Aantal dagen]])=0,\"\",IF(AND(O$5=$E10,$F10=1),Milestone_Markering,\"\")),\"\")","v":""},{"$f":"IFERROR(IF(LEN(Mijlpalen[[#This Row],[Aantal dagen]])=0,\"\",IF(AND(P$5=$E10,$F10=1),Milestone_Markering,\"\")),\"\")","v":1},{"$f":"IFERROR(IF(LEN(Mijlpalen[[#This Row],[Aantal dagen]])=0,\"\",IF(AND(Q$5=$E10,$F10=1),Milestone_Markering,\"\")),\"\")","v":""},{"$f":"IFERROR(IF(LEN(Mijlpalen[[#This Row],[Aantal dagen]])=0,\"\",IF(AND(R$5=$E10,$F10=1),Milestone_Markering,\"\")),\"\")","v":""},{"$f":"IFERROR(IF(LEN(Mijlpalen[[#This Row],[Aantal dagen]])=0,\"\",IF(AND(S$5=$E10,$F10=1),Milestone_Markering,\"\")),\"\")","v":""},{"$f":"IFERROR(IF(LEN(Mijlpalen[[#This Row],[Aantal dagen]])=0,\"\",IF(AND(T$5=$E10,$F10=1),Milestone_Markering,\"\")),\"\")","v":""},{"$f":"IFERROR(IF(LEN(Mijlpalen[[#This Row],[Aantal dagen]])=0,\"\",IF(AND(U$5=$E10,$F10=1),Milestone_Markering,\"\")),\"\")","v":""},{"$f":"IFERROR(IF(LEN(Mijlpalen[[#This Row],[Aantal dagen]])=0,\"\",IF(AND(V$5=$E10,$F10=1),Milestone_Markering,\"\")),\"\")","v":""},{"$f":"IFERROR(IF(LEN(Mijlpalen[[#This Row],[Aantal dagen]])=0,\"\",IF(AND(W$5=$E10,$F10=1),Milestone_Markering,\"\")),\"\")","v":""},{"$f":"IFERROR(IF(LEN(Mijlpalen[[#This Row],[Aantal dagen]])=0,\"\",IF(AND(X$5=$E10,$F10=1),Milestone_Markering,\"\")),\"\")","v":""},{"$f":"IFERROR(IF(LEN(Mijlpalen[[#This Row],[Aantal dagen]])=0,\"\",IF(AND(Y$5=$E10,$F10=1),Milestone_Markering,\"\")),\"\")","v":""},{"$f":"IFERROR(IF(LEN(Mijlpalen[[#This Row],[Aantal dagen]])=0,\"\",IF(AND(Z$5=$E10,$F10=1),Milestone_Markering,\"\")),\"\")","v":""},{"$f":"IFERROR(IF(LEN(Mijlpalen[[#This Row],[Aantal dagen]])=0,\"\",IF(AND(AA$5=$E10,$F10=1),Milestone_Markering,\"\")),\"\")","v":""},{"$f":"IFERROR(IF(LEN(Mijlpalen[[#This Row],[Aantal dagen]])=0,\"\",IF(AND(AB$5=$E10,$F10=1),Milestone_Markering,\"\")),\"\")","v":""},{"$f":"IFERROR(IF(LEN(Mijlpalen[[#This Row],[Aantal dagen]])=0,\"\",IF(AND(AC$5=$E10,$F10=1),Milestone_Markering,\"\")),\"\")","v":""},{"$f":"IFERROR(IF(LEN(Mijlpalen[[#This Row],[Aantal dagen]])=0,\"\",IF(AND(AD$5=$E10,$F10=1),Milestone_Markering,\"\")),\"\")","v":""},{"$f":"IFERROR(IF(LEN(Mijlpalen[[#This Row],[Aantal dagen]])=0,\"\",IF(AND(AE$5=$E10,$F10=1),Milestone_Markering,\"\")),\"\")","v":""},{"$f":"IFERROR(IF(LEN(Mijlpalen[[#This Row],[Aantal dagen]])=0,\"\",IF(AND(AF$5=$E10,$F10=1),Milestone_Markering,\"\")),\"\")","v":""},{"$f":"IFERROR(IF(LEN(Mijlpalen[[#This Row],[Aantal dagen]])=0,\"\",IF(AND(AG$5=$E10,$F10=1),Milestone_Markering,\"\")),\"\")","v":""},{"$f":"IFERROR(IF(LEN(Mijlpalen[[#This Row],[Aantal dagen]])=0,\"\",IF(AND(AH$5=$E10,$F10=1),Milestone_Markering,\"\")),\"\")","v":""},{"$f":"IFERROR(IF(LEN(Mijlpalen[[#This Row],[Aantal dagen]])=0,\"\",IF(AND(AI$5=$E10,$F10=1),Milestone_Markering,\"\")),\"\")","v":""},{"$f":"IFERROR(IF(LEN(Mijlpalen[[#This Row],[Aantal dagen]])=0,\"\",IF(AND(AJ$5=$E10,$F10=1),Milestone_Markering,\"\")),\"\")","v":""},{"$f":"IFERROR(IF(LEN(Mijlpalen[[#This Row],[Aantal dagen]])=0,\"\",IF(AND(AK$5=$E10,$F10=1),Milestone_Markering,\"\")),\"\")","v":""},{"$f":"IFERROR(IF(LEN(Mijlpalen[[#This Row],[Aantal dagen]])=0,\"\",IF(AND(AL$5=$E10,$F10=1),Milestone_Markering,\"\")),\"\")","v":""},{"$f":"IFERROR(IF(LEN(Mijlpalen[[#This Row],[Aantal dagen]])=0,\"\",IF(AND(AM$5=$E10,$F10=1),Milestone_Markering,\"\")),\"\")","v":""},{"$f":"IFERROR(IF(LEN(Mijlpalen[[#This Row],[Aantal dagen]])=0,\"\",IF(AND(AN$5=$E10,$F10=1),Milestone_Markering,\"\")),\"\")","v":""},{"$f":"IFERROR(IF(LEN(Mijlpalen[[#This Row],[Aantal dagen]])=0,\"\",IF(AND(AO$5=$E10,$F10=1),Milestone_Markering,\"\")),\"\")","v":""},{"$f":"IFERROR(IF(LEN(Mijlpalen[[#This Row],[Aantal dagen]])=0,\"\",IF(AND(AP$5=$E10,$F10=1),Milestone_Markering,\"\")),\"\")","v":""},{"$f":"IFERROR(IF(LEN(Mijlpalen[[#This Row],[Aantal dagen]])=0,\"\",IF(AND(AQ$5=$E10,$F10=1),Milestone_Markering,\"\")),\"\")","v":""},{"$f":"IFERROR(IF(LEN(Mijlpalen[[#This Row],[Aantal dagen]])=0,\"\",IF(AND(AR$5=$E10,$F10=1),Milestone_Markering,\"\")),\"\")","v":""},{"$f":"IFERROR(IF(LEN(Mijlpalen[[#This Row],[Aantal dagen]])=0,\"\",IF(AND(AS$5=$E10,$F10=1),Milestone_Markering,\"\")),\"\")","v":""},{"$f":"IFERROR(IF(LEN(Mijlpalen[[#This Row],[Aantal dagen]])=0,\"\",IF(AND(AT$5=$E10,$F10=1),Milestone_Markering,\"\")),\"\")","v":""},{"$f":"IFERROR(IF(LEN(Mijlpalen[[#This Row],[Aantal dagen]])=0,\"\",IF(AND(AU$5=$E10,$F10=1),Milestone_Markering,\"\")),\"\")","v":""},{"$f":"IFERROR(IF(LEN(Mijlpalen[[#This Row],[Aantal dagen]])=0,\"\",IF(AND(AV$5=$E10,$F10=1),Milestone_Markering,\"\")),\"\")","v":""},{"$f":"IFERROR(IF(LEN(Mijlpalen[[#This Row],[Aantal dagen]])=0,\"\",IF(AND(AW$5=$E10,$F10=1),Milestone_Markering,\"\")),\"\")","v":""},{"$f":"IFERROR(IF(LEN(Mijlpalen[[#This Row],[Aantal dagen]])=0,\"\",IF(AND(AX$5=$E10,$F10=1),Milestone_Markering,\"\")),\"\")","v":""},{"$f":"IFERROR(IF(LEN(Mijlpalen[[#This Row],[Aantal dagen]])=0,\"\",IF(AND(AY$5=$E10,$F10=1),Milestone_Markering,\"\")),\"\")","v":""},{"$f":"IFERROR(IF(LEN(Mijlpalen[[#This Row],[Aantal dagen]])=0,\"\",IF(AND(AZ$5=$E10,$F10=1),Milestone_Markering,\"\")),\"\")","v":""},{"$f":"IFERROR(IF(LEN(Mijlpalen[[#This Row],[Aantal dagen]])=0,\"\",IF(AND(BA$5=$E10,$F10=1),Milestone_Markering,\"\")),\"\")","v":""},{"$f":"IFERROR(IF(LEN(Mijlpalen[[#This Row],[Aantal dagen]])=0,\"\",IF(AND(BB$5=$E10,$F10=1),Milestone_Markering,\"\")),\"\")","v":""},{"$f":"IFERROR(IF(LEN(Mijlpalen[[#This Row],[Aantal dagen]])=0,\"\",IF(AND(BC$5=$E10,$F10=1),Milestone_Markering,\"\")),\"\")","v":""},{"$f":"IFERROR(IF(LEN(Mijlpalen[[#This Row],[Aantal dagen]])=0,\"\",IF(AND(BD$5=$E10,$F10=1),Milestone_Markering,\"\")),\"\")","v":""},{"$f":"IFERROR(IF(LEN(Mijlpalen[[#This Row],[Aantal dagen]])=0,\"\",IF(AND(BE$5=$E10,$F10=1),Milestone_Markering,\"\")),\"\")","v":""},{"$f":"IFERROR(IF(LEN(Mijlpalen[[#This Row],[Aantal dagen]])=0,\"\",IF(AND(BF$5=$E10,$F10=1),Milestone_Markering,\"\")),\"\")","v":""},{"$f":"IFERROR(IF(LEN(Mijlpalen[[#This Row],[Aantal dagen]])=0,\"\",IF(AND(BG$5=$E10,$F10=1),Milestone_Markering,\"\")),\"\")","v":""},{"$f":"IFERROR(IF(LEN(Mijlpalen[[#This Row],[Aantal dagen]])=0,\"\",IF(AND(BH$5=$E10,$F10=1),Milestone_Markering,\"\")),\"\")","v":""},{"$f":"IFERROR(IF(LEN(Mijlpalen[[#This Row],[Aantal dagen]])=0,\"\",IF(AND(BI$5=$E10,$F10=1),Milestone_Markering,\"\")),\"\")","v":""},{"$f":"IFERROR(IF(LEN(Mijlpalen[[#This Row],[Aantal dagen]])=0,\"\",IF(AND(BJ$5=$E10,$F10=1),Milestone_Markering,\"\")),\"\")","v":""},{"$f":"IFERROR(IF(LEN(Mijlpalen[[#This Row],[Aantal dagen]])=0,\"\",IF(AND(BK$5=$E10,$F10=1),Milestone_Markering,\"\")),\"\")","v":""}]
[null,"Taak 3",null,{"v":0.5,"d":"50%"},{"$f":"TODAY()-3","v":"2018-09-16"},10,null,{"$f":"IFERROR(IF(LEN(Mijlpalen[[#This Row],[Aantal dagen]])=0,\"\",IF(AND(H$5=$E11,$F11=1),Milestone_Markering,\"\")),\"\")","v":""},{"$f":"IFERROR(IF(LEN(Mijlpalen[[#This Row],[Aantal dagen]])=0,\"\",IF(AND(I$5=$E11,$F11=1),Milestone_Markering,\"\")),\"\")","v":""},{"$f":"IFERROR(IF(LEN(Mijlpalen[[#This Row],[Aantal dagen]])=0,\"\",IF(AND(J$5=$E11,$F11=1),Milestone_Markering,\"\")),\"\")","v":""},{"$f":"IFERROR(IF(LEN(Mijlpalen[[#This Row],[Aantal dagen]])=0,\"\",IF(AND(K$5=$E11,$F11=1),Milestone_Markering,\"\")),\"\")","v":""},{"$f":"IFERROR(IF(LEN(Mijlpalen[[#This Row],[Aantal dagen]])=0,\"\",IF(AND(L$5=$E11,$F11=1),Milestone_Markering,\"\")),\"\")","v":""},{"$f":"IFERROR(IF(LEN(Mijlpalen[[#This Row],[Aantal dagen]])=0,\"\",IF(AND(M$5=$E11,$F11=1),Milestone_Markering,\"\")),\"\")","v":""},{"$f":"IFERROR(IF(LEN(Mijlpalen[[#This Row],[Aantal dagen]])=0,\"\",IF(AND(N$5=$E11,$F11=1),Milestone_Markering,\"\")),\"\")","v":""},{"$f":"IFERROR(IF(LEN(Mijlpalen[[#This Row],[Aantal dagen]])=0,\"\",IF(AND(O$5=$E11,$F11=1),Milestone_Markering,\"\")),\"\")","v":""},{"$f":"IFERROR(IF(LEN(Mijlpalen[[#This Row],[Aantal dagen]])=0,\"\",IF(AND(P$5=$E11,$F11=1),Milestone_Markering,\"\")),\"\")","v":""},{"$f":"IFERROR(IF(LEN(Mijlpalen[[#This Row],[Aantal dagen]])=0,\"\",IF(AND(Q$5=$E11,$F11=1),Milestone_Markering,\"\")),\"\")","v":""},{"$f":"IFERROR(IF(LEN(Mijlpalen[[#This Row],[Aantal dagen]])=0,\"\",IF(AND(R$5=$E11,$F11=1),Milestone_Markering,\"\")),\"\")","v":""},{"$f":"IFERROR(IF(LEN(Mijlpalen[[#This Row],[Aantal dagen]])=0,\"\",IF(AND(S$5=$E11,$F11=1),Milestone_Markering,\"\")),\"\")","v":""},{"$f":"IFERROR(IF(LEN(Mijlpalen[[#This Row],[Aantal dagen]])=0,\"\",IF(AND(T$5=$E11,$F11=1),Milestone_Markering,\"\")),\"\")","v":""},{"$f":"IFERROR(IF(LEN(Mijlpalen[[#This Row],[Aantal dagen]])=0,\"\",IF(AND(U$5=$E11,$F11=1),Milestone_Markering,\"\")),\"\")","v":""},{"$f":"IFERROR(IF(LEN(Mijlpalen[[#This Row],[Aantal dagen]])=0,\"\",IF(AND(V$5=$E11,$F11=1),Milestone_Markering,\"\")),\"\")","v":""},{"$f":"IFERROR(IF(LEN(Mijlpalen[[#This Row],[Aantal dagen]])=0,\"\",IF(AND(W$5=$E11,$F11=1),Milestone_Markering,\"\")),\"\")","v":""},{"$f":"IFERROR(IF(LEN(Mijlpalen[[#This Row],[Aantal dagen]])=0,\"\",IF(AND(X$5=$E11,$F11=1),Milestone_Markering,\"\")),\"\")","v":""},{"$f":"IFERROR(IF(LEN(Mijlpalen[[#This Row],[Aantal dagen]])=0,\"\",IF(AND(Y$5=$E11,$F11=1),Milestone_Markering,\"\")),\"\")","v":""},{"$f":"IFERROR(IF(LEN(Mijlpalen[[#This Row],[Aantal dagen]])=0,\"\",IF(AND(Z$5=$E11,$F11=1),Milestone_Markering,\"\")),\"\")","v":""},{"$f":"IFERROR(IF(LEN(Mijlpalen[[#This Row],[Aantal dagen]])=0,\"\",IF(AND(AA$5=$E11,$F11=1),Milestone_Markering,\"\")),\"\")","v":""},{"$f":"IFERROR(IF(LEN(Mijlpalen[[#This Row],[Aantal dagen]])=0,\"\",IF(AND(AB$5=$E11,$F11=1),Milestone_Markering,\"\")),\"\")","v":""},{"$f":"IFERROR(IF(LEN(Mijlpalen[[#This Row],[Aantal dagen]])=0,\"\",IF(AND(AC$5=$E11,$F11=1),Milestone_Markering,\"\")),\"\")","v":""},{"$f":"IFERROR(IF(LEN(Mijlpalen[[#This Row],[Aantal dagen]])=0,\"\",IF(AND(AD$5=$E11,$F11=1),Milestone_Markering,\"\")),\"\")","v":""},{"$f":"IFERROR(IF(LEN(Mijlpalen[[#This Row],[Aantal dagen]])=0,\"\",IF(AND(AE$5=$E11,$F11=1),Milestone_Markering,\"\")),\"\")","v":""},{"$f":"IFERROR(IF(LEN(Mijlpalen[[#This Row],[Aantal dagen]])=0,\"\",IF(AND(AF$5=$E11,$F11=1),Milestone_Markering,\"\")),\"\")","v":""},{"$f":"IFERROR(IF(LEN(Mijlpalen[[#This Row],[Aantal dagen]])=0,\"\",IF(AND(AG$5=$E11,$F11=1),Milestone_Markering,\"\")),\"\")","v":""},{"$f":"IFERROR(IF(LEN(Mijlpalen[[#This Row],[Aantal dagen]])=0,\"\",IF(AND(AH$5=$E11,$F11=1),Milestone_Markering,\"\")),\"\")","v":""},{"$f":"IFERROR(IF(LEN(Mijlpalen[[#This Row],[Aantal dagen]])=0,\"\",IF(AND(AI$5=$E11,$F11=1),Milestone_Markering,\"\")),\"\")","v":""},{"$f":"IFERROR(IF(LEN(Mijlpalen[[#This Row],[Aantal dagen]])=0,\"\",IF(AND(AJ$5=$E11,$F11=1),Milestone_Markering,\"\")),\"\")","v":""},{"$f":"IFERROR(IF(LEN(Mijlpalen[[#This Row],[Aantal dagen]])=0,\"\",IF(AND(AK$5=$E11,$F11=1),Milestone_Markering,\"\")),\"\")","v":""},{"$f":"IFERROR(IF(LEN(Mijlpalen[[#This Row],[Aantal dagen]])=0,\"\",IF(AND(AL$5=$E11,$F11=1),Milestone_Markering,\"\")),\"\")","v":""},{"$f":"IFERROR(IF(LEN(Mijlpalen[[#This Row],[Aantal dagen]])=0,\"\",IF(AND(AM$5=$E11,$F11=1),Milestone_Markering,\"\")),\"\")","v":""},{"$f":"IFERROR(IF(LEN(Mijlpalen[[#This Row],[Aantal dagen]])=0,\"\",IF(AND(AN$5=$E11,$F11=1),Milestone_Markering,\"\")),\"\")","v":""},{"$f":"IFERROR(IF(LEN(Mijlpalen[[#This Row],[Aantal dagen]])=0,\"\",IF(AND(AO$5=$E11,$F11=1),Milestone_Markering,\"\")),\"\")","v":""},{"$f":"IFERROR(IF(LEN(Mijlpalen[[#This Row],[Aantal dagen]])=0,\"\",IF(AND(AP$5=$E11,$F11=1),Milestone_Markering,\"\")),\"\")","v":""},{"$f":"IFERROR(IF(LEN(Mijlpalen[[#This Row],[Aantal dagen]])=0,\"\",IF(AND(AQ$5=$E11,$F11=1),Milestone_Markering,\"\")),\"\")","v":""},{"$f":"IFERROR(IF(LEN(Mijlpalen[[#This Row],[Aantal dagen]])=0,\"\",IF(AND(AR$5=$E11,$F11=1),Milestone_Markering,\"\")),\"\")","v":""},{"$f":"IFERROR(IF(LEN(Mijlpalen[[#This Row],[Aantal dagen]])=0,\"\",IF(AND(AS$5=$E11,$F11=1),Milestone_Markering,\"\")),\"\")","v":""},{"$f":"IFERROR(IF(LEN(Mijlpalen[[#This Row],[Aantal dagen]])=0,\"\",IF(AND(AT$5=$E11,$F11=1),Milestone_Markering,\"\")),\"\")","v":""},{"$f":"IFERROR(IF(LEN(Mijlpalen[[#This Row],[Aantal dagen]])=0,\"\",IF(AND(AU$5=$E11,$F11=1),Milestone_Markering,\"\")),\"\")","v":""},{"$f":"IFERROR(IF(LEN(Mijlpalen[[#This Row],[Aantal dagen]])=0,\"\",IF(AND(AV$5=$E11,$F11=1),Milestone_Markering,\"\")),\"\")","v":""},{"$f":"IFERROR(IF(LEN(Mijlpalen[[#This Row],[Aantal dagen]])=0,\"\",IF(AND(AW$5=$E11,$F11=1),Milestone_Markering,\"\")),\"\")","v":""},{"$f":"IFERROR(IF(LEN(Mijlpalen[[#This Row],[Aantal dagen]])=0,\"\",IF(AND(AX$5=$E11,$F11=1),Milestone_Markering,\"\")),\"\")","v":""},{"$f":"IFERROR(IF(LEN(Mijlpalen[[#This Row],[Aantal dagen]])=0,\"\",IF(AND(AY$5=$E11,$F11=1),Milestone_Markering,\"\")),\"\")","v":""},{"$f":"IFERROR(IF(LEN(Mijlpalen[[#This Row],[Aantal dagen]])=0,\"\",IF(AND(AZ$5=$E11,$F11=1),Milestone_Markering,\"\")),\"\")","v":""},{"$f":"IFERROR(IF(LEN(Mijlpalen[[#This Row],[Aantal dagen]])=0,\"\",IF(AND(BA$5=$E11,$F11=1),Milestone_Markering,\"\")),\"\")","v":""},{"$f":"IFERROR(IF(LEN(Mijlpalen[[#This Row],[Aantal dagen]])=0,\"\",IF(AND(BB$5=$E11,$F11=1),Milestone_Markering,\"\")),\"\")","v":""},{"$f":"IFERROR(IF(LEN(Mijlpalen[[#This Row],[Aantal dagen]])=0,\"\",IF(AND(BC$5=$E11,$F11=1),Milestone_Markering,\"\")),\"\")","v":""},{"$f":"IFERROR(IF(LEN(Mijlpalen[[#This Row],[Aantal dagen]])=0,\"\",IF(AND(BD$5=$E11,$F11=1),Milestone_Markering,\"\")),\"\")","v":""},{"$f":"IFERROR(IF(LEN(Mijlpalen[[#This Row],[Aantal dagen]])=0,\"\",IF(AND(BE$5=$E11,$F11=1),Milestone_Markering,\"\")),\"\")","v":""},{"$f":"IFERROR(IF(LEN(Mijlpalen[[#This Row],[Aantal dagen]])=0,\"\",IF(AND(BF$5=$E11,$F11=1),Milestone_Markering,\"\")),\"\")","v":""},{"$f":"IFERROR(IF(LEN(Mijlpalen[[#This Row],[Aantal dagen]])=0,\"\",IF(AND(BG$5=$E11,$F11=1),Milestone_Markering,\"\")),\"\")","v":""},{"$f":"IFERROR(IF(LEN(Mijlpalen[[#This Row],[Aantal dagen]])=0,\"\",IF(AND(BH$5=$E11,$F11=1),Milestone_Markering,\"\")),\"\")","v":""},{"$f":"IFERROR(IF(LEN(Mijlpalen[[#This Row],[Aantal dagen]])=0,\"\",IF(AND(BI$5=$E11,$F11=1),Milestone_Markering,\"\")),\"\")","v":""},{"$f":"IFERROR(IF(LEN(Mijlpalen[[#This Row],[Aantal dagen]])=0,\"\",IF(AND(BJ$5=$E11,$F11=1),Milestone_Markering,\"\")),\"\")","v":""},{"$f":"IFERROR(IF(LEN(Mijlpalen[[#This Row],[Aantal dagen]])=0,\"\",IF(AND(BK$5=$E11,$F11=1),Milestone_Markering,\"\")),\"\")","v":""}]
[null,"Taak 4",null,null,{"$f":"TODAY()+20","v":"2018-10-09"},1,null,{"$f":"IFERROR(IF(LEN(Mijlpalen[[#This Row],[Aantal dagen]])=0,\"\",IF(AND(H$5=$E12,$F12=1),Milestone_Markering,\"\")),\"\")","v":""},{"$f":"IFERROR(IF(LEN(Mijlpalen[[#This Row],[Aantal dagen]])=0,\"\",IF(AND(I$5=$E12,$F12=1),Milestone_Markering,\"\")),\"\")","v":""},{"$f":"IFERROR(IF(LEN(Mijlpalen[[#This Row],[Aantal dagen]])=0,\"\",IF(AND(J$5=$E12,$F12=1),Milestone_Markering,\"\")),\"\")","v":""},{"$f":"IFERROR(IF(LEN(Mijlpalen[[#This Row],[Aantal dagen]])=0,\"\",IF(AND(K$5=$E12,$F12=1),Milestone_Markering,\"\")),\"\")","v":""},{"$f":"IFERROR(IF(LEN(Mijlpalen[[#This Row],[Aantal dagen]])=0,\"\",IF(AND(L$5=$E12,$F12=1),Milestone_Markering,\"\")),\"\")","v":""},{"$f":"IFERROR(IF(LEN(Mijlpalen[[#This Row],[Aantal dagen]])=0,\"\",IF(AND(M$5=$E12,$F12=1),Milestone_Markering,\"\")),\"\")","v":""},{"$f":"IFERROR(IF(LEN(Mijlpalen[[#This Row],[Aantal dagen]])=0,\"\",IF(AND(N$5=$E12,$F12=1),Milestone_Markering,\"\")),\"\")","v":""},{"$f":"IFERROR(IF(LEN(Mijlpalen[[#This Row],[Aantal dagen]])=0,\"\",IF(AND(O$5=$E12,$F12=1),Milestone_Markering,\"\")),\"\")","v":""},{"$f":"IFERROR(IF(LEN(Mijlpalen[[#This Row],[Aantal dagen]])=0,\"\",IF(AND(P$5=$E12,$F12=1),Milestone_Markering,\"\")),\"\")","v":""},{"$f":"IFERROR(IF(LEN(Mijlpalen[[#This Row],[Aantal dagen]])=0,\"\",IF(AND(Q$5=$E12,$F12=1),Milestone_Markering,\"\")),\"\")","v":""},{"$f":"IFERROR(IF(LEN(Mijlpalen[[#This Row],[Aantal dagen]])=0,\"\",IF(AND(R$5=$E12,$F12=1),Milestone_Markering,\"\")),\"\")","v":""},{"$f":"IFERROR(IF(LEN(Mijlpalen[[#This Row],[Aantal dagen]])=0,\"\",IF(AND(S$5=$E12,$F12=1),Milestone_Markering,\"\")),\"\")","v":""},{"$f":"IFERROR(IF(LEN(Mijlpalen[[#This Row],[Aantal dagen]])=0,\"\",IF(AND(T$5=$E12,$F12=1),Milestone_Markering,\"\")),\"\")","v":""},{"$f":"IFERROR(IF(LEN(Mijlpalen[[#This Row],[Aantal dagen]])=0,\"\",IF(AND(U$5=$E12,$F12=1),Milestone_Markering,\"\")),\"\")","v":""},{"$f":"IFERROR(IF(LEN(Mijlpalen[[#This Row],[Aantal dagen]])=0,\"\",IF(AND(V$5=$E12,$F12=1),Milestone_Markering,\"\")),\"\")","v":""},{"$f":"IFERROR(IF(LEN(Mijlpalen[[#This Row],[Aantal dagen]])=0,\"\",IF(AND(W$5=$E12,$F12=1),Milestone_Markering,\"\")),\"\")","v":""},{"$f":"IFERROR(IF(LEN(Mijlpalen[[#This Row],[Aantal dagen]])=0,\"\",IF(AND(X$5=$E12,$F12=1),Milestone_Markering,\"\")),\"\")","v":""},{"$f":"IFERROR(IF(LEN(Mijlpalen[[#This Row],[Aantal dagen]])=0,\"\",IF(AND(Y$5=$E12,$F12=1),Milestone_Markering,\"\")),\"\")","v":""},{"$f":"IFERROR(IF(LEN(Mijlpalen[[#This Row],[Aantal dagen]])=0,\"\",IF(AND(Z$5=$E12,$F12=1),Milestone_Markering,\"\")),\"\")","v":""},{"$f":"IFERROR(IF(LEN(Mijlpalen[[#This Row],[Aantal dagen]])=0,\"\",IF(AND(AA$5=$E12,$F12=1),Milestone_Markering,\"\")),\"\")","v":""},{"$f":"IFERROR(IF(LEN(Mijlpalen[[#This Row],[Aantal dagen]])=0,\"\",IF(AND(AB$5=$E12,$F12=1),Milestone_Markering,\"\")),\"\")","v":""},{"$f":"IFERROR(IF(LEN(Mijlpalen[[#This Row],[Aantal dagen]])=0,\"\",IF(AND(AC$5=$E12,$F12=1),Milestone_Markering,\"\")),\"\")","v":""},{"$f":"IFERROR(IF(LEN(Mijlpalen[[#This Row],[Aantal dagen]])=0,\"\",IF(AND(AD$5=$E12,$F12=1),Milestone_Markering,\"\")),\"\")","v":""},{"$f":"IFERROR(IF(LEN(Mijlpalen[[#This Row],[Aantal dagen]])=0,\"\",IF(AND(AE$5=$E12,$F12=1),Milestone_Markering,\"\")),\"\")","v":1},{"$f":"IFERROR(IF(LEN(Mijlpalen[[#This Row],[Aantal dagen]])=0,\"\",IF(AND(AF$5=$E12,$F12=1),Milestone_Markering,\"\")),\"\")","v":""},{"$f":"IFERROR(IF(LEN(Mijlpalen[[#This Row],[Aantal dagen]])=0,\"\",IF(AND(AG$5=$E12,$F12=1),Milestone_Markering,\"\")),\"\")","v":""},{"$f":"IFERROR(IF(LEN(Mijlpalen[[#This Row],[Aantal dagen]])=0,\"\",IF(AND(AH$5=$E12,$F12=1),Milestone_Markering,\"\")),\"\")","v":""},{"$f":"IFERROR(IF(LEN(Mijlpalen[[#This Row],[Aantal dagen]])=0,\"\",IF(AND(AI$5=$E12,$F12=1),Milestone_Markering,\"\")),\"\")","v":""},{"$f":"IFERROR(IF(LEN(Mijlpalen[[#This Row],[Aantal dagen]])=0,\"\",IF(AND(AJ$5=$E12,$F12=1),Milestone_Markering,\"\")),\"\")","v":""},{"$f":"IFERROR(IF(LEN(Mijlpalen[[#This Row],[Aantal dagen]])=0,\"\",IF(AND(AK$5=$E12,$F12=1),Milestone_Markering,\"\")),\"\")","v":""},{"$f":"IFERROR(IF(LEN(Mijlpalen[[#This Row],[Aantal dagen]])=0,\"\",IF(AND(AL$5=$E12,$F12=1),Milestone_Markering,\"\")),\"\")","v":""},{"$f":"IFERROR(IF(LEN(Mijlpalen[[#This Row],[Aantal dagen]])=0,\"\",IF(AND(AM$5=$E12,$F12=1),Milestone_Markering,\"\")),\"\")","v":""},{"$f":"IFERROR(IF(LEN(Mijlpalen[[#This Row],[Aantal dagen]])=0,\"\",IF(AND(AN$5=$E12,$F12=1),Milestone_Markering,\"\")),\"\")","v":""},{"$f":"IFERROR(IF(LEN(Mijlpalen[[#This Row],[Aantal dagen]])=0,\"\",IF(AND(AO$5=$E12,$F12=1),Milestone_Markering,\"\")),\"\")","v":""},{"$f":"IFERROR(IF(LEN(Mijlpalen[[#This Row],[Aantal dagen]])=0,\"\",IF(AND(AP$5=$E12,$F12=1),Milestone_Markering,\"\")),\"\")","v":""},{"$f":"IFERROR(IF(LEN(Mijlpalen[[#This Row],[Aantal dagen]])=0,\"\",IF(AND(AQ$5=$E12,$F12=1),Milestone_Markering,\"\")),\"\")","v":""},{"$f":"IFERROR(IF(LEN(Mijlpalen[[#This Row],[Aantal dagen]])=0,\"\",IF(AND(AR$5=$E12,$F12=1),Milestone_Markering,\"\")),\"\")","v":""},{"$f":"IFERROR(IF(LEN(Mijlpalen[[#This Row],[Aantal dagen]])=0,\"\",IF(AND(AS$5=$E12,$F12=1),Milestone_Markering,\"\")),\"\")","v":""},{"$f":"IFERROR(IF(LEN(Mijlpalen[[#This Row],[Aantal dagen]])=0,\"\",IF(AND(AT$5=$E12,$F12=1),Milestone_Markering,\"\")),\"\")","v":""},{"$f":"IFERROR(IF(LEN(Mijlpalen[[#This Row],[Aantal dagen]])=0,\"\",IF(AND(AU$5=$E12,$F12=1),Milestone_Markering,\"\")),\"\")","v":""},{"$f":"IFERROR(IF(LEN(Mijlpalen[[#This Row],[Aantal dagen]])=0,\"\",IF(AND(AV$5=$E12,$F12=1),Milestone_Markering,\"\")),\"\")","v":""},{"$f":"IFERROR(IF(LEN(Mijlpalen[[#This Row],[Aantal dagen]])=0,\"\",IF(AND(AW$5=$E12,$F12=1),Milestone_Markering,\"\")),\"\")","v":""},{"$f":"IFERROR(IF(LEN(Mijlpalen[[#This Row],[Aantal dagen]])=0,\"\",IF(AND(AX$5=$E12,$F12=1),Milestone_Markering,\"\")),\"\")","v":""},{"$f":"IFERROR(IF(LEN(Mijlpalen[[#This Row],[Aantal dagen]])=0,\"\",IF(AND(AY$5=$E12,$F12=1),Milestone_Markering,\"\")),\"\")","v":""},{"$f":"IFERROR(IF(LEN(Mijlpalen[[#This Row],[Aantal dagen]])=0,\"\",IF(AND(AZ$5=$E12,$F12=1),Milestone_Markering,\"\")),\"\")","v":""},{"$f":"IFERROR(IF(LEN(Mijlpalen[[#This Row],[Aantal dagen]])=0,\"\",IF(AND(BA$5=$E12,$F12=1),Milestone_Markering,\"\")),\"\")","v":""},{"$f":"IFERROR(IF(LEN(Mijlpalen[[#This Row],[Aantal dagen]])=0,\"\",IF(AND(BB$5=$E12,$F12=1),Milestone_Markering,\"\")),\"\")","v":""},{"$f":"IFERROR(IF(LEN(Mijlpalen[[#This Row],[Aantal dagen]])=0,\"\",IF(AND(BC$5=$E12,$F12=1),Milestone_Markering,\"\")),\"\")","v":""},{"$f":"IFERROR(IF(LEN(Mijlpalen[[#This Row],[Aantal dagen]])=0,\"\",IF(AND(BD$5=$E12,$F12=1),Milestone_Markering,\"\")),\"\")","v":""},{"$f":"IFERROR(IF(LEN(Mijlpalen[[#This Row],[Aantal dagen]])=0,\"\",IF(AND(BE$5=$E12,$F12=1),Milestone_Markering,\"\")),\"\")","v":""},{"$f":"IFERROR(IF(LEN(Mijlpalen[[#This Row],[Aantal dagen]])=0,\"\",IF(AND(BF$5=$E12,$F12=1),Milestone_Markering,\"\")),\"\")","v":""},{"$f":"IFERROR(IF(LEN(Mijlpalen[[#This Row],[Aantal dagen]])=0,\"\",IF(AND(BG$5=$E12,$F12=1),Milestone_Markering,\"\")),\"\")","v":""},{"$f":"IFERROR(IF(LEN(Mijlpalen[[#This Row],[Aantal dagen]])=0,\"\",IF(AND(BH$5=$E12,$F12=1),Milestone_Markering,\"\")),\"\")","v":""},{"$f":"IFERROR(IF(LEN(Mijlpalen[[#This Row],[Aantal dagen]])=0,\"\",IF(AND(BI$5=$E12,$F12=1),Milestone_Markering,\"\")),\"\")","v":""},{"$f":"IFERROR(IF(LEN(Mijlpalen[[#This Row],[Aantal dagen]])=0,\"\",IF(AND(BJ$5=$E12,$F12=1),Milestone_Markering,\"\")),\"\")","v":""},{"$f":"IFERROR(IF(LEN(Mijlpalen[[#This Row],[Aantal dagen]])=0,\"\",IF(AND(BK$5=$E12,$F12=1),Milestone_Markering,\"\")),\"\")","v":""}]
[null,"Taak 5",null,{"v":0.1,"d":"10%"},{"$f":"TODAY()+6","v":"2018-09-25"},6,null,{"$f":"IFERROR(IF(LEN(Mijlpalen[[#This Row],[Aantal dagen]])=0,\"\",IF(AND(H$5=$E13,$F13=1),Milestone_Markering,\"\")),\"\")","v":""},{"$f":"IFERROR(IF(LEN(Mijlpalen[[#This Row],[Aantal dagen]])=0,\"\",IF(AND(I$5=$E13,$F13=1),Milestone_Markering,\"\")),\"\")","v":""},{"$f":"IFERROR(IF(LEN(Mijlpalen[[#This Row],[Aantal dagen]])=0,\"\",IF(AND(J$5=$E13,$F13=1),Milestone_Markering,\"\")),\"\")","v":""},{"$f":"IFERROR(IF(LEN(Mijlpalen[[#This Row],[Aantal dagen]])=0,\"\",IF(AND(K$5=$E13,$F13=1),Milestone_Markering,\"\")),\"\")","v":""},{"$f":"IFERROR(IF(LEN(Mijlpalen[[#This Row],[Aantal dagen]])=0,\"\",IF(AND(L$5=$E13,$F13=1),Milestone_Markering,\"\")),\"\")","v":""},{"$f":"IFERROR(IF(LEN(Mijlpalen[[#This Row],[Aantal dagen]])=0,\"\",IF(AND(M$5=$E13,$F13=1),Milestone_Markering,\"\")),\"\")","v":""},{"$f":"IFERROR(IF(LEN(Mijlpalen[[#This Row],[Aantal dagen]])=0,\"\",IF(AND(N$5=$E13,$F13=1),Milestone_Markering,\"\")),\"\")","v":""},{"$f":"IFERROR(IF(LEN(Mijlpalen[[#This Row],[Aantal dagen]])=0,\"\",IF(AND(O$5=$E13,$F13=1),Milestone_Markering,\"\")),\"\")","v":""},{"$f":"IFERROR(IF(LEN(Mijlpalen[[#This Row],[Aantal dagen]])=0,\"\",IF(AND(P$5=$E13,$F13=1),Milestone_Markering,\"\")),\"\")","v":""},{"$f":"IFERROR(IF(LEN(Mijlpalen[[#This Row],[Aantal dagen]])=0,\"\",IF(AND(Q$5=$E13,$F13=1),Milestone_Markering,\"\")),\"\")","v":""},{"$f":"IFERROR(IF(LEN(Mijlpalen[[#This Row],[Aantal dagen]])=0,\"\",IF(AND(R$5=$E13,$F13=1),Milestone_Markering,\"\")),\"\")","v":""},{"$f":"IFERROR(IF(LEN(Mijlpalen[[#This Row],[Aantal dagen]])=0,\"\",IF(AND(S$5=$E13,$F13=1),Milestone_Markering,\"\")),\"\")","v":""},{"$f":"IFERROR(IF(LEN(Mijlpalen[[#This Row],[Aantal dagen]])=0,\"\",IF(AND(T$5=$E13,$F13=1),Milestone_Markering,\"\")),\"\")","v":""},{"$f":"IFERROR(IF(LEN(Mijlpalen[[#This Row],[Aantal dagen]])=0,\"\",IF(AND(U$5=$E13,$F13=1),Milestone_Markering,\"\")),\"\")","v":""},{"$f":"IFERROR(IF(LEN(Mijlpalen[[#This Row],[Aantal dagen]])=0,\"\",IF(AND(V$5=$E13,$F13=1),Milestone_Markering,\"\")),\"\")","v":""},{"$f":"IFERROR(IF(LEN(Mijlpalen[[#This Row],[Aantal dagen]])=0,\"\",IF(AND(W$5=$E13,$F13=1),Milestone_Markering,\"\")),\"\")","v":""},{"$f":"IFERROR(IF(LEN(Mijlpalen[[#This Row],[Aantal dagen]])=0,\"\",IF(AND(X$5=$E13,$F13=1),Milestone_Markering,\"\")),\"\")","v":""},{"$f":"IFERROR(IF(LEN(Mijlpalen[[#This Row],[Aantal dagen]])=0,\"\",IF(AND(Y$5=$E13,$F13=1),Milestone_Markering,\"\")),\"\")","v":""},{"$f":"IFERROR(IF(LEN(Mijlpalen[[#This Row],[Aantal dagen]])=0,\"\",IF(AND(Z$5=$E13,$F13=1),Milestone_Markering,\"\")),\"\")","v":""},{"$f":"IFERROR(IF(LEN(Mijlpalen[[#This Row],[Aantal dagen]])=0,\"\",IF(AND(AA$5=$E13,$F13=1),Milestone_Markering,\"\")),\"\")","v":""},{"$f":"IFERROR(IF(LEN(Mijlpalen[[#This Row],[Aantal dagen]])=0,\"\",IF(AND(AB$5=$E13,$F13=1),Milestone_Markering,\"\")),\"\")","v":""},{"$f":"IFERROR(IF(LEN(Mijlpalen[[#This Row],[Aantal dagen]])=0,\"\",IF(AND(AC$5=$E13,$F13=1),Milestone_Markering,\"\")),\"\")","v":""},{"$f":"IFERROR(IF(LEN(Mijlpalen[[#This Row],[Aantal dagen]])=0,\"\",IF(AND(AD$5=$E13,$F13=1),Milestone_Markering,\"\")),\"\")","v":""},{"$f":"IFERROR(IF(LEN(Mijlpalen[[#This Row],[Aantal dagen]])=0,\"\",IF(AND(AE$5=$E13,$F13=1),Milestone_Markering,\"\")),\"\")","v":""},{"$f":"IFERROR(IF(LEN(Mijlpalen[[#This Row],[Aantal dagen]])=0,\"\",IF(AND(AF$5=$E13,$F13=1),Milestone_Markering,\"\")),\"\")","v":""},{"$f":"IFERROR(IF(LEN(Mijlpalen[[#This Row],[Aantal dagen]])=0,\"\",IF(AND(AG$5=$E13,$F13=1),Milestone_Markering,\"\")),\"\")","v":""},{"$f":"IFERROR(IF(LEN(Mijlpalen[[#This Row],[Aantal dagen]])=0,\"\",IF(AND(AH$5=$E13,$F13=1),Milestone_Markering,\"\")),\"\")","v":""},{"$f":"IFERROR(IF(LEN(Mijlpalen[[#This Row],[Aantal dagen]])=0,\"\",IF(AND(AI$5=$E13,$F13=1),Milestone_Markering,\"\")),\"\")","v":""},{"$f":"IFERROR(IF(LEN(Mijlpalen[[#This Row],[Aantal dagen]])=0,\"\",IF(AND(AJ$5=$E13,$F13=1),Milestone_Markering,\"\")),\"\")","v":""},{"$f":"IFERROR(IF(LEN(Mijlpalen[[#This Row],[Aantal dagen]])=0,\"\",IF(AND(AK$5=$E13,$F13=1),Milestone_Markering,\"\")),\"\")","v":""},{"$f":"IFERROR(IF(LEN(Mijlpalen[[#This Row],[Aantal dagen]])=0,\"\",IF(AND(AL$5=$E13,$F13=1),Milestone_Markering,\"\")),\"\")","v":""},{"$f":"IFERROR(IF(LEN(Mijlpalen[[#This Row],[Aantal dagen]])=0,\"\",IF(AND(AM$5=$E13,$F13=1),Milestone_Markering,\"\")),\"\")","v":""},{"$f":"IFERROR(IF(LEN(Mijlpalen[[#This Row],[Aantal dagen]])=0,\"\",IF(AND(AN$5=$E13,$F13=1),Milestone_Markering,\"\")),\"\")","v":""},{"$f":"IFERROR(IF(LEN(Mijlpalen[[#This Row],[Aantal dagen]])=0,\"\",IF(AND(AO$5=$E13,$F13=1),Milestone_Markering,\"\")),\"\")","v":""},{"$f":"IFERROR(IF(LEN(Mijlpalen[[#This Row],[Aantal dagen]])=0,\"\",IF(AND(AP$5=$E13,$F13=1),Milestone_Markering,\"\")),\"\")","v":""},{"$f":"IFERROR(IF(LEN(Mijlpalen[[#This Row],[Aantal dagen]])=0,\"\",IF(AND(AQ$5=$E13,$F13=1),Milestone_Markering,\"\")),\"\")","v":""},{"$f":"IFERROR(IF(LEN(Mijlpalen[[#This Row],[Aantal dagen]])=0,\"\",IF(AND(AR$5=$E13,$F13=1),Milestone_Markering,\"\")),\"\")","v":""},{"$f":"IFERROR(IF(LEN(Mijlpalen[[#This Row],[Aantal dagen]])=0,\"\",IF(AND(AS$5=$E13,$F13=1),Milestone_Markering,\"\")),\"\")","v":""},{"$f":"IFERROR(IF(LEN(Mijlpalen[[#This Row],[Aantal dagen]])=0,\"\",IF(AND(AT$5=$E13,$F13=1),Milestone_Markering,\"\")),\"\")","v":""},{"$f":"IFERROR(IF(LEN(Mijlpalen[[#This Row],[Aantal dagen]])=0,\"\",IF(AND(AU$5=$E13,$F13=1),Milestone_Markering,\"\")),\"\")","v":""},{"$f":"IFERROR(IF(LEN(Mijlpalen[[#This Row],[Aantal dagen]])=0,\"\",IF(AND(AV$5=$E13,$F13=1),Milestone_Markering,\"\")),\"\")","v":""},{"$f":"IFERROR(IF(LEN(Mijlpalen[[#This Row],[Aantal dagen]])=0,\"\",IF(AND(AW$5=$E13,$F13=1),Milestone_Markering,\"\")),\"\")","v":""},{"$f":"IFERROR(IF(LEN(Mijlpalen[[#This Row],[Aantal dagen]])=0,\"\",IF(AND(AX$5=$E13,$F13=1),Milestone_Markering,\"\")),\"\")","v":""},{"$f":"IFERROR(IF(LEN(Mijlpalen[[#This Row],[Aantal dagen]])=0,\"\",IF(AND(AY$5=$E13,$F13=1),Milestone_Markering,\"\")),\"\")","v":""},{"$f":"IFERROR(IF(LEN(Mijlpalen[[#This Row],[Aantal dagen]])=0,\"\",IF(AND(AZ$5=$E13,$F13=1),Milestone_Markering,\"\")),\"\")","v":""},{"$f":"IFERROR(IF(LEN(Mijlpalen[[#This Row],[Aantal dagen]])=0,\"\",IF(AND(BA$5=$E13,$F13=1),Milestone_Markering,\"\")),\"\")","v":""},{"$f":"IFERROR(IF(LEN(Mijlpalen[[#This Row],[Aantal dagen]])=0,\"\",IF(AND(BB$5=$E13,$F13=1),Milestone_Markering,\"\")),\"\")","v":""},{"$f":"IFERROR(IF(LEN(Mijlpalen[[#This Row],[Aantal dagen]])=0,\"\",IF(AND(BC$5=$E13,$F13=1),Milestone_Markering,\"\")),\"\")","v":""},{"$f":"IFERROR(IF(LEN(Mijlpalen[[#This Row],[Aantal dagen]])=0,\"\",IF(AND(BD$5=$E13,$F13=1),Milestone_Markering,\"\")),\"\")","v":""},{"$f":"IFERROR(IF(LEN(Mijlpalen[[#This Row],[Aantal dagen]])=0,\"\",IF(AND(BE$5=$E13,$F13=1),Milestone_Markering,\"\")),\"\")","v":""},{"$f":"IFERROR(IF(LEN(Mijlpalen[[#This Row],[Aantal dagen]])=0,\"\",IF(AND(BF$5=$E13,$F13=1),Milestone_Markering,\"\")),\"\")","v":""},{"$f":"IFERROR(IF(LEN(Mijlpalen[[#This Row],[Aantal dagen]])=0,\"\",IF(AND(BG$5=$E13,$F13=1),Milestone_Markering,\"\")),\"\")","v":""},{"$f":"IFERROR(IF(LEN(Mijlpalen[[#This Row],[Aantal dagen]])=0,\"\",IF(AND(BH$5=$E13,$F13=1),Milestone_Markering,\"\")),\"\")","v":""},{"$f":"IFERROR(IF(LEN(Mijlpalen[[#This Row],[Aantal dagen]])=0,\"\",IF(AND(BI$5=$E13,$F13=1),Milestone_Markering,\"\")),\"\")","v":""},{"$f":"IFERROR(IF(LEN(Mijlpalen[[#This Row],[Aantal dagen]])=0,\"\",IF(AND(BJ$5=$E13,$F13=1),Milestone_Markering,\"\")),\"\")","v":""},{"$f":"IFERROR(IF(LEN(Mijlpalen[[#This Row],[Aantal dagen]])=0,\"\",IF(AND(BK$5=$E13,$F13=1),Milestone_Markering,\"\")),\"\")","v":""}]
[null,"Titel 2",{"$nulls":5},{"$f":"IFERROR(IF(LEN(Mijlpalen[[#This Row],[Aantal dagen]])=0,\"\",IF(AND(H$5=$E14,$F14=1),Milestone_Markering,\"\")),\"\")","v":""},{"$f":"IFERROR(IF(LEN(Mijlpalen[[#This Row],[Aantal dagen]])=0,\"\",IF(AND(I$5=$E14,$F14=1),Milestone_Markering,\"\")),\"\")","v":""},{"$f":"IFERROR(IF(LEN(Mijlpalen[[#This Row],[Aantal dagen]])=0,\"\",IF(AND(J$5=$E14,$F14=1),Milestone_Markering,\"\")),\"\")","v":""},{"$f":"IFERROR(IF(LEN(Mijlpalen[[#This Row],[Aantal dagen]])=0,\"\",IF(AND(K$5=$E14,$F14=1),Milestone_Markering,\"\")),\"\")","v":""},{"$f":"IFERROR(IF(LEN(Mijlpalen[[#This Row],[Aantal dagen]])=0,\"\",IF(AND(L$5=$E14,$F14=1),Milestone_Markering,\"\")),\"\")","v":""},{"$f":"IFERROR(IF(LEN(Mijlpalen[[#This Row],[Aantal dagen]])=0,\"\",IF(AND(M$5=$E14,$F14=1),Milestone_Markering,\"\")),\"\")","v":""},{"$f":"IFERROR(IF(LEN(Mijlpalen[[#This Row],[Aantal dagen]])=0,\"\",IF(AND(N$5=$E14,$F14=1),Milestone_Markering,\"\")),\"\")","v":""},{"$f":"IFERROR(IF(LEN(Mijlpalen[[#This Row],[Aantal dagen]])=0,\"\",IF(AND(O$5=$E14,$F14=1),Milestone_Markering,\"\")),\"\")","v":""},{"$f":"IFERROR(IF(LEN(Mijlpalen[[#This Row],[Aantal dagen]])=0,\"\",IF(AND(P$5=$E14,$F14=1),Milestone_Markering,\"\")),\"\")","v":""},{"$f":"IFERROR(IF(LEN(Mijlpalen[[#This Row],[Aantal dagen]])=0,\"\",IF(AND(Q$5=$E14,$F14=1),Milestone_Markering,\"\")),\"\")","v":""},{"$f":"IFERROR(IF(LEN(Mijlpalen[[#This Row],[Aantal dagen]])=0,\"\",IF(AND(R$5=$E14,$F14=1),Milestone_Markering,\"\")),\"\")","v":""},{"$f":"IFERROR(IF(LEN(Mijlpalen[[#This Row],[Aantal dagen]])=0,\"\",IF(AND(S$5=$E14,$F14=1),Milestone_Markering,\"\")),\"\")","v":""},{"$f":"IFERROR(IF(LEN(Mijlpalen[[#This Row],[Aantal dagen]])=0,\"\",IF(AND(T$5=$E14,$F14=1),Milestone_Markering,\"\")),\"\")","v":""},{"$f":"IFERROR(IF(LEN(Mijlpalen[[#This Row],[Aantal dagen]])=0,\"\",IF(AND(U$5=$E14,$F14=1),Milestone_Markering,\"\")),\"\")","v":""},{"$f":"IFERROR(IF(LEN(Mijlpalen[[#This Row],[Aantal dagen]])=0,\"\",IF(AND(V$5=$E14,$F14=1),Milestone_Markering,\"\")),\"\")","v":""},{"$f":"IFERROR(IF(LEN(Mijlpalen[[#This Row],[Aantal dagen]])=0,\"\",IF(AND(W$5=$E14,$F14=1),Milestone_Markering,\"\")),\"\")","v":""},{"$f":"IFERROR(IF(LEN(Mijlpalen[[#This Row],[Aantal dagen]])=0,\"\",IF(AND(X$5=$E14,$F14=1),Milestone_Markering,\"\")),\"\")","v":""},{"$f":"IFERROR(IF(LEN(Mijlpalen[[#This Row],[Aantal dagen]])=0,\"\",IF(AND(Y$5=$E14,$F14=1),Milestone_Markering,\"\")),\"\")","v":""},{"$f":"IFERROR(IF(LEN(Mijlpalen[[#This Row],[Aantal dagen]])=0,\"\",IF(AND(Z$5=$E14,$F14=1),Milestone_Markering,\"\")),\"\")","v":""},{"$f":"IFERROR(IF(LEN(Mijlpalen[[#This Row],[Aantal dagen]])=0,\"\",IF(AND(AA$5=$E14,$F14=1),Milestone_Markering,\"\")),\"\")","v":""},{"$f":"IFERROR(IF(LEN(Mijlpalen[[#This Row],[Aantal dagen]])=0,\"\",IF(AND(AB$5=$E14,$F14=1),Milestone_Markering,\"\")),\"\")","v":""},{"$f":"IFERROR(IF(LEN(Mijlpalen[[#This Row],[Aantal dagen]])=0,\"\",IF(AND(AC$5=$E14,$F14=1),Milestone_Markering,\"\")),\"\")","v":""},{"$f":"IFERROR(IF(LEN(Mijlpalen[[#This Row],[Aantal dagen]])=0,\"\",IF(AND(AD$5=$E14,$F14=1),Milestone_Markering,\"\")),\"\")","v":""},{"$f":"IFERROR(IF(LEN(Mijlpalen[[#This Row],[Aantal dagen]])=0,\"\",IF(AND(AE$5=$E14,$F14=1),Milestone_Markering,\"\")),\"\")","v":""},{"$f":"IFERROR(IF(LEN(Mijlpalen[[#This Row],[Aantal dagen]])=0,\"\",IF(AND(AF$5=$E14,$F14=1),Milestone_Markering,\"\")),\"\")","v":""},{"$f":"IFERROR(IF(LEN(Mijlpalen[[#This Row],[Aantal dagen]])=0,\"\",IF(AND(AG$5=$E14,$F14=1),Milestone_Markering,\"\")),\"\")","v":""},{"$f":"IFERROR(IF(LEN(Mijlpalen[[#This Row],[Aantal dagen]])=0,\"\",IF(AND(AH$5=$E14,$F14=1),Milestone_Markering,\"\")),\"\")","v":""},{"$f":"IFERROR(IF(LEN(Mijlpalen[[#This Row],[Aantal dagen]])=0,\"\",IF(AND(AI$5=$E14,$F14=1),Milestone_Markering,\"\")),\"\")","v":""},{"$f":"IFERROR(IF(LEN(Mijlpalen[[#This Row],[Aantal dagen]])=0,\"\",IF(AND(AJ$5=$E14,$F14=1),Milestone_Markering,\"\")),\"\")","v":""},{"$f":"IFERROR(IF(LEN(Mijlpalen[[#This Row],[Aantal dagen]])=0,\"\",IF(AND(AK$5=$E14,$F14=1),Milestone_Markering,\"\")),\"\")","v":""},{"$f":"IFERROR(IF(LEN(Mijlpalen[[#This Row],[Aantal dagen]])=0,\"\",IF(AND(AL$5=$E14,$F14=1),Milestone_Markering,\"\")),\"\")","v":""},{"$f":"IFERROR(IF(LEN(Mijlpalen[[#This Row],[Aantal dagen]])=0,\"\",IF(AND(AM$5=$E14,$F14=1),Milestone_Markering,\"\")),\"\")","v":""},{"$f":"IFERROR(IF(LEN(Mijlpalen[[#This Row],[Aantal dagen]])=0,\"\",IF(AND(AN$5=$E14,$F14=1),Milestone_Markering,\"\")),\"\")","v":""},{"$f":"IFERROR(IF(LEN(Mijlpalen[[#This Row],[Aantal dagen]])=0,\"\",IF(AND(AO$5=$E14,$F14=1),Milestone_Markering,\"\")),\"\")","v":""},{"$f":"IFERROR(IF(LEN(Mijlpalen[[#This Row],[Aantal dagen]])=0,\"\",IF(AND(AP$5=$E14,$F14=1),Milestone_Markering,\"\")),\"\")","v":""},{"$f":"IFERROR(IF(LEN(Mijlpalen[[#This Row],[Aantal dagen]])=0,\"\",IF(AND(AQ$5=$E14,$F14=1),Milestone_Markering,\"\")),\"\")","v":""},{"$f":"IFERROR(IF(LEN(Mijlpalen[[#This Row],[Aantal dagen]])=0,\"\",IF(AND(AR$5=$E14,$F14=1),Milestone_Markering,\"\")),\"\")","v":""},{"$f":"IFERROR(IF(LEN(Mijlpalen[[#This Row],[Aantal dagen]])=0,\"\",IF(AND(AS$5=$E14,$F14=1),Milestone_Markering,\"\")),\"\")","v":""},{"$f":"IFERROR(IF(LEN(Mijlpalen[[#This Row],[Aantal dagen]])=0,\"\",IF(AND(AT$5=$E14,$F14=1),Milestone_Markering,\"\")),\"\")","v":""},{"$f":"IFERROR(IF(LEN(Mijlpalen[[#This Row],[Aantal dagen]])=0,\"\",IF(AND(AU$5=$E14,$F14=1),Milestone_Markering,\"\")),\"\")","v":""},{"$f":"IFERROR(IF(LEN(Mijlpalen[[#This Row],[Aantal dagen]])=0,\"\",IF(AND(AV$5=$E14,$F14=1),Milestone_Markering,\"\")),\"\")","v":""},{"$f":"IFERROR(IF(LEN(Mijlpalen[[#This Row],[Aantal dagen]])=0,\"\",IF(AND(AW$5=$E14,$F14=1),Milestone_Markering,\"\")),\"\")","v":""},{"$f":"IFERROR(IF(LEN(Mijlpalen[[#This Row],[Aantal dagen]])=0,\"\",IF(AND(AX$5=$E14,$F14=1),Milestone_Markering,\"\")),\"\")","v":""},{"$f":"IFERROR(IF(LEN(Mijlpalen[[#This Row],[Aantal dagen]])=0,\"\",IF(AND(AY$5=$E14,$F14=1),Milestone_Markering,\"\")),\"\")","v":""},{"$f":"IFERROR(IF(LEN(Mijlpalen[[#This Row],[Aantal dagen]])=0,\"\",IF(AND(AZ$5=$E14,$F14=1),Milestone_Markering,\"\")),\"\")","v":""},{"$f":"IFERROR(IF(LEN(Mijlpalen[[#This Row],[Aantal dagen]])=0,\"\",IF(AND(BA$5=$E14,$F14=1),Milestone_Markering,\"\")),\"\")","v":""},{"$f":"IFERROR(IF(LEN(Mijlpalen[[#This Row],[Aantal dagen]])=0,\"\",IF(AND(BB$5=$E14,$F14=1),Milestone_Markering,\"\")),\"\")","v":""},{"$f":"IFERROR(IF(LEN(Mijlpalen[[#This Row],[Aantal dagen]])=0,\"\",IF(AND(BC$5=$E14,$F14=1),Milestone_Markering,\"\")),\"\")","v":""},{"$f":"IFERROR(IF(LEN(Mijlpalen[[#This Row],[Aantal dagen]])=0,\"\",IF(AND(BD$5=$E14,$F14=1),Milestone_Markering,\"\")),\"\")","v":""},{"$f":"IFERROR(IF(LEN(Mijlpalen[[#This Row],[Aantal dagen]])=0,\"\",IF(AND(BE$5=$E14,$F14=1),Milestone_Markering,\"\")),\"\")","v":""},{"$f":"IFERROR(IF(LEN(Mijlpalen[[#This Row],[Aantal dagen]])=0,\"\",IF(AND(BF$5=$E14,$F14=1),Milestone_Markering,\"\")),\"\")","v":""},{"$f":"IFERROR(IF(LEN(Mijlpalen[[#This Row],[Aantal dagen]])=0,\"\",IF(AND(BG$5=$E14,$F14=1),Milestone_Markering,\"\")),\"\")","v":""},{"$f":"IFERROR(IF(LEN(Mijlpalen[[#This Row],[Aantal dagen]])=0,\"\",IF(AND(BH$5=$E14,$F14=1),Milestone_Markering,\"\")),\"\")","v":""},{"$f":"IFERROR(IF(LEN(Mijlpalen[[#This Row],[Aantal dagen]])=0,\"\",IF(AND(BI$5=$E14,$F14=1),Milestone_Markering,\"\")),\"\")","v":""},{"$f":"IFERROR(IF(LEN(Mijlpalen[[#This Row],[Aantal dagen]])=0,\"\",IF(AND(BJ$5=$E14,$F14=1),Milestone_Markering,\"\")),\"\")","v":""},{"$f":"IFERROR(IF(LEN(Mijlpalen[[#This Row],[Aantal dagen]])=0,\"\",IF(AND(BK$5=$E14,$F14=1),Milestone_Markering,\"\")),\"\")","v":""}]
[null,"Taak 1",null,{"v":0.6,"d":"60%"},{"$f":"TODAY()+6","v":"2018-09-25"},13,null,{"$f":"IFERROR(IF(LEN(Mijlpalen[[#This Row],[Aantal dagen]])=0,\"\",IF(AND(H$5=$E15,$F15=1),Milestone_Markering,\"\")),\"\")","v":""},{"$f":"IFERROR(IF(LEN(Mijlpalen[[#This Row],[Aantal dagen]])=0,\"\",IF(AND(I$5=$E15,$F15=1),Milestone_Markering,\"\")),\"\")","v":""},{"$f":"IFERROR(IF(LEN(Mijlpalen[[#This Row],[Aantal dagen]])=0,\"\",IF(AND(J$5=$E15,$F15=1),Milestone_Markering,\"\")),\"\")","v":""},{"$f":"IFERROR(IF(LEN(Mijlpalen[[#This Row],[Aantal dagen]])=0,\"\",IF(AND(K$5=$E15,$F15=1),Milestone_Markering,\"\")),\"\")","v":""},{"$f":"IFERROR(IF(LEN(Mijlpalen[[#This Row],[Aantal dagen]])=0,\"\",IF(AND(L$5=$E15,$F15=1),Milestone_Markering,\"\")),\"\")","v":""},{"$f":"IFERROR(IF(LEN(Mijlpalen[[#This Row],[Aantal dagen]])=0,\"\",IF(AND(M$5=$E15,$F15=1),Milestone_Markering,\"\")),\"\")","v":""},{"$f":"IFERROR(IF(LEN(Mijlpalen[[#This Row],[Aantal dagen]])=0,\"\",IF(AND(N$5=$E15,$F15=1),Milestone_Markering,\"\")),\"\")","v":""},{"$f":"IFERROR(IF(LEN(Mijlpalen[[#This Row],[Aantal dagen]])=0,\"\",IF(AND(O$5=$E15,$F15=1),Milestone_Markering,\"\")),\"\")","v":""},{"$f":"IFERROR(IF(LEN(Mijlpalen[[#This Row],[Aantal dagen]])=0,\"\",IF(AND(P$5=$E15,$F15=1),Milestone_Markering,\"\")),\"\")","v":""},{"$f":"IFERROR(IF(LEN(Mijlpalen[[#This Row],[Aantal dagen]])=0,\"\",IF(AND(Q$5=$E15,$F15=1),Milestone_Markering,\"\")),\"\")","v":""},{"$f":"IFERROR(IF(LEN(Mijlpalen[[#This Row],[Aantal dagen]])=0,\"\",IF(AND(R$5=$E15,$F15=1),Milestone_Markering,\"\")),\"\")","v":""},{"$f":"IFERROR(IF(LEN(Mijlpalen[[#This Row],[Aantal dagen]])=0,\"\",IF(AND(S$5=$E15,$F15=1),Milestone_Markering,\"\")),\"\")","v":""},{"$f":"IFERROR(IF(LEN(Mijlpalen[[#This Row],[Aantal dagen]])=0,\"\",IF(AND(T$5=$E15,$F15=1),Milestone_Markering,\"\")),\"\")","v":""},{"$f":"IFERROR(IF(LEN(Mijlpalen[[#This Row],[Aantal dagen]])=0,\"\",IF(AND(U$5=$E15,$F15=1),Milestone_Markering,\"\")),\"\")","v":""},{"$f":"IFERROR(IF(LEN(Mijlpalen[[#This Row],[Aantal dagen]])=0,\"\",IF(AND(V$5=$E15,$F15=1),Milestone_Markering,\"\")),\"\")","v":""},{"$f":"IFERROR(IF(LEN(Mijlpalen[[#This Row],[Aantal dagen]])=0,\"\",IF(AND(W$5=$E15,$F15=1),Milestone_Markering,\"\")),\"\")","v":""},{"$f":"IFERROR(IF(LEN(Mijlpalen[[#This Row],[Aantal dagen]])=0,\"\",IF(AND(X$5=$E15,$F15=1),Milestone_Markering,\"\")),\"\")","v":""},{"$f":"IFERROR(IF(LEN(Mijlpalen[[#This Row],[Aantal dagen]])=0,\"\",IF(AND(Y$5=$E15,$F15=1),Milestone_Markering,\"\")),\"\")","v":""},{"$f":"IFERROR(IF(LEN(Mijlpalen[[#This Row],[Aantal dagen]])=0,\"\",IF(AND(Z$5=$E15,$F15=1),Milestone_Markering,\"\")),\"\")","v":""},{"$f":"IFERROR(IF(LEN(Mijlpalen[[#This Row],[Aantal dagen]])=0,\"\",IF(AND(AA$5=$E15,$F15=1),Milestone_Markering,\"\")),\"\")","v":""},{"$f":"IFERROR(IF(LEN(Mijlpalen[[#This Row],[Aantal dagen]])=0,\"\",IF(AND(AB$5=$E15,$F15=1),Milestone_Markering,\"\")),\"\")","v":""},{"$f":"IFERROR(IF(LEN(Mijlpalen[[#This Row],[Aantal dagen]])=0,\"\",IF(AND(AC$5=$E15,$F15=1),Milestone_Markering,\"\")),\"\")","v":""},{"$f":"IFERROR(IF(LEN(Mijlpalen[[#This Row],[Aantal dagen]])=0,\"\",IF(AND(AD$5=$E15,$F15=1),Milestone_Markering,\"\")),\"\")","v":""},{"$f":"IFERROR(IF(LEN(Mijlpalen[[#This Row],[Aantal dagen]])=0,\"\",IF(AND(AE$5=$E15,$F15=1),Milestone_Markering,\"\")),\"\")","v":""},{"$f":"IFERROR(IF(LEN(Mijlpalen[[#This Row],[Aantal dagen]])=0,\"\",IF(AND(AF$5=$E15,$F15=1),Milestone_Markering,\"\")),\"\")","v":""},{"$f":"IFERROR(IF(LEN(Mijlpalen[[#This Row],[Aantal dagen]])=0,\"\",IF(AND(AG$5=$E15,$F15=1),Milestone_Markering,\"\")),\"\")","v":""},{"$f":"IFERROR(IF(LEN(Mijlpalen[[#This Row],[Aantal dagen]])=0,\"\",IF(AND(AH$5=$E15,$F15=1),Milestone_Markering,\"\")),\"\")","v":""},{"$f":"IFERROR(IF(LEN(Mijlpalen[[#This Row],[Aantal dagen]])=0,\"\",IF(AND(AI$5=$E15,$F15=1),Milestone_Markering,\"\")),\"\")","v":""},{"$f":"IFERROR(IF(LEN(Mijlpalen[[#This Row],[Aantal dagen]])=0,\"\",IF(AND(AJ$5=$E15,$F15=1),Milestone_Markering,\"\")),\"\")","v":""},{"$f":"IFERROR(IF(LEN(Mijlpalen[[#This Row],[Aantal dagen]])=0,\"\",IF(AND(AK$5=$E15,$F15=1),Milestone_Markering,\"\")),\"\")","v":""},{"$f":"IFERROR(IF(LEN(Mijlpalen[[#This Row],[Aantal dagen]])=0,\"\",IF(AND(AL$5=$E15,$F15=1),Milestone_Markering,\"\")),\"\")","v":""},{"$f":"IFERROR(IF(LEN(Mijlpalen[[#This Row],[Aantal dagen]])=0,\"\",IF(AND(AM$5=$E15,$F15=1),Milestone_Markering,\"\")),\"\")","v":""},{"$f":"IFERROR(IF(LEN(Mijlpalen[[#This Row],[Aantal dagen]])=0,\"\",IF(AND(AN$5=$E15,$F15=1),Milestone_Markering,\"\")),\"\")","v":""},{"$f":"IFERROR(IF(LEN(Mijlpalen[[#This Row],[Aantal dagen]])=0,\"\",IF(AND(AO$5=$E15,$F15=1),Milestone_Markering,\"\")),\"\")","v":""},{"$f":"IFERROR(IF(LEN(Mijlpalen[[#This Row],[Aantal dagen]])=0,\"\",IF(AND(AP$5=$E15,$F15=1),Milestone_Markering,\"\")),\"\")","v":""},{"$f":"IFERROR(IF(LEN(Mijlpalen[[#This Row],[Aantal dagen]])=0,\"\",IF(AND(AQ$5=$E15,$F15=1),Milestone_Markering,\"\")),\"\")","v":""},{"$f":"IFERROR(IF(LEN(Mijlpalen[[#This Row],[Aantal dagen]])=0,\"\",IF(AND(AR$5=$E15,$F15=1),Milestone_Markering,\"\")),\"\")","v":""},{"$f":"IFERROR(IF(LEN(Mijlpalen[[#This Row],[Aantal dagen]])=0,\"\",IF(AND(AS$5=$E15,$F15=1),Milestone_Markering,\"\")),\"\")","v":""},{"$f":"IFERROR(IF(LEN(Mijlpalen[[#This Row],[Aantal dagen]])=0,\"\",IF(AND(AT$5=$E15,$F15=1),Milestone_Markering,\"\")),\"\")","v":""},{"$f":"IFERROR(IF(LEN(Mijlpalen[[#This Row],[Aantal dagen]])=0,\"\",IF(AND(AU$5=$E15,$F15=1),Milestone_Markering,\"\")),\"\")","v":""},{"$f":"IFERROR(IF(LEN(Mijlpalen[[#This Row],[Aantal dagen]])=0,\"\",IF(AND(AV$5=$E15,$F15=1),Milestone_Markering,\"\")),\"\")","v":""},{"$f":"IFERROR(IF(LEN(Mijlpalen[[#This Row],[Aantal dagen]])=0,\"\",IF(AND(AW$5=$E15,$F15=1),Milestone_Markering,\"\")),\"\")","v":""},{"$f":"IFERROR(IF(LEN(Mijlpalen[[#This Row],[Aantal dagen]])=0,\"\",IF(AND(AX$5=$E15,$F15=1),Milestone_Markering,\"\")),\"\")","v":""},{"$f":"IFERROR(IF(LEN(Mijlpalen[[#This Row],[Aantal dagen]])=0,\"\",IF(AND(AY$5=$E15,$F15=1),Milestone_Markering,\"\")),\"\")","v":""},{"$f":"IFERROR(IF(LEN(Mijlpalen[[#This Row],[Aantal dagen]])=0,\"\",IF(AND(AZ$5=$E15,$F15=1),Milestone_Markering,\"\")),\"\")","v":""},{"$f":"IFERROR(IF(LEN(Mijlpalen[[#This Row],[Aantal dagen]])=0,\"\",IF(AND(BA$5=$E15,$F15=1),Milestone_Markering,\"\")),\"\")","v":""},{"$f":"IFERROR(IF(LEN(Mijlpalen[[#This Row],[Aantal dagen]])=0,\"\",IF(AND(BB$5=$E15,$F15=1),Milestone_Markering,\"\")),\"\")","v":""},{"$f":"IFERROR(IF(LEN(Mijlpalen[[#This Row],[Aantal dagen]])=0,\"\",IF(AND(BC$5=$E15,$F15=1),Milestone_Markering,\"\")),\"\")","v":""},{"$f":"IFERROR(IF(LEN(Mijlpalen[[#This Row],[Aantal dagen]])=0,\"\",IF(AND(BD$5=$E15,$F15=1),Milestone_Markering,\"\")),\"\")","v":""},{"$f":"IFERROR(IF(LEN(Mijlpalen[[#This Row],[Aantal dagen]])=0,\"\",IF(AND(BE$5=$E15,$F15=1),Milestone_Markering,\"\")),\"\")","v":""},{"$f":"IFERROR(IF(LEN(Mijlpalen[[#This Row],[Aantal dagen]])=0,\"\",IF(AND(BF$5=$E15,$F15=1),Milestone_Markering,\"\")),\"\")","v":""},{"$f":"IFERROR(IF(LEN(Mijlpalen[[#This Row],[Aantal dagen]])=0,\"\",IF(AND(BG$5=$E15,$F15=1),Milestone_Markering,\"\")),\"\")","v":""},{"$f":"IFERROR(IF(LEN(Mijlpalen[[#This Row],[Aantal dagen]])=0,\"\",IF(AND(BH$5=$E15,$F15=1),Milestone_Markering,\"\")),\"\")","v":""},{"$f":"IFERROR(IF(LEN(Mijlpalen[[#This Row],[Aantal dagen]])=0,\"\",IF(AND(BI$5=$E15,$F15=1),Milestone_Markering,\"\")),\"\")","v":""},{"$f":"IFERROR(IF(LEN(Mijlpalen[[#This Row],[Aantal dagen]])=0,\"\",IF(AND(BJ$5=$E15,$F15=1),Milestone_Markering,\"\")),\"\")","v":""},{"$f":"IFERROR(IF(LEN(Mijlpalen[[#This Row],[Aantal dagen]])=0,\"\",IF(AND(BK$5=$E15,$F15=1),Milestone_Markering,\"\")),\"\")","v":""}]
[null,"Taak 2",null,{"v":0.5,"d":"50%"},{"$f":"TODAY()+7","v":"2018-09-26"},9,null,{"$f":"IFERROR(IF(LEN(Mijlpalen[[#This Row],[Aantal dagen]])=0,\"\",IF(AND(H$5=$E16,$F16=1),Milestone_Markering,\"\")),\"\")","v":""},{"$f":"IFERROR(IF(LEN(Mijlpalen[[#This Row],[Aantal dagen]])=0,\"\",IF(AND(I$5=$E16,$F16=1),Milestone_Markering,\"\")),\"\")","v":""},{"$f":"IFERROR(IF(LEN(Mijlpalen[[#This Row],[Aantal dagen]])=0,\"\",IF(AND(J$5=$E16,$F16=1),Milestone_Markering,\"\")),\"\")","v":""},{"$f":"IFERROR(IF(LEN(Mijlpalen[[#This Row],[Aantal dagen]])=0,\"\",IF(AND(K$5=$E16,$F16=1),Milestone_Markering,\"\")),\"\")","v":""},{"$f":"IFERROR(IF(LEN(Mijlpalen[[#This Row],[Aantal dagen]])=0,\"\",IF(AND(L$5=$E16,$F16=1),Milestone_Markering,\"\")),\"\")","v":""},{"$f":"IFERROR(IF(LEN(Mijlpalen[[#This Row],[Aantal dagen]])=0,\"\",IF(AND(M$5=$E16,$F16=1),Milestone_Markering,\"\")),\"\")","v":""},{"$f":"IFERROR(IF(LEN(Mijlpalen[[#This Row],[Aantal dagen]])=0,\"\",IF(AND(N$5=$E16,$F16=1),Milestone_Markering,\"\")),\"\")","v":""},{"$f":"IFERROR(IF(LEN(Mijlpalen[[#This Row],[Aantal dagen]])=0,\"\",IF(AND(O$5=$E16,$F16=1),Milestone_Markering,\"\")),\"\")","v":""},{"$f":"IFERROR(IF(LEN(Mijlpalen[[#This Row],[Aantal dagen]])=0,\"\",IF(AND(P$5=$E16,$F16=1),Milestone_Markering,\"\")),\"\")","v":""},{"$f":"IFERROR(IF(LEN(Mijlpalen[[#This Row],[Aantal dagen]])=0,\"\",IF(AND(Q$5=$E16,$F16=1),Milestone_Markering,\"\")),\"\")","v":""},{"$f":"IFERROR(IF(LEN(Mijlpalen[[#This Row],[Aantal dagen]])=0,\"\",IF(AND(R$5=$E16,$F16=1),Milestone_Markering,\"\")),\"\")","v":""},{"$f":"IFERROR(IF(LEN(Mijlpalen[[#This Row],[Aantal dagen]])=0,\"\",IF(AND(S$5=$E16,$F16=1),Milestone_Markering,\"\")),\"\")","v":""},{"$f":"IFERROR(IF(LEN(Mijlpalen[[#This Row],[Aantal dagen]])=0,\"\",IF(AND(T$5=$E16,$F16=1),Milestone_Markering,\"\")),\"\")","v":""},{"$f":"IFERROR(IF(LEN(Mijlpalen[[#This Row],[Aantal dagen]])=0,\"\",IF(AND(U$5=$E16,$F16=1),Milestone_Markering,\"\")),\"\")","v":""},{"$f":"IFERROR(IF(LEN(Mijlpalen[[#This Row],[Aantal dagen]])=0,\"\",IF(AND(V$5=$E16,$F16=1),Milestone_Markering,\"\")),\"\")","v":""},{"$f":"IFERROR(IF(LEN(Mijlpalen[[#This Row],[Aantal dagen]])=0,\"\",IF(AND(W$5=$E16,$F16=1),Milestone_Markering,\"\")),\"\")","v":""},{"$f":"IFERROR(IF(LEN(Mijlpalen[[#This Row],[Aantal dagen]])=0,\"\",IF(AND(X$5=$E16,$F16=1),Milestone_Markering,\"\")),\"\")","v":""},{"$f":"IFERROR(IF(LEN(Mijlpalen[[#This Row],[Aantal dagen]])=0,\"\",IF(AND(Y$5=$E16,$F16=1),Milestone_Markering,\"\")),\"\")","v":""},{"$f":"IFERROR(IF(LEN(Mijlpalen[[#This Row],[Aantal dagen]])=0,\"\",IF(AND(Z$5=$E16,$F16=1),Milestone_Markering,\"\")),\"\")","v":""},{"$f":"IFERROR(IF(LEN(Mijlpalen[[#This Row],[Aantal dagen]])=0,\"\",IF(AND(AA$5=$E16,$F16=1),Milestone_Markering,\"\")),\"\")","v":""},{"$f":"IFERROR(IF(LEN(Mijlpalen[[#This Row],[Aantal dagen]])=0,\"\",IF(AND(AB$5=$E16,$F16=1),Milestone_Markering,\"\")),\"\")","v":""},{"$f":"IFERROR(IF(LEN(Mijlpalen[[#This Row],[Aantal dagen]])=0,\"\",IF(AND(AC$5=$E16,$F16=1),Milestone_Markering,\"\")),\"\")","v":""},{"$f":"IFERROR(IF(LEN(Mijlpalen[[#This Row],[Aantal dagen]])=0,\"\",IF(AND(AD$5=$E16,$F16=1),Milestone_Markering,\"\")),\"\")","v":""},{"$f":"IFERROR(IF(LEN(Mijlpalen[[#This Row],[Aantal dagen]])=0,\"\",IF(AND(AE$5=$E16,$F16=1),Milestone_Markering,\"\")),\"\")","v":""},{"$f":"IFERROR(IF(LEN(Mijlpalen[[#This Row],[Aantal dagen]])=0,\"\",IF(AND(AF$5=$E16,$F16=1),Milestone_Markering,\"\")),\"\")","v":""},{"$f":"IFERROR(IF(LEN(Mijlpalen[[#This Row],[Aantal dagen]])=0,\"\",IF(AND(AG$5=$E16,$F16=1),Milestone_Markering,\"\")),\"\")","v":""},{"$f":"IFERROR(IF(LEN(Mijlpalen[[#This Row],[Aantal dagen]])=0,\"\",IF(AND(AH$5=$E16,$F16=1),Milestone_Markering,\"\")),\"\")","v":""},{"$f":"IFERROR(IF(LEN(Mijlpalen[[#This Row],[Aantal dagen]])=0,\"\",IF(AND(AI$5=$E16,$F16=1),Milestone_Markering,\"\")),\"\")","v":""},{"$f":"IFERROR(IF(LEN(Mijlpalen[[#This Row],[Aantal dagen]])=0,\"\",IF(AND(AJ$5=$E16,$F16=1),Milestone_Markering,\"\")),\"\")","v":""},{"$f":"IFERROR(IF(LEN(Mijlpalen[[#This Row],[Aantal dagen]])=0,\"\",IF(AND(AK$5=$E16,$F16=1),Milestone_Markering,\"\")),\"\")","v":""},{"$f":"IFERROR(IF(LEN(Mijlpalen[[#This Row],[Aantal dagen]])=0,\"\",IF(AND(AL$5=$E16,$F16=1),Milestone_Markering,\"\")),\"\")","v":""},{"$f":"IFERROR(IF(LEN(Mijlpalen[[#This Row],[Aantal dagen]])=0,\"\",IF(AND(AM$5=$E16,$F16=1),Milestone_Markering,\"\")),\"\")","v":""},{"$f":"IFERROR(IF(LEN(Mijlpalen[[#This Row],[Aantal dagen]])=0,\"\",IF(AND(AN$5=$E16,$F16=1),Milestone_Markering,\"\")),\"\")","v":""},{"$f":"IFERROR(IF(LEN(Mijlpalen[[#This Row],[Aantal dagen]])=0,\"\",IF(AND(AO$5=$E16,$F16=1),Milestone_Markering,\"\")),\"\")","v":""},{"$f":"IFERROR(IF(LEN(Mijlpalen[[#This Row],[Aantal dagen]])=0,\"\",IF(AND(AP$5=$E16,$F16=1),Milestone_Markering,\"\")),\"\")","v":""},{"$f":"IFERROR(IF(LEN(Mijlpalen[[#This Row],[Aantal dagen]])=0,\"\",IF(AND(AQ$5=$E16,$F16=1),Milestone_Markering,\"\")),\"\")","v":""},{"$f":"IFERROR(IF(LEN(Mijlpalen[[#This Row],[Aantal dagen]])=0,\"\",IF(AND(AR$5=$E16,$F16=1),Milestone_Markering,\"\")),\"\")","v":""},{"$f":"IFERROR(IF(LEN(Mijlpalen[[#This Row],[Aantal dagen]])=0,\"\",IF(AND(AS$5=$E16,$F16=1),Milestone_Markering,\"\")),\"\")","v":""},{"$f":"IFERROR(IF(LEN(Mijlpalen[[#This Row],[Aantal dagen]])=0,\"\",IF(AND(AT$5=$E16,$F16=1),Milestone_Markering,\"\")),\"\")","v":""},{"$f":"IFERROR(IF(LEN(Mijlpalen[[#This Row],[Aantal dagen]])=0,\"\",IF(AND(AU$5=$E16,$F16=1),Milestone_Markering,\"\")),\"\")","v":""},{"$f":"IFERROR(IF(LEN(Mijlpalen[[#This Row],[Aantal dagen]])=0,\"\",IF(AND(AV$5=$E16,$F16=1),Milestone_Markering,\"\")),\"\")","v":""},{"$f":"IFERROR(IF(LEN(Mijlpalen[[#This Row],[Aantal dagen]])=0,\"\",IF(AND(AW$5=$E16,$F16=1),Milestone_Markering,\"\")),\"\")","v":""},{"$f":"IFERROR(IF(LEN(Mijlpalen[[#This Row],[Aantal dagen]])=0,\"\",IF(AND(AX$5=$E16,$F16=1),Milestone_Markering,\"\")),\"\")","v":""},{"$f":"IFERROR(IF(LEN(Mijlpalen[[#This Row],[Aantal dagen]])=0,\"\",IF(AND(AY$5=$E16,$F16=1),Milestone_Markering,\"\")),\"\")","v":""},{"$f":"IFERROR(IF(LEN(Mijlpalen[[#This Row],[Aantal dagen]])=0,\"\",IF(AND(AZ$5=$E16,$F16=1),Milestone_Markering,\"\")),\"\")","v":""},{"$f":"IFERROR(IF(LEN(Mijlpalen[[#This Row],[Aantal dagen]])=0,\"\",IF(AND(BA$5=$E16,$F16=1),Milestone_Markering,\"\")),\"\")","v":""},{"$f":"IFERROR(IF(LEN(Mijlpalen[[#This Row],[Aantal dagen]])=0,\"\",IF(AND(BB$5=$E16,$F16=1),Milestone_Markering,\"\")),\"\")","v":""},{"$f":"IFERROR(IF(LEN(Mijlpalen[[#This Row],[Aantal dagen]])=0,\"\",IF(AND(BC$5=$E16,$F16=1),Milestone_Markering,\"\")),\"\")","v":""},{"$f":"IFERROR(IF(LEN(Mijlpalen[[#This Row],[Aantal dagen]])=0,\"\",IF(AND(BD$5=$E16,$F16=1),Milestone_Markering,\"\")),\"\")","v":""},{"$f":"IFERROR(IF(LEN(Mijlpalen[[#This Row],[Aantal dagen]])=0,\"\",IF(AND(BE$5=$E16,$F16=1),Milestone_Markering,\"\")),\"\")","v":""},{"$f":"IFERROR(IF(LEN(Mijlpalen[[#This Row],[Aantal dagen]])=0,\"\",IF(AND(BF$5=$E16,$F16=1),Milestone_Markering,\"\")),\"\")","v":""},{"$f":"IFERROR(IF(LEN(Mijlpalen[[#This Row],[Aantal dagen]])=0,\"\",IF(AND(BG$5=$E16,$F16=1),Milestone_Markering,\"\")),\"\")","v":""},{"$f":"IFERROR(IF(LEN(Mijlpalen[[#This Row],[Aantal dagen]])=0,\"\",IF(AND(BH$5=$E16,$F16=1),Milestone_Markering,\"\")),\"\")","v":""},{"$f":"IFERROR(IF(LEN(Mijlpalen[[#This Row],[Aantal dagen]])=0,\"\",IF(AND(BI$5=$E16,$F16=1),Milestone_Markering,\"\")),\"\")","v":""},{"$f":"IFERROR(IF(LEN(Mijlpalen[[#This Row],[Aantal dagen]])=0,\"\",IF(AND(BJ$5=$E16,$F16=1),Milestone_Markering,\"\")),\"\")","v":""},{"$f":"IFERROR(IF(LEN(Mijlpalen[[#This Row],[Aantal dagen]])=0,\"\",IF(AND(BK$5=$E16,$F16=1),Milestone_Markering,\"\")),\"\")","v":""}]
[null,"Taak 3",null,{"v":0.33,"d":"33%"},{"$f":"TODAY()+15","v":"2018-10-04"},11,null,{"$f":"IFERROR(IF(LEN(Mijlpalen[[#This Row],[Aantal dagen]])=0,\"\",IF(AND(H$5=$E17,$F17=1),Milestone_Markering,\"\")),\"\")","v":""},{"$f":"IFERROR(IF(LEN(Mijlpalen[[#This Row],[Aantal dagen]])=0,\"\",IF(AND(I$5=$E17,$F17=1),Milestone_Markering,\"\")),\"\")","v":""},{"$f":"IFERROR(IF(LEN(Mijlpalen[[#This Row],[Aantal dagen]])=0,\"\",IF(AND(J$5=$E17,$F17=1),Milestone_Markering,\"\")),\"\")","v":""},{"$f":"IFERROR(IF(LEN(Mijlpalen[[#This Row],[Aantal dagen]])=0,\"\",IF(AND(K$5=$E17,$F17=1),Milestone_Markering,\"\")),\"\")","v":""},{"$f":"IFERROR(IF(LEN(Mijlpalen[[#This Row],[Aantal dagen]])=0,\"\",IF(AND(L$5=$E17,$F17=1),Milestone_Markering,\"\")),\"\")","v":""},{"$f":"IFERROR(IF(LEN(Mijlpalen[[#This Row],[Aantal dagen]])=0,\"\",IF(AND(M$5=$E17,$F17=1),Milestone_Markering,\"\")),\"\")","v":""},{"$f":"IFERROR(IF(LEN(Mijlpalen[[#This Row],[Aantal dagen]])=0,\"\",IF(AND(N$5=$E17,$F17=1),Milestone_Markering,\"\")),\"\")","v":""},{"$f":"IFERROR(IF(LEN(Mijlpalen[[#This Row],[Aantal dagen]])=0,\"\",IF(AND(O$5=$E17,$F17=1),Milestone_Markering,\"\")),\"\")","v":""},{"$f":"IFERROR(IF(LEN(Mijlpalen[[#This Row],[Aantal dagen]])=0,\"\",IF(AND(P$5=$E17,$F17=1),Milestone_Markering,\"\")),\"\")","v":""},{"$f":"IFERROR(IF(LEN(Mijlpalen[[#This Row],[Aantal dagen]])=0,\"\",IF(AND(Q$5=$E17,$F17=1),Milestone_Markering,\"\")),\"\")","v":""},{"$f":"IFERROR(IF(LEN(Mijlpalen[[#This Row],[Aantal dagen]])=0,\"\",IF(AND(R$5=$E17,$F17=1),Milestone_Markering,\"\")),\"\")","v":""},{"$f":"IFERROR(IF(LEN(Mijlpalen[[#This Row],[Aantal dagen]])=0,\"\",IF(AND(S$5=$E17,$F17=1),Milestone_Markering,\"\")),\"\")","v":""},{"$f":"IFERROR(IF(LEN(Mijlpalen[[#This Row],[Aantal dagen]])=0,\"\",IF(AND(T$5=$E17,$F17=1),Milestone_Markering,\"\")),\"\")","v":""},{"$f":"IFERROR(IF(LEN(Mijlpalen[[#This Row],[Aantal dagen]])=0,\"\",IF(AND(U$5=$E17,$F17=1),Milestone_Markering,\"\")),\"\")","v":""},{"$f":"IFERROR(IF(LEN(Mijlpalen[[#This Row],[Aantal dagen]])=0,\"\",IF(AND(V$5=$E17,$F17=1),Milestone_Markering,\"\")),\"\")","v":""},{"$f":"IFERROR(IF(LEN(Mijlpalen[[#This Row],[Aantal dagen]])=0,\"\",IF(AND(W$5=$E17,$F17=1),Milestone_Markering,\"\")),\"\")","v":""},{"$f":"IFERROR(IF(LEN(Mijlpalen[[#This Row],[Aantal dagen]])=0,\"\",IF(AND(X$5=$E17,$F17=1),Milestone_Markering,\"\")),\"\")","v":""},{"$f":"IFERROR(IF(LEN(Mijlpalen[[#This Row],[Aantal dagen]])=0,\"\",IF(AND(Y$5=$E17,$F17=1),Milestone_Markering,\"\")),\"\")","v":""},{"$f":"IFERROR(IF(LEN(Mijlpalen[[#This Row],[Aantal dagen]])=0,\"\",IF(AND(Z$5=$E17,$F17=1),Milestone_Markering,\"\")),\"\")","v":""},{"$f":"IFERROR(IF(LEN(Mijlpalen[[#This Row],[Aantal dagen]])=0,\"\",IF(AND(AA$5=$E17,$F17=1),Milestone_Markering,\"\")),\"\")","v":""},{"$f":"IFERROR(IF(LEN(Mijlpalen[[#This Row],[Aantal dagen]])=0,\"\",IF(AND(AB$5=$E17,$F17=1),Milestone_Markering,\"\")),\"\")","v":""},{"$f":"IFERROR(IF(LEN(Mijlpalen[[#This Row],[Aantal dagen]])=0,\"\",IF(AND(AC$5=$E17,$F17=1),Milestone_Markering,\"\")),\"\")","v":""},{"$f":"IFERROR(IF(LEN(Mijlpalen[[#This Row],[Aantal dagen]])=0,\"\",IF(AND(AD$5=$E17,$F17=1),Milestone_Markering,\"\")),\"\")","v":""},{"$f":"IFERROR(IF(LEN(Mijlpalen[[#This Row],[Aantal dagen]])=0,\"\",IF(AND(AE$5=$E17,$F17=1),Milestone_Markering,\"\")),\"\")","v":""},{"$f":"IFERROR(IF(LEN(Mijlpalen[[#This Row],[Aantal dagen]])=0,\"\",IF(AND(AF$5=$E17,$F17=1),Milestone_Markering,\"\")),\"\")","v":""},{"$f":"IFERROR(IF(LEN(Mijlpalen[[#This Row],[Aantal dagen]])=0,\"\",IF(AND(AG$5=$E17,$F17=1),Milestone_Markering,\"\")),\"\")","v":""},{"$f":"IFERROR(IF(LEN(Mijlpalen[[#This Row],[Aantal dagen]])=0,\"\",IF(AND(AH$5=$E17,$F17=1),Milestone_Markering,\"\")),\"\")","v":""},{"$f":"IFERROR(IF(LEN(Mijlpalen[[#This Row],[Aantal dagen]])=0,\"\",IF(AND(AI$5=$E17,$F17=1),Milestone_Markering,\"\")),\"\")","v":""},{"$f":"IFERROR(IF(LEN(Mijlpalen[[#This Row],[Aantal dagen]])=0,\"\",IF(AND(AJ$5=$E17,$F17=1),Milestone_Markering,\"\")),\"\")","v":""},{"$f":"IFERROR(IF(LEN(Mijlpalen[[#This Row],[Aantal dagen]])=0,\"\",IF(AND(AK$5=$E17,$F17=1),Milestone_Markering,\"\")),\"\")","v":""},{"$f":"IFERROR(IF(LEN(Mijlpalen[[#This Row],[Aantal dagen]])=0,\"\",IF(AND(AL$5=$E17,$F17=1),Milestone_Markering,\"\")),\"\")","v":""},{"$f":"IFERROR(IF(LEN(Mijlpalen[[#This Row],[Aantal dagen]])=0,\"\",IF(AND(AM$5=$E17,$F17=1),Milestone_Markering,\"\")),\"\")","v":""},{"$f":"IFERROR(IF(LEN(Mijlpalen[[#This Row],[Aantal dagen]])=0,\"\",IF(AND(AN$5=$E17,$F17=1),Milestone_Markering,\"\")),\"\")","v":""},{"$f":"IFERROR(IF(LEN(Mijlpalen[[#This Row],[Aantal dagen]])=0,\"\",IF(AND(AO$5=$E17,$F17=1),Milestone_Markering,\"\")),\"\")","v":""},{"$f":"IFERROR(IF(LEN(Mijlpalen[[#This Row],[Aantal dagen]])=0,\"\",IF(AND(AP$5=$E17,$F17=1),Milestone_Markering,\"\")),\"\")","v":""},{"$f":"IFERROR(IF(LEN(Mijlpalen[[#This Row],[Aantal dagen]])=0,\"\",IF(AND(AQ$5=$E17,$F17=1),Milestone_Markering,\"\")),\"\")","v":""},{"$f":"IFERROR(IF(LEN(Mijlpalen[[#This Row],[Aantal dagen]])=0,\"\",IF(AND(AR$5=$E17,$F17=1),Milestone_Markering,\"\")),\"\")","v":""},{"$f":"IFERROR(IF(LEN(Mijlpalen[[#This Row],[Aantal dagen]])=0,\"\",IF(AND(AS$5=$E17,$F17=1),Milestone_Markering,\"\")),\"\")","v":""},{"$f":"IFERROR(IF(LEN(Mijlpalen[[#This Row],[Aantal dagen]])=0,\"\",IF(AND(AT$5=$E17,$F17=1),Milestone_Markering,\"\")),\"\")","v":""},{"$f":"IFERROR(IF(LEN(Mijlpalen[[#This Row],[Aantal dagen]])=0,\"\",IF(AND(AU$5=$E17,$F17=1),Milestone_Markering,\"\")),\"\")","v":""},{"$f":"IFERROR(IF(LEN(Mijlpalen[[#This Row],[Aantal dagen]])=0,\"\",IF(AND(AV$5=$E17,$F17=1),Milestone_Markering,\"\")),\"\")","v":""},{"$f":"IFERROR(IF(LEN(Mijlpalen[[#This Row],[Aantal dagen]])=0,\"\",IF(AND(AW$5=$E17,$F17=1),Milestone_Markering,\"\")),\"\")","v":""},{"$f":"IFERROR(IF(LEN(Mijlpalen[[#This Row],[Aantal dagen]])=0,\"\",IF(AND(AX$5=$E17,$F17=1),Milestone_Markering,\"\")),\"\")","v":""},{"$f":"IFERROR(IF(LEN(Mijlpalen[[#This Row],[Aantal dagen]])=0,\"\",IF(AND(AY$5=$E17,$F17=1),Milestone_Markering,\"\")),\"\")","v":""},{"$f":"IFERROR(IF(LEN(Mijlpalen[[#This Row],[Aantal dagen]])=0,\"\",IF(AND(AZ$5=$E17,$F17=1),Milestone_Markering,\"\")),\"\")","v":""},{"$f":"IFERROR(IF(LEN(Mijlpalen[[#This Row],[Aantal dagen]])=0,\"\",IF(AND(BA$5=$E17,$F17=1),Milestone_Markering,\"\")),\"\")","v":""},{"$f":"IFERROR(IF(LEN(Mijlpalen[[#This Row],[Aantal dagen]])=0,\"\",IF(AND(BB$5=$E17,$F17=1),Milestone_Markering,\"\")),\"\")","v":""},{"$f":"IFERROR(IF(LEN(Mijlpalen[[#This Row],[Aantal dagen]])=0,\"\",IF(AND(BC$5=$E17,$F17=1),Milestone_Markering,\"\")),\"\")","v":""},{"$f":"IFERROR(IF(LEN(Mijlpalen[[#This Row],[Aantal dagen]])=0,\"\",IF(AND(BD$5=$E17,$F17=1),Milestone_Markering,\"\")),\"\")","v":""},{"$f":"IFERROR(IF(LEN(Mijlpalen[[#This Row],[Aantal dagen]])=0,\"\",IF(AND(BE$5=$E17,$F17=1),Milestone_Markering,\"\")),\"\")","v":""},{"$f":"IFERROR(IF(LEN(Mijlpalen[[#This Row],[Aantal dagen]])=0,\"\",IF(AND(BF$5=$E17,$F17=1),Milestone_Markering,\"\")),\"\")","v":""},{"$f":"IFERROR(IF(LEN(Mijlpalen[[#This Row],[Aantal dagen]])=0,\"\",IF(AND(BG$5=$E17,$F17=1),Milestone_Markering,\"\")),\"\")","v":""},{"$f":"IFERROR(IF(LEN(Mijlpalen[[#This Row],[Aantal dagen]])=0,\"\",IF(AND(BH$5=$E17,$F17=1),Milestone_Markering,\"\")),\"\")","v":""},{"$f":"IFERROR(IF(LEN(Mijlpalen[[#This Row],[Aantal dagen]])=0,\"\",IF(AND(BI$5=$E17,$F17=1),Milestone_Markering,\"\")),\"\")","v":""},{"$f":"IFERROR(IF(LEN(Mijlpalen[[#This Row],[Aantal dagen]])=0,\"\",IF(AND(BJ$5=$E17,$F17=1),Milestone_Markering,\"\")),\"\")","v":""},{"$f":"IFERROR(IF(LEN(Mijlpalen[[#This Row],[Aantal dagen]])=0,\"\",IF(AND(BK$5=$E17,$F17=1),Milestone_Markering,\"\")),\"\")","v":""}]
[null,"Taak 4",null,null,{"$f":"TODAY()+24","v":"2018-10-13"},1,null,{"$f":"IFERROR(IF(LEN(Mijlpalen[[#This Row],[Aantal dagen]])=0,\"\",IF(AND(H$5=$E18,$F18=1),Milestone_Markering,\"\")),\"\")","v":""},{"$f":"IFERROR(IF(LEN(Mijlpalen[[#This Row],[Aantal dagen]])=0,\"\",IF(AND(I$5=$E18,$F18=1),Milestone_Markering,\"\")),\"\")","v":""},{"$f":"IFERROR(IF(LEN(Mijlpalen[[#This Row],[Aantal dagen]])=0,\"\",IF(AND(J$5=$E18,$F18=1),Milestone_Markering,\"\")),\"\")","v":""},{"$f":"IFERROR(IF(LEN(Mijlpalen[[#This Row],[Aantal dagen]])=0,\"\",IF(AND(K$5=$E18,$F18=1),Milestone_Markering,\"\")),\"\")","v":""},{"$f":"IFERROR(IF(LEN(Mijlpalen[[#This Row],[Aantal dagen]])=0,\"\",IF(AND(L$5=$E18,$F18=1),Milestone_Markering,\"\")),\"\")","v":""},{"$f":"IFERROR(IF(LEN(Mijlpalen[[#This Row],[Aantal dagen]])=0,\"\",IF(AND(M$5=$E18,$F18=1),Milestone_Markering,\"\")),\"\")","v":""},{"$f":"IFERROR(IF(LEN(Mijlpalen[[#This Row],[Aantal dagen]])=0,\"\",IF(AND(N$5=$E18,$F18=1),Milestone_Markering,\"\")),\"\")","v":""},{"$f":"IFERROR(IF(LEN(Mijlpalen[[#This Row],[Aantal dagen]])=0,\"\",IF(AND(O$5=$E18,$F18=1),Milestone_Markering,\"\")),\"\")","v":""},{"$f":"IFERROR(IF(LEN(Mijlpalen[[#This Row],[Aantal dagen]])=0,\"\",IF(AND(P$5=$E18,$F18=1),Milestone_Markering,\"\")),\"\")","v":""},{"$f":"IFERROR(IF(LEN(Mijlpalen[[#This Row],[Aantal dagen]])=0,\"\",IF(AND(Q$5=$E18,$F18=1),Milestone_Markering,\"\")),\"\")","v":""},{"$f":"IFERROR(IF(LEN(Mijlpalen[[#This Row],[Aantal dagen]])=0,\"\",IF(AND(R$5=$E18,$F18=1),Milestone_Markering,\"\")),\"\")","v":""},{"$f":"IFERROR(IF(LEN(Mijlpalen[[#This Row],[Aantal dagen]])=0,\"\",IF(AND(S$5=$E18,$F18=1),Milestone_Markering,\"\")),\"\")","v":""},{"$f":"IFERROR(IF(LEN(Mijlpalen[[#This Row],[Aantal dagen]])=0,\"\",IF(AND(T$5=$E18,$F18=1),Milestone_Markering,\"\")),\"\")","v":""},{"$f":"IFERROR(IF(LEN(Mijlpalen[[#This Row],[Aantal dagen]])=0,\"\",IF(AND(U$5=$E18,$F18=1),Milestone_Markering,\"\")),\"\")","v":""},{"$f":"IFERROR(IF(LEN(Mijlpalen[[#This Row],[Aantal dagen]])=0,\"\",IF(AND(V$5=$E18,$F18=1),Milestone_Markering,\"\")),\"\")","v":""},{"$f":"IFERROR(IF(LEN(Mijlpalen[[#This Row],[Aantal dagen]])=0,\"\",IF(AND(W$5=$E18,$F18=1),Milestone_Markering,\"\")),\"\")","v":""},{"$f":"IFERROR(IF(LEN(Mijlpalen[[#This Row],[Aantal dagen]])=0,\"\",IF(AND(X$5=$E18,$F18=1),Milestone_Markering,\"\")),\"\")","v":""},{"$f":"IFERROR(IF(LEN(Mijlpalen[[#This Row],[Aantal dagen]])=0,\"\",IF(AND(Y$5=$E18,$F18=1),Milestone_Markering,\"\")),\"\")","v":""},{"$f":"IFERROR(IF(LEN(Mijlpalen[[#This Row],[Aantal dagen]])=0,\"\",IF(AND(Z$5=$E18,$F18=1),Milestone_Markering,\"\")),\"\")","v":""},{"$f":"IFERROR(IF(LEN(Mijlpalen[[#This Row],[Aantal dagen]])=0,\"\",IF(AND(AA$5=$E18,$F18=1),Milestone_Markering,\"\")),\"\")","v":""},{"$f":"IFERROR(IF(LEN(Mijlpalen[[#This Row],[Aantal dagen]])=0,\"\",IF(AND(AB$5=$E18,$F18=1),Milestone_Markering,\"\")),\"\")","v":""},{"$f":"IFERROR(IF(LEN(Mijlpalen[[#This Row],[Aantal dagen]])=0,\"\",IF(AND(AC$5=$E18,$F18=1),Milestone_Markering,\"\")),\"\")","v":""},{"$f":"IFERROR(IF(LEN(Mijlpalen[[#This Row],[Aantal dagen]])=0,\"\",IF(AND(AD$5=$E18,$F18=1),Milestone_Markering,\"\")),\"\")","v":""},{"$f":"IFERROR(IF(LEN(Mijlpalen[[#This Row],[Aantal dagen]])=0,\"\",IF(AND(AE$5=$E18,$F18=1),Milestone_Markering,\"\")),\"\")","v":""},{"$f":"IFERROR(IF(LEN(Mijlpalen[[#This Row],[Aantal dagen]])=0,\"\",IF(AND(AF$5=$E18,$F18=1),Milestone_Markering,\"\")),\"\")","v":""},{"$f":"IFERROR(IF(LEN(Mijlpalen[[#This Row],[Aantal dagen]])=0,\"\",IF(AND(AG$5=$E18,$F18=1),Milestone_Markering,\"\")),\"\")","v":""},{"$f":"IFERROR(IF(LEN(Mijlpalen[[#This Row],[Aantal dagen]])=0,\"\",IF(AND(AH$5=$E18,$F18=1),Milestone_Markering,\"\")),\"\")","v":""},{"$f":"IFERROR(IF(LEN(Mijlpalen[[#This Row],[Aantal dagen]])=0,\"\",IF(AND(AI$5=$E18,$F18=1),Milestone_Markering,\"\")),\"\")","v":1},{"$f":"IFERROR(IF(LEN(Mijlpalen[[#This Row],[Aantal dagen]])=0,\"\",IF(AND(AJ$5=$E18,$F18=1),Milestone_Markering,\"\")),\"\")","v":""},{"$f":"IFERROR(IF(LEN(Mijlpalen[[#This Row],[Aantal dagen]])=0,\"\",IF(AND(AK$5=$E18,$F18=1),Milestone_Markering,\"\")),\"\")","v":""},{"$f":"IFERROR(IF(LEN(Mijlpalen[[#This Row],[Aantal dagen]])=0,\"\",IF(AND(AL$5=$E18,$F18=1),Milestone_Markering,\"\")),\"\")","v":""},{"$f":"IFERROR(IF(LEN(Mijlpalen[[#This Row],[Aantal dagen]])=0,\"\",IF(AND(AM$5=$E18,$F18=1),Milestone_Markering,\"\")),\"\")","v":""},{"$f":"IFERROR(IF(LEN(Mijlpalen[[#This Row],[Aantal dagen]])=0,\"\",IF(AND(AN$5=$E18,$F18=1),Milestone_Markering,\"\")),\"\")","v":""},{"$f":"IFERROR(IF(LEN(Mijlpalen[[#This Row],[Aantal dagen]])=0,\"\",IF(AND(AO$5=$E18,$F18=1),Milestone_Markering,\"\")),\"\")","v":""},{"$f":"IFERROR(IF(LEN(Mijlpalen[[#This Row],[Aantal dagen]])=0,\"\",IF(AND(AP$5=$E18,$F18=1),Milestone_Markering,\"\")),\"\")","v":""},{"$f":"IFERROR(IF(LEN(Mijlpalen[[#This Row],[Aantal dagen]])=0,\"\",IF(AND(AQ$5=$E18,$F18=1),Milestone_Markering,\"\")),\"\")","v":""},{"$f":"IFERROR(IF(LEN(Mijlpalen[[#This Row],[Aantal dagen]])=0,\"\",IF(AND(AR$5=$E18,$F18=1),Milestone_Markering,\"\")),\"\")","v":""},{"$f":"IFERROR(IF(LEN(Mijlpalen[[#This Row],[Aantal dagen]])=0,\"\",IF(AND(AS$5=$E18,$F18=1),Milestone_Markering,\"\")),\"\")","v":""},{"$f":"IFERROR(IF(LEN(Mijlpalen[[#This Row],[Aantal dagen]])=0,\"\",IF(AND(AT$5=$E18,$F18=1),Milestone_Markering,\"\")),\"\")","v":""},{"$f":"IFERROR(IF(LEN(Mijlpalen[[#This Row],[Aantal dagen]])=0,\"\",IF(AND(AU$5=$E18,$F18=1),Milestone_Markering,\"\")),\"\")","v":""},{"$f":"IFERROR(IF(LEN(Mijlpalen[[#This Row],[Aantal dagen]])=0,\"\",IF(AND(AV$5=$E18,$F18=1),Milestone_Markering,\"\")),\"\")","v":""},{"$f":"IFERROR(IF(LEN(Mijlpalen[[#This Row],[Aantal dagen]])=0,\"\",IF(AND(AW$5=$E18,$F18=1),Milestone_Markering,\"\")),\"\")","v":""},{"$f":"IFERROR(IF(LEN(Mijlpalen[[#This Row],[Aantal dagen]])=0,\"\",IF(AND(AX$5=$E18,$F18=1),Milestone_Markering,\"\")),\"\")","v":""},{"$f":"IFERROR(IF(LEN(Mijlpalen[[#This Row],[Aantal dagen]])=0,\"\",IF(AND(AY$5=$E18,$F18=1),Milestone_Markering,\"\")),\"\")","v":""},{"$f":"IFERROR(IF(LEN(Mijlpalen[[#This Row],[Aantal dagen]])=0,\"\",IF(AND(AZ$5=$E18,$F18=1),Milestone_Markering,\"\")),\"\")","v":""},{"$f":"IFERROR(IF(LEN(Mijlpalen[[#This Row],[Aantal dagen]])=0,\"\",IF(AND(BA$5=$E18,$F18=1),Milestone_Markering,\"\")),\"\")","v":""},{"$f":"IFERROR(IF(LEN(Mijlpalen[[#This Row],[Aantal dagen]])=0,\"\",IF(AND(BB$5=$E18,$F18=1),Milestone_Markering,\"\")),\"\")","v":""},{"$f":"IFERROR(IF(LEN(Mijlpalen[[#This Row],[Aantal dagen]])=0,\"\",IF(AND(BC$5=$E18,$F18=1),Milestone_Markering,\"\")),\"\")","v":""},{"$f":"IFERROR(IF(LEN(Mijlpalen[[#This Row],[Aantal dagen]])=0,\"\",IF(AND(BD$5=$E18,$F18=1),Milestone_Markering,\"\")),\"\")","v":""},{"$f":"IFERROR(IF(LEN(Mijlpalen[[#This Row],[Aantal dagen]])=0,\"\",IF(AND(BE$5=$E18,$F18=1),Milestone_Markering,\"\")),\"\")","v":""},{"$f":"IFERROR(IF(LEN(Mijlpalen[[#This Row],[Aantal dagen]])=0,\"\",IF(AND(BF$5=$E18,$F18=1),Milestone_Markering,\"\")),\"\")","v":""},{"$f":"IFERROR(IF(LEN(Mijlpalen[[#This Row],[Aantal dagen]])=0,\"\",IF(AND(BG$5=$E18,$F18=1),Milestone_Markering,\"\")),\"\")","v":""},{"$f":"IFERROR(IF(LEN(Mijlpalen[[#This Row],[Aantal dagen]])=0,\"\",IF(AND(BH$5=$E18,$F18=1),Milestone_Markering,\"\")),\"\")","v":""},{"$f":"IFERROR(IF(LEN(Mijlpalen[[#This Row],[Aantal dagen]])=0,\"\",IF(AND(BI$5=$E18,$F18=1),Milestone_Markering,\"\")),\"\")","v":""},{"$f":"IFERROR(IF(LEN(Mijlpalen[[#This Row],[Aantal dagen]])=0,\"\",IF(AND(BJ$5=$E18,$F18=1),Milestone_Markering,\"\")),\"\")","v":""},{"$f":"IFERROR(IF(LEN(Mijlpalen[[#This Row],[Aantal dagen]])=0,\"\",IF(AND(BK$5=$E18,$F18=1),Milestone_Markering,\"\")),\"\")","v":""}]
[null,"Taak 5",null,null,{"$f":"TODAY()+25","v":"2018-10-14"},24,null,{"$f":"IFERROR(IF(LEN(Mijlpalen[[#This Row],[Aantal dagen]])=0,\"\",IF(AND(H$5=$E19,$F19=1),Milestone_Markering,\"\")),\"\")","v":""},{"$f":"IFERROR(IF(LEN(Mijlpalen[[#This Row],[Aantal dagen]])=0,\"\",IF(AND(I$5=$E19,$F19=1),Milestone_Markering,\"\")),\"\")","v":""},{"$f":"IFERROR(IF(LEN(Mijlpalen[[#This Row],[Aantal dagen]])=0,\"\",IF(AND(J$5=$E19,$F19=1),Milestone_Markering,\"\")),\"\")","v":""},{"$f":"IFERROR(IF(LEN(Mijlpalen[[#This Row],[Aantal dagen]])=0,\"\",IF(AND(K$5=$E19,$F19=1),Milestone_Markering,\"\")),\"\")","v":""},{"$f":"IFERROR(IF(LEN(Mijlpalen[[#This Row],[Aantal dagen]])=0,\"\",IF(AND(L$5=$E19,$F19=1),Milestone_Markering,\"\")),\"\")","v":""},{"$f":"IFERROR(IF(LEN(Mijlpalen[[#This Row],[Aantal dagen]])=0,\"\",IF(AND(M$5=$E19,$F19=1),Milestone_Markering,\"\")),\"\")","v":""},{"$f":"IFERROR(IF(LEN(Mijlpalen[[#This Row],[Aantal dagen]])=0,\"\",IF(AND(N$5=$E19,$F19=1),Milestone_Markering,\"\")),\"\")","v":""},{"$f":"IFERROR(IF(LEN(Mijlpalen[[#This Row],[Aantal dagen]])=0,\"\",IF(AND(O$5=$E19,$F19=1),Milestone_Markering,\"\")),\"\")","v":""},{"$f":"IFERROR(IF(LEN(Mijlpalen[[#This Row],[Aantal dagen]])=0,\"\",IF(AND(P$5=$E19,$F19=1),Milestone_Markering,\"\")),\"\")","v":""},{"$f":"IFERROR(IF(LEN(Mijlpalen[[#This Row],[Aantal dagen]])=0,\"\",IF(AND(Q$5=$E19,$F19=1),Milestone_Markering,\"\")),\"\")","v":""},{"$f":"IFERROR(IF(LEN(Mijlpalen[[#This Row],[Aantal dagen]])=0,\"\",IF(AND(R$5=$E19,$F19=1),Milestone_Markering,\"\")),\"\")","v":""},{"$f":"IFERROR(IF(LEN(Mijlpalen[[#This Row],[Aantal dagen]])=0,\"\",IF(AND(S$5=$E19,$F19=1),Milestone_Markering,\"\")),\"\")","v":""},{"$f":"IFERROR(IF(LEN(Mijlpalen[[#This Row],[Aantal dagen]])=0,\"\",IF(AND(T$5=$E19,$F19=1),Milestone_Markering,\"\")),\"\")","v":""},{"$f":"IFERROR(IF(LEN(Mijlpalen[[#This Row],[Aantal dagen]])=0,\"\",IF(AND(U$5=$E19,$F19=1),Milestone_Markering,\"\")),\"\")","v":""},{"$f":"IFERROR(IF(LEN(Mijlpalen[[#This Row],[Aantal dagen]])=0,\"\",IF(AND(V$5=$E19,$F19=1),Milestone_Markering,\"\")),\"\")","v":""},{"$f":"IFERROR(IF(LEN(Mijlpalen[[#This Row],[Aantal dagen]])=0,\"\",IF(AND(W$5=$E19,$F19=1),Milestone_Markering,\"\")),\"\")","v":""},{"$f":"IFERROR(IF(LEN(Mijlpalen[[#This Row],[Aantal dagen]])=0,\"\",IF(AND(X$5=$E19,$F19=1),Milestone_Markering,\"\")),\"\")","v":""},{"$f":"IFERROR(IF(LEN(Mijlpalen[[#This Row],[Aantal dagen]])=0,\"\",IF(AND(Y$5=$E19,$F19=1),Milestone_Markering,\"\")),\"\")","v":""},{"$f":"IFERROR(IF(LEN(Mijlpalen[[#This Row],[Aantal dagen]])=0,\"\",IF(AND(Z$5=$E19,$F19=1),Milestone_Markering,\"\")),\"\")","v":""},{"$f":"IFERROR(IF(LEN(Mijlpalen[[#This Row],[Aantal dagen]])=0,\"\",IF(AND(AA$5=$E19,$F19=1),Milestone_Markering,\"\")),\"\")","v":""},{"$f":"IFERROR(IF(LEN(Mijlpalen[[#This Row],[Aantal dagen]])=0,\"\",IF(AND(AB$5=$E19,$F19=1),Milestone_Markering,\"\")),\"\")","v":""},{"$f":"IFERROR(IF(LEN(Mijlpalen[[#This Row],[Aantal dagen]])=0,\"\",IF(AND(AC$5=$E19,$F19=1),Milestone_Markering,\"\")),\"\")","v":""},{"$f":"IFERROR(IF(LEN(Mijlpalen[[#This Row],[Aantal dagen]])=0,\"\",IF(AND(AD$5=$E19,$F19=1),Milestone_Markering,\"\")),\"\")","v":""},{"$f":"IFERROR(IF(LEN(Mijlpalen[[#This Row],[Aantal dagen]])=0,\"\",IF(AND(AE$5=$E19,$F19=1),Milestone_Markering,\"\")),\"\")","v":""},{"$f":"IFERROR(IF(LEN(Mijlpalen[[#This Row],[Aantal dagen]])=0,\"\",IF(AND(AF$5=$E19,$F19=1),Milestone_Markering,\"\")),\"\")","v":""},{"$f":"IFERROR(IF(LEN(Mijlpalen[[#This Row],[Aantal dagen]])=0,\"\",IF(AND(AG$5=$E19,$F19=1),Milestone_Markering,\"\")),\"\")","v":""},{"$f":"IFERROR(IF(LEN(Mijlpalen[[#This Row],[Aantal dagen]])=0,\"\",IF(AND(AH$5=$E19,$F19=1),Milestone_Markering,\"\")),\"\")","v":""},{"$f":"IFERROR(IF(LEN(Mijlpalen[[#This Row],[Aantal dagen]])=0,\"\",IF(AND(AI$5=$E19,$F19=1),Milestone_Markering,\"\")),\"\")","v":""},{"$f":"IFERROR(IF(LEN(Mijlpalen[[#This Row],[Aantal dagen]])=0,\"\",IF(AND(AJ$5=$E19,$F19=1),Milestone_Markering,\"\")),\"\")","v":""},{"$f":"IFERROR(IF(LEN(Mijlpalen[[#This Row],[Aantal dagen]])=0,\"\",IF(AND(AK$5=$E19,$F19=1),Milestone_Markering,\"\")),\"\")","v":""},{"$f":"IFERROR(IF(LEN(Mijlpalen[[#This Row],[Aantal dagen]])=0,\"\",IF(AND(AL$5=$E19,$F19=1),Milestone_Markering,\"\")),\"\")","v":""},{"$f":"IFERROR(IF(LEN(Mijlpalen[[#This Row],[Aantal dagen]])=0,\"\",IF(AND(AM$5=$E19,$F19=1),Milestone_Markering,\"\")),\"\")","v":""},{"$f":"IFERROR(IF(LEN(Mijlpalen[[#This Row],[Aantal dagen]])=0,\"\",IF(AND(AN$5=$E19,$F19=1),Milestone_Markering,\"\")),\"\")","v":""},{"$f":"IFERROR(IF(LEN(Mijlpalen[[#This Row],[Aantal dagen]])=0,\"\",IF(AND(AO$5=$E19,$F19=1),Milestone_Markering,\"\")),\"\")","v":""},{"$f":"IFERROR(IF(LEN(Mijlpalen[[#This Row],[Aantal dagen]])=0,\"\",IF(AND(AP$5=$E19,$F19=1),Milestone_Markering,\"\")),\"\")","v":""},{"$f":"IFERROR(IF(LEN(Mijlpalen[[#This Row],[Aantal dagen]])=0,\"\",IF(AND(AQ$5=$E19,$F19=1),Milestone_Markering,\"\")),\"\")","v":""},{"$f":"IFERROR(IF(LEN(Mijlpalen[[#This Row],[Aantal dagen]])=0,\"\",IF(AND(AR$5=$E19,$F19=1),Milestone_Markering,\"\")),\"\")","v":""},{"$f":"IFERROR(IF(LEN(Mijlpalen[[#This Row],[Aantal dagen]])=0,\"\",IF(AND(AS$5=$E19,$F19=1),Milestone_Markering,\"\")),\"\")","v":""},{"$f":"IFERROR(IF(LEN(Mijlpalen[[#This Row],[Aantal dagen]])=0,\"\",IF(AND(AT$5=$E19,$F19=1),Milestone_Markering,\"\")),\"\")","v":""},{"$f":"IFERROR(IF(LEN(Mijlpalen[[#This Row],[Aantal dagen]])=0,\"\",IF(AND(AU$5=$E19,$F19=1),Milestone_Markering,\"\")),\"\")","v":""},{"$f":"IFERROR(IF(LEN(Mijlpalen[[#This Row],[Aantal dagen]])=0,\"\",IF(AND(AV$5=$E19,$F19=1),Milestone_Markering,\"\")),\"\")","v":""},{"$f":"IFERROR(IF(LEN(Mijlpalen[[#This Row],[Aantal dagen]])=0,\"\",IF(AND(AW$5=$E19,$F19=1),Milestone_Markering,\"\")),\"\")","v":""},{"$f":"IFERROR(IF(LEN(Mijlpalen[[#This Row],[Aantal dagen]])=0,\"\",IF(AND(AX$5=$E19,$F19=1),Milestone_Markering,\"\")),\"\")","v":""},{"$f":"IFERROR(IF(LEN(Mijlpalen[[#This Row],[Aantal dagen]])=0,\"\",IF(AND(AY$5=$E19,$F19=1),Milestone_Markering,\"\")),\"\")","v":""},{"$f":"IFERROR(IF(LEN(Mijlpalen[[#This Row],[Aantal dagen]])=0,\"\",IF(AND(AZ$5=$E19,$F19=1),Milestone_Markering,\"\")),\"\")","v":""},{"$f":"IFERROR(IF(LEN(Mijlpalen[[#This Row],[Aantal dagen]])=0,\"\",IF(AND(BA$5=$E19,$F19=1),Milestone_Markering,\"\")),\"\")","v":""},{"$f":"IFERROR(IF(LEN(Mijlpalen[[#This Row],[Aantal dagen]])=0,\"\",IF(AND(BB$5=$E19,$F19=1),Milestone_Markering,\"\")),\"\")","v":""},{"$f":"IFERROR(IF(LEN(Mijlpalen[[#This Row],[Aantal dagen]])=0,\"\",IF(AND(BC$5=$E19,$F19=1),Milestone_Markering,\"\")),\"\")","v":""},{"$f":"IFERROR(IF(LEN(Mijlpalen[[#This Row],[Aantal dagen]])=0,\"\",IF(AND(BD$5=$E19,$F19=1),Milestone_Markering,\"\")),\"\")","v":""},{"$f":"IFERROR(IF(LEN(Mijlpalen[[#This Row],[Aantal dagen]])=0,\"\",IF(AND(BE$5=$E19,$F19=1),Milestone_Markering,\"\")),\"\")","v":""},{"$f":"IFERROR(IF(LEN(Mijlpalen[[#This Row],[Aantal dagen]])=0,\"\",IF(AND(BF$5=$E19,$F19=1),Milestone_Markering,\"\")),\"\")","v":""},{"$f":"IFERROR(IF(LEN(Mijlpalen[[#This Row],[Aantal dagen]])=0,\"\",IF(AND(BG$5=$E19,$F19=1),Milestone_Markering,\"\")),\"\")","v":""},{"$f":"IFERROR(IF(LEN(Mijlpalen[[#This Row],[Aantal dagen]])=0,\"\",IF(AND(BH$5=$E19,$F19=1),Milestone_Markering,\"\")),\"\")","v":""},{"$f":"IFERROR(IF(LEN(Mijlpalen[[#This Row],[Aantal dagen]])=0,\"\",IF(AND(BI$5=$E19,$F19=1),Milestone_Markering,\"\")),\"\")","v":""},{"$f":"IFERROR(IF(LEN(Mijlpalen[[#This Row],[Aantal dagen]])=0,\"\",IF(AND(BJ$5=$E19,$F19=1),Milestone_Markering,\"\")),\"\")","v":""},{"$f":"IFERROR(IF(LEN(Mijlpalen[[#This Row],[Aantal dagen]])=0,\"\",IF(AND(BK$5=$E19,$F19=1),Milestone_Markering,\"\")),\"\")","v":""}]
[null,"Titel 3",{"$nulls":5},{"$f":"IFERROR(IF(LEN(Mijlpalen[[#This Row],[Aantal dagen]])=0,\"\",IF(AND(H$5=$E20,$F20=1),Milestone_Markering,\"\")),\"\")","v":""},{"$f":"IFERROR(IF(LEN(Mijlpalen[[#This Row],[Aantal dagen]])=0,\"\",IF(AND(I$5=$E20,$F20=1),Milestone_Markering,\"\")),\"\")","v":""},{"$f":"IFERROR(IF(LEN(Mijlpalen[[#This Row],[Aantal dagen]])=0,\"\",IF(AND(J$5=$E20,$F20=1),Milestone_Markering,\"\")),\"\")","v":""},{"$f":"IFERROR(IF(LEN(Mijlpalen[[#This Row],[Aantal dagen]])=0,\"\",IF(AND(K$5=$E20,$F20=1),Milestone_Markering,\"\")),\"\")","v":""},{"$f":"IFERROR(IF(LEN(Mijlpalen[[#This Row],[Aantal dagen]])=0,\"\",IF(AND(L$5=$E20,$F20=1),Milestone_Markering,\"\")),\"\")","v":""},{"$f":"IFERROR(IF(LEN(Mijlpalen[[#This Row],[Aantal dagen]])=0,\"\",IF(AND(M$5=$E20,$F20=1),Milestone_Markering,\"\")),\"\")","v":""},{"$f":"IFERROR(IF(LEN(Mijlpalen[[#This Row],[Aantal dagen]])=0,\"\",IF(AND(N$5=$E20,$F20=1),Milestone_Markering,\"\")),\"\")","v":""},{"$f":"IFERROR(IF(LEN(Mijlpalen[[#This Row],[Aantal dagen]])=0,\"\",IF(AND(O$5=$E20,$F20=1),Milestone_Markering,\"\")),\"\")","v":""},{"$f":"IFERROR(IF(LEN(Mijlpalen[[#This Row],[Aantal dagen]])=0,\"\",IF(AND(P$5=$E20,$F20=1),Milestone_Markering,\"\")),\"\")","v":""},{"$f":"IFERROR(IF(LEN(Mijlpalen[[#This Row],[Aantal dagen]])=0,\"\",IF(AND(Q$5=$E20,$F20=1),Milestone_Markering,\"\")),\"\")","v":""},{"$f":"IFERROR(IF(LEN(Mijlpalen[[#This Row],[Aantal dagen]])=0,\"\",IF(AND(R$5=$E20,$F20=1),Milestone_Markering,\"\")),\"\")","v":""},{"$f":"IFERROR(IF(LEN(Mijlpalen[[#This Row],[Aantal dagen]])=0,\"\",IF(AND(S$5=$E20,$F20=1),Milestone_Markering,\"\")),\"\")","v":""},{"$f":"IFERROR(IF(LEN(Mijlpalen[[#This Row],[Aantal dagen]])=0,\"\",IF(AND(T$5=$E20,$F20=1),Milestone_Markering,\"\")),\"\")","v":""},{"$f":"IFERROR(IF(LEN(Mijlpalen[[#This Row],[Aantal dagen]])=0,\"\",IF(AND(U$5=$E20,$F20=1),Milestone_Markering,\"\")),\"\")","v":""},{"$f":"IFERROR(IF(LEN(Mijlpalen[[#This Row],[Aantal dagen]])=0,\"\",IF(AND(V$5=$E20,$F20=1),Milestone_Markering,\"\")),\"\")","v":""},{"$f":"IFERROR(IF(LEN(Mijlpalen[[#This Row],[Aantal dagen]])=0,\"\",IF(AND(W$5=$E20,$F20=1),Milestone_Markering,\"\")),\"\")","v":""},{"$f":"IFERROR(IF(LEN(Mijlpalen[[#This Row],[Aantal dagen]])=0,\"\",IF(AND(X$5=$E20,$F20=1),Milestone_Markering,\"\")),\"\")","v":""},{"$f":"IFERROR(IF(LEN(Mijlpalen[[#This Row],[Aantal dagen]])=0,\"\",IF(AND(Y$5=$E20,$F20=1),Milestone_Markering,\"\")),\"\")","v":""},{"$f":"IFERROR(IF(LEN(Mijlpalen[[#This Row],[Aantal dagen]])=0,\"\",IF(AND(Z$5=$E20,$F20=1),Milestone_Markering,\"\")),\"\")","v":""},{"$f":"IFERROR(IF(LEN(Mijlpalen[[#This Row],[Aantal dagen]])=0,\"\",IF(AND(AA$5=$E20,$F20=1),Milestone_Markering,\"\")),\"\")","v":""},{"$f":"IFERROR(IF(LEN(Mijlpalen[[#This Row],[Aantal dagen]])=0,\"\",IF(AND(AB$5=$E20,$F20=1),Milestone_Markering,\"\")),\"\")","v":""},{"$f":"IFERROR(IF(LEN(Mijlpalen[[#This Row],[Aantal dagen]])=0,\"\",IF(AND(AC$5=$E20,$F20=1),Milestone_Markering,\"\")),\"\")","v":""},{"$f":"IFERROR(IF(LEN(Mijlpalen[[#This Row],[Aantal dagen]])=0,\"\",IF(AND(AD$5=$E20,$F20=1),Milestone_Markering,\"\")),\"\")","v":""},{"$f":"IFERROR(IF(LEN(Mijlpalen[[#This Row],[Aantal dagen]])=0,\"\",IF(AND(AE$5=$E20,$F20=1),Milestone_Markering,\"\")),\"\")","v":""},{"$f":"IFERROR(IF(LEN(Mijlpalen[[#This Row],[Aantal dagen]])=0,\"\",IF(AND(AF$5=$E20,$F20=1),Milestone_Markering,\"\")),\"\")","v":""},{"$f":"IFERROR(IF(LEN(Mijlpalen[[#This Row],[Aantal dagen]])=0,\"\",IF(AND(AG$5=$E20,$F20=1),Milestone_Markering,\"\")),\"\")","v":""},{"$f":"IFERROR(IF(LEN(Mijlpalen[[#This Row],[Aantal dagen]])=0,\"\",IF(AND(AH$5=$E20,$F20=1),Milestone_Markering,\"\")),\"\")","v":""},{"$f":"IFERROR(IF(LEN(Mijlpalen[[#This Row],[Aantal dagen]])=0,\"\",IF(AND(AI$5=$E20,$F20=1),Milestone_Markering,\"\")),\"\")","v":""},{"$f":"IFERROR(IF(LEN(Mijlpalen[[#This Row],[Aantal dagen]])=0,\"\",IF(AND(AJ$5=$E20,$F20=1),Milestone_Markering,\"\")),\"\")","v":""},{"$f":"IFERROR(IF(LEN(Mijlpalen[[#This Row],[Aantal dagen]])=0,\"\",IF(AND(AK$5=$E20,$F20=1),Milestone_Markering,\"\")),\"\")","v":""},{"$f":"IFERROR(IF(LEN(Mijlpalen[[#This Row],[Aantal dagen]])=0,\"\",IF(AND(AL$5=$E20,$F20=1),Milestone_Markering,\"\")),\"\")","v":""},{"$f":"IFERROR(IF(LEN(Mijlpalen[[#This Row],[Aantal dagen]])=0,\"\",IF(AND(AM$5=$E20,$F20=1),Milestone_Markering,\"\")),\"\")","v":""},{"$f":"IFERROR(IF(LEN(Mijlpalen[[#This Row],[Aantal dagen]])=0,\"\",IF(AND(AN$5=$E20,$F20=1),Milestone_Markering,\"\")),\"\")","v":""},{"$f":"IFERROR(IF(LEN(Mijlpalen[[#This Row],[Aantal dagen]])=0,\"\",IF(AND(AO$5=$E20,$F20=1),Milestone_Markering,\"\")),\"\")","v":""},{"$f":"IFERROR(IF(LEN(Mijlpalen[[#This Row],[Aantal dagen]])=0,\"\",IF(AND(AP$5=$E20,$F20=1),Milestone_Markering,\"\")),\"\")","v":""},{"$f":"IFERROR(IF(LEN(Mijlpalen[[#This Row],[Aantal dagen]])=0,\"\",IF(AND(AQ$5=$E20,$F20=1),Milestone_Markering,\"\")),\"\")","v":""},{"$f":"IFERROR(IF(LEN(Mijlpalen[[#This Row],[Aantal dagen]])=0,\"\",IF(AND(AR$5=$E20,$F20=1),Milestone_Markering,\"\")),\"\")","v":""},{"$f":"IFERROR(IF(LEN(Mijlpalen[[#This Row],[Aantal dagen]])=0,\"\",IF(AND(AS$5=$E20,$F20=1),Milestone_Markering,\"\")),\"\")","v":""},{"$f":"IFERROR(IF(LEN(Mijlpalen[[#This Row],[Aantal dagen]])=0,\"\",IF(AND(AT$5=$E20,$F20=1),Milestone_Markering,\"\")),\"\")","v":""},{"$f":"IFERROR(IF(LEN(Mijlpalen[[#This Row],[Aantal dagen]])=0,\"\",IF(AND(AU$5=$E20,$F20=1),Milestone_Markering,\"\")),\"\")","v":""},{"$f":"IFERROR(IF(LEN(Mijlpalen[[#This Row],[Aantal dagen]])=0,\"\",IF(AND(AV$5=$E20,$F20=1),Milestone_Markering,\"\")),\"\")","v":""},{"$f":"IFERROR(IF(LEN(Mijlpalen[[#This Row],[Aantal dagen]])=0,\"\",IF(AND(AW$5=$E20,$F20=1),Milestone_Markering,\"\")),\"\")","v":""},{"$f":"IFERROR(IF(LEN(Mijlpalen[[#This Row],[Aantal dagen]])=0,\"\",IF(AND(AX$5=$E20,$F20=1),Milestone_Markering,\"\")),\"\")","v":""},{"$f":"IFERROR(IF(LEN(Mijlpalen[[#This Row],[Aantal dagen]])=0,\"\",IF(AND(AY$5=$E20,$F20=1),Milestone_Markering,\"\")),\"\")","v":""},{"$f":"IFERROR(IF(LEN(Mijlpalen[[#This Row],[Aantal dagen]])=0,\"\",IF(AND(AZ$5=$E20,$F20=1),Milestone_Markering,\"\")),\"\")","v":""},{"$f":"IFERROR(IF(LEN(Mijlpalen[[#This Row],[Aantal dagen]])=0,\"\",IF(AND(BA$5=$E20,$F20=1),Milestone_Markering,\"\")),\"\")","v":""},{"$f":"IFERROR(IF(LEN(Mijlpalen[[#This Row],[Aantal dagen]])=0,\"\",IF(AND(BB$5=$E20,$F20=1),Milestone_Markering,\"\")),\"\")","v":""},{"$f":"IFERROR(IF(LEN(Mijlpalen[[#This Row],[Aantal dagen]])=0,\"\",IF(AND(BC$5=$E20,$F20=1),Milestone_Markering,\"\")),\"\")","v":""},{"$f":"IFERROR(IF(LEN(Mijlpalen[[#This Row],[Aantal dagen]])=0,\"\",IF(AND(BD$5=$E20,$F20=1),Milestone_Markering,\"\")),\"\")","v":""},{"$f":"IFERROR(IF(LEN(Mijlpalen[[#This Row],[Aantal dagen]])=0,\"\",IF(AND(BE$5=$E20,$F20=1),Milestone_Markering,\"\")),\"\")","v":""},{"$f":"IFERROR(IF(LEN(Mijlpalen[[#This Row],[Aantal dagen]])=0,\"\",IF(AND(BF$5=$E20,$F20=1),Milestone_Markering,\"\")),\"\")","v":""},{"$f":"IFERROR(IF(LEN(Mijlpalen[[#This Row],[Aantal dagen]])=0,\"\",IF(AND(BG$5=$E20,$F20=1),Milestone_Markering,\"\")),\"\")","v":""},{"$f":"IFERROR(IF(LEN(Mijlpalen[[#This Row],[Aantal dagen]])=0,\"\",IF(AND(BH$5=$E20,$F20=1),Milestone_Markering,\"\")),\"\")","v":""},{"$f":"IFERROR(IF(LEN(Mijlpalen[[#This Row],[Aantal dagen]])=0,\"\",IF(AND(BI$5=$E20,$F20=1),Milestone_Markering,\"\")),\"\")","v":""},{"$f":"IFERROR(IF(LEN(Mijlpalen[[#This Row],[Aantal dagen]])=0,\"\",IF(AND(BJ$5=$E20,$F20=1),Milestone_Markering,\"\")),\"\")","v":""},{"$f":"IFERROR(IF(LEN(Mijlpalen[[#This Row],[Aantal dagen]])=0,\"\",IF(AND(BK$5=$E20,$F20=1),Milestone_Markering,\"\")),\"\")","v":""}]
[null,"Taak 1",null,null,{"$f":"TODAY()+15","v":"2018-10-04"},4,null,{"$f":"IFERROR(IF(LEN(Mijlpalen[[#This Row],[Aantal dagen]])=0,\"\",IF(AND(H$5=$E21,$F21=1),Milestone_Markering,\"\")),\"\")","v":""},{"$f":"IFERROR(IF(LEN(Mijlpalen[[#This Row],[Aantal dagen]])=0,\"\",IF(AND(I$5=$E21,$F21=1),Milestone_Markering,\"\")),\"\")","v":""},{"$f":"IFERROR(IF(LEN(Mijlpalen[[#This Row],[Aantal dagen]])=0,\"\",IF(AND(J$5=$E21,$F21=1),Milestone_Markering,\"\")),\"\")","v":""},{"$f":"IFERROR(IF(LEN(Mijlpalen[[#This Row],[Aantal dagen]])=0,\"\",IF(AND(K$5=$E21,$F21=1),Milestone_Markering,\"\")),\"\")","v":""},{"$f":"IFERROR(IF(LEN(Mijlpalen[[#This Row],[Aantal dagen]])=0,\"\",IF(AND(L$5=$E21,$F21=1),Milestone_Markering,\"\")),\"\")","v":""},{"$f":"IFERROR(IF(LEN(Mijlpalen[[#This Row],[Aantal dagen]])=0,\"\",IF(AND(M$5=$E21,$F21=1),Milestone_Markering,\"\")),\"\")","v":""},{"$f":"IFERROR(IF(LEN(Mijlpalen[[#This Row],[Aantal dagen]])=0,\"\",IF(AND(N$5=$E21,$F21=1),Milestone_Markering,\"\")),\"\")","v":""},{"$f":"IFERROR(IF(LEN(Mijlpalen[[#This Row],[Aantal dagen]])=0,\"\",IF(AND(O$5=$E21,$F21=1),Milestone_Markering,\"\")),\"\")","v":""},{"$f":"IFERROR(IF(LEN(Mijlpalen[[#This Row],[Aantal dagen]])=0,\"\",IF(AND(P$5=$E21,$F21=1),Milestone_Markering,\"\")),\"\")","v":""},{"$f":"IFERROR(IF(LEN(Mijlpalen[[#This Row],[Aantal dagen]])=0,\"\",IF(AND(Q$5=$E21,$F21=1),Milestone_Markering,\"\")),\"\")","v":""},{"$f":"IFERROR(IF(LEN(Mijlpalen[[#This Row],[Aantal dagen]])=0,\"\",IF(AND(R$5=$E21,$F21=1),Milestone_Markering,\"\")),\"\")","v":""},{"$f":"IFERROR(IF(LEN(Mijlpalen[[#This Row],[Aantal dagen]])=0,\"\",IF(AND(S$5=$E21,$F21=1),Milestone_Markering,\"\")),\"\")","v":""},{"$f":"IFERROR(IF(LEN(Mijlpalen[[#This Row],[Aantal dagen]])=0,\"\",IF(AND(T$5=$E21,$F21=1),Milestone_Markering,\"\")),\"\")","v":""},{"$f":"IFERROR(IF(LEN(Mijlpalen[[#This Row],[Aantal dagen]])=0,\"\",IF(AND(U$5=$E21,$F21=1),Milestone_Markering,\"\")),\"\")","v":""},{"$f":"IFERROR(IF(LEN(Mijlpalen[[#This Row],[Aantal dagen]])=0,\"\",IF(AND(V$5=$E21,$F21=1),Milestone_Markering,\"\")),\"\")","v":""},{"$f":"IFERROR(IF(LEN(Mijlpalen[[#This Row],[Aantal dagen]])=0,\"\",IF(AND(W$5=$E21,$F21=1),Milestone_Markering,\"\")),\"\")","v":""},{"$f":"IFERROR(IF(LEN(Mijlpalen[[#This Row],[Aantal dagen]])=0,\"\",IF(AND(X$5=$E21,$F21=1),Milestone_Markering,\"\")),\"\")","v":""},{"$f":"IFERROR(IF(LEN(Mijlpalen[[#This Row],[Aantal dagen]])=0,\"\",IF(AND(Y$5=$E21,$F21=1),Milestone_Markering,\"\")),\"\")","v":""},{"$f":"IFERROR(IF(LEN(Mijlpalen[[#This Row],[Aantal dagen]])=0,\"\",IF(AND(Z$5=$E21,$F21=1),Milestone_Markering,\"\")),\"\")","v":""},{"$f":"IFERROR(IF(LEN(Mijlpalen[[#This Row],[Aantal dagen]])=0,\"\",IF(AND(AA$5=$E21,$F21=1),Milestone_Markering,\"\")),\"\")","v":""},{"$f":"IFERROR(IF(LEN(Mijlpalen[[#This Row],[Aantal dagen]])=0,\"\",IF(AND(AB$5=$E21,$F21=1),Milestone_Markering,\"\")),\"\")","v":""},{"$f":"IFERROR(IF(LEN(Mijlpalen[[#This Row],[Aantal dagen]])=0,\"\",IF(AND(AC$5=$E21,$F21=1),Milestone_Markering,\"\")),\"\")","v":""},{"$f":"IFERROR(IF(LEN(Mijlpalen[[#This Row],[Aantal dagen]])=0,\"\",IF(AND(AD$5=$E21,$F21=1),Milestone_Markering,\"\")),\"\")","v":""},{"$f":"IFERROR(IF(LEN(Mijlpalen[[#This Row],[Aantal dagen]])=0,\"\",IF(AND(AE$5=$E21,$F21=1),Milestone_Markering,\"\")),\"\")","v":""},{"$f":"IFERROR(IF(LEN(Mijlpalen[[#This Row],[Aantal dagen]])=0,\"\",IF(AND(AF$5=$E21,$F21=1),Milestone_Markering,\"\")),\"\")","v":""},{"$f":"IFERROR(IF(LEN(Mijlpalen[[#This Row],[Aantal dagen]])=0,\"\",IF(AND(AG$5=$E21,$F21=1),Milestone_Markering,\"\")),\"\")","v":""},{"$f":"IFERROR(IF(LEN(Mijlpalen[[#This Row],[Aantal dagen]])=0,\"\",IF(AND(AH$5=$E21,$F21=1),Milestone_Markering,\"\")),\"\")","v":""},{"$f":"IFERROR(IF(LEN(Mijlpalen[[#This Row],[Aantal dagen]])=0,\"\",IF(AND(AI$5=$E21,$F21=1),Milestone_Markering,\"\")),\"\")","v":""},{"$f":"IFERROR(IF(LEN(Mijlpalen[[#This Row],[Aantal dagen]])=0,\"\",IF(AND(AJ$5=$E21,$F21=1),Milestone_Markering,\"\")),\"\")","v":""},{"$f":"IFERROR(IF(LEN(Mijlpalen[[#This Row],[Aantal dagen]])=0,\"\",IF(AND(AK$5=$E21,$F21=1),Milestone_Markering,\"\")),\"\")","v":""},{"$f":"IFERROR(IF(LEN(Mijlpalen[[#This Row],[Aantal dagen]])=0,\"\",IF(AND(AL$5=$E21,$F21=1),Milestone_Markering,\"\")),\"\")","v":""},{"$f":"IFERROR(IF(LEN(Mijlpalen[[#This Row],[Aantal dagen]])=0,\"\",IF(AND(AM$5=$E21,$F21=1),Milestone_Markering,\"\")),\"\")","v":""},{"$f":"IFERROR(IF(LEN(Mijlpalen[[#This Row],[Aantal dagen]])=0,\"\",IF(AND(AN$5=$E21,$F21=1),Milestone_Markering,\"\")),\"\")","v":""},{"$f":"IFERROR(IF(LEN(Mijlpalen[[#This Row],[Aantal dagen]])=0,\"\",IF(AND(AO$5=$E21,$F21=1),Milestone_Markering,\"\")),\"\")","v":""},{"$f":"IFERROR(IF(LEN(Mijlpalen[[#This Row],[Aantal dagen]])=0,\"\",IF(AND(AP$5=$E21,$F21=1),Milestone_Markering,\"\")),\"\")","v":""},{"$f":"IFERROR(IF(LEN(Mijlpalen[[#This Row],[Aantal dagen]])=0,\"\",IF(AND(AQ$5=$E21,$F21=1),Milestone_Markering,\"\")),\"\")","v":""},{"$f":"IFERROR(IF(LEN(Mijlpalen[[#This Row],[Aantal dagen]])=0,\"\",IF(AND(AR$5=$E21,$F21=1),Milestone_Markering,\"\")),\"\")","v":""},{"$f":"IFERROR(IF(LEN(Mijlpalen[[#This Row],[Aantal dagen]])=0,\"\",IF(AND(AS$5=$E21,$F21=1),Milestone_Markering,\"\")),\"\")","v":""},{"$f":"IFERROR(IF(LEN(Mijlpalen[[#This Row],[Aantal dagen]])=0,\"\",IF(AND(AT$5=$E21,$F21=1),Milestone_Markering,\"\")),\"\")","v":""},{"$f":"IFERROR(IF(LEN(Mijlpalen[[#This Row],[Aantal dagen]])=0,\"\",IF(AND(AU$5=$E21,$F21=1),Milestone_Markering,\"\")),\"\")","v":""},{"$f":"IFERROR(IF(LEN(Mijlpalen[[#This Row],[Aantal dagen]])=0,\"\",IF(AND(AV$5=$E21,$F21=1),Milestone_Markering,\"\")),\"\")","v":""},{"$f":"IFERROR(IF(LEN(Mijlpalen[[#This Row],[Aantal dagen]])=0,\"\",IF(AND(AW$5=$E21,$F21=1),Milestone_Markering,\"\")),\"\")","v":""},{"$f":"IFERROR(IF(LEN(Mijlpalen[[#This Row],[Aantal dagen]])=0,\"\",IF(AND(AX$5=$E21,$F21=1),Milestone_Markering,\"\")),\"\")","v":""},{"$f":"IFERROR(IF(LEN(Mijlpalen[[#This Row],[Aantal dagen]])=0,\"\",IF(AND(AY$5=$E21,$F21=1),Milestone_Markering,\"\")),\"\")","v":""},{"$f":"IFERROR(IF(LEN(Mijlpalen[[#This Row],[Aantal dagen]])=0,\"\",IF(AND(AZ$5=$E21,$F21=1),Milestone_Markering,\"\")),\"\")","v":""},{"$f":"IFERROR(IF(LEN(Mijlpalen[[#This Row],[Aantal dagen]])=0,\"\",IF(AND(BA$5=$E21,$F21=1),Milestone_Markering,\"\")),\"\")","v":""},{"$f":"IFERROR(IF(LEN(Mijlpalen[[#This Row],[Aantal dagen]])=0,\"\",IF(AND(BB$5=$E21,$F21=1),Milestone_Markering,\"\")),\"\")","v":""},{"$f":"IFERROR(IF(LEN(Mijlpalen[[#This Row],[Aantal dagen]])=0,\"\",IF(AND(BC$5=$E21,$F21=1),Milestone_Markering,\"\")),\"\")","v":""},{"$f":"IFERROR(IF(LEN(Mijlpalen[[#This Row],[Aantal dagen]])=0,\"\",IF(AND(BD$5=$E21,$F21=1),Milestone_Markering,\"\")),\"\")","v":""},{"$f":"IFERROR(IF(LEN(Mijlpalen[[#This Row],[Aantal dagen]])=0,\"\",IF(AND(BE$5=$E21,$F21=1),Milestone_Markering,\"\")),\"\")","v":""},{"$f":"IFERROR(IF(LEN(Mijlpalen[[#This Row],[Aantal dagen]])=0,\"\",IF(AND(BF$5=$E21,$F21=1),Milestone_Markering,\"\")),\"\")","v":""},{"$f":"IFERROR(IF(LEN(Mijlpalen[[#This Row],[Aantal dagen]])=0,\"\",IF(AND(BG$5=$E21,$F21=1),Milestone_Markering,\"\")),\"\")","v":""},{"$f":"IFERROR(IF(LEN(Mijlpalen[[#This Row],[Aantal dagen]])=0,\"\",IF(AND(BH$5=$E21,$F21=1),Milestone_Markering,\"\")),\"\")","v":""},{"$f":"IFERROR(IF(LEN(Mijlpalen[[#This Row],[Aantal dagen]])=0,\"\",IF(AND(BI$5=$E21,$F21=1),Milestone_Markering,\"\")),\"\")","v":""},{"$f":"IFERROR(IF(LEN(Mijlpalen[[#This Row],[Aantal dagen]])=0,\"\",IF(AND(BJ$5=$E21,$F21=1),Milestone_Markering,\"\")),\"\")","v":""},{"$f":"IFERROR(IF(LEN(Mijlpalen[[#This Row],[Aantal dagen]])=0,\"\",IF(AND(BK$5=$E21,$F21=1),Milestone_Markering,\"\")),\"\")","v":""}]
[null,"Taak 2",null,null,{"$f":"TODAY()+19","v":"2018-10-08"},14,null,{"$f":"IFERROR(IF(LEN(Mijlpalen[[#This Row],[Aantal dagen]])=0,\"\",IF(AND(H$5=$E22,$F22=1),Milestone_Markering,\"\")),\"\")","v":""},{"$f":"IFERROR(IF(LEN(Mijlpalen[[#This Row],[Aantal dagen]])=0,\"\",IF(AND(I$5=$E22,$F22=1),Milestone_Markering,\"\")),\"\")","v":""},{"$f":"IFERROR(IF(LEN(Mijlpalen[[#This Row],[Aantal dagen]])=0,\"\",IF(AND(J$5=$E22,$F22=1),Milestone_Markering,\"\")),\"\")","v":""},{"$f":"IFERROR(IF(LEN(Mijlpalen[[#This Row],[Aantal dagen]])=0,\"\",IF(AND(K$5=$E22,$F22=1),Milestone_Markering,\"\")),\"\")","v":""},{"$f":"IFERROR(IF(LEN(Mijlpalen[[#This Row],[Aantal dagen]])=0,\"\",IF(AND(L$5=$E22,$F22=1),Milestone_Markering,\"\")),\"\")","v":""},{"$f":"IFERROR(IF(LEN(Mijlpalen[[#This Row],[Aantal dagen]])=0,\"\",IF(AND(M$5=$E22,$F22=1),Milestone_Markering,\"\")),\"\")","v":""},{"$f":"IFERROR(IF(LEN(Mijlpalen[[#This Row],[Aantal dagen]])=0,\"\",IF(AND(N$5=$E22,$F22=1),Milestone_Markering,\"\")),\"\")","v":""},{"$f":"IFERROR(IF(LEN(Mijlpalen[[#This Row],[Aantal dagen]])=0,\"\",IF(AND(O$5=$E22,$F22=1),Milestone_Markering,\"\")),\"\")","v":""},{"$f":"IFERROR(IF(LEN(Mijlpalen[[#This Row],[Aantal dagen]])=0,\"\",IF(AND(P$5=$E22,$F22=1),Milestone_Markering,\"\")),\"\")","v":""},{"$f":"IFERROR(IF(LEN(Mijlpalen[[#This Row],[Aantal dagen]])=0,\"\",IF(AND(Q$5=$E22,$F22=1),Milestone_Markering,\"\")),\"\")","v":""},{"$f":"IFERROR(IF(LEN(Mijlpalen[[#This Row],[Aantal dagen]])=0,\"\",IF(AND(R$5=$E22,$F22=1),Milestone_Markering,\"\")),\"\")","v":""},{"$f":"IFERROR(IF(LEN(Mijlpalen[[#This Row],[Aantal dagen]])=0,\"\",IF(AND(S$5=$E22,$F22=1),Milestone_Markering,\"\")),\"\")","v":""},{"$f":"IFERROR(IF(LEN(Mijlpalen[[#This Row],[Aantal dagen]])=0,\"\",IF(AND(T$5=$E22,$F22=1),Milestone_Markering,\"\")),\"\")","v":""},{"$f":"IFERROR(IF(LEN(Mijlpalen[[#This Row],[Aantal dagen]])=0,\"\",IF(AND(U$5=$E22,$F22=1),Milestone_Markering,\"\")),\"\")","v":""},{"$f":"IFERROR(IF(LEN(Mijlpalen[[#This Row],[Aantal dagen]])=0,\"\",IF(AND(V$5=$E22,$F22=1),Milestone_Markering,\"\")),\"\")","v":""},{"$f":"IFERROR(IF(LEN(Mijlpalen[[#This Row],[Aantal dagen]])=0,\"\",IF(AND(W$5=$E22,$F22=1),Milestone_Markering,\"\")),\"\")","v":""},{"$f":"IFERROR(IF(LEN(Mijlpalen[[#This Row],[Aantal dagen]])=0,\"\",IF(AND(X$5=$E22,$F22=1),Milestone_Markering,\"\")),\"\")","v":""},{"$f":"IFERROR(IF(LEN(Mijlpalen[[#This Row],[Aantal dagen]])=0,\"\",IF(AND(Y$5=$E22,$F22=1),Milestone_Markering,\"\")),\"\")","v":""},{"$f":"IFERROR(IF(LEN(Mijlpalen[[#This Row],[Aantal dagen]])=0,\"\",IF(AND(Z$5=$E22,$F22=1),Milestone_Markering,\"\")),\"\")","v":""},{"$f":"IFERROR(IF(LEN(Mijlpalen[[#This Row],[Aantal dagen]])=0,\"\",IF(AND(AA$5=$E22,$F22=1),Milestone_Markering,\"\")),\"\")","v":""},{"$f":"IFERROR(IF(LEN(Mijlpalen[[#This Row],[Aantal dagen]])=0,\"\",IF(AND(AB$5=$E22,$F22=1),Milestone_Markering,\"\")),\"\")","v":""},{"$f":"IFERROR(IF(LEN(Mijlpalen[[#This Row],[Aantal dagen]])=0,\"\",IF(AND(AC$5=$E22,$F22=1),Milestone_Markering,\"\")),\"\")","v":""},{"$f":"IFERROR(IF(LEN(Mijlpalen[[#This Row],[Aantal dagen]])=0,\"\",IF(AND(AD$5=$E22,$F22=1),Milestone_Markering,\"\")),\"\")","v":""},{"$f":"IFERROR(IF(LEN(Mijlpalen[[#This Row],[Aantal dagen]])=0,\"\",IF(AND(AE$5=$E22,$F22=1),Milestone_Markering,\"\")),\"\")","v":""},{"$f":"IFERROR(IF(LEN(Mijlpalen[[#This Row],[Aantal dagen]])=0,\"\",IF(AND(AF$5=$E22,$F22=1),Milestone_Markering,\"\")),\"\")","v":""},{"$f":"IFERROR(IF(LEN(Mijlpalen[[#This Row],[Aantal dagen]])=0,\"\",IF(AND(AG$5=$E22,$F22=1),Milestone_Markering,\"\")),\"\")","v":""},{"$f":"IFERROR(IF(LEN(Mijlpalen[[#This Row],[Aantal dagen]])=0,\"\",IF(AND(AH$5=$E22,$F22=1),Milestone_Markering,\"\")),\"\")","v":""},{"$f":"IFERROR(IF(LEN(Mijlpalen[[#This Row],[Aantal dagen]])=0,\"\",IF(AND(AI$5=$E22,$F22=1),Milestone_Markering,\"\")),\"\")","v":""},{"$f":"IFERROR(IF(LEN(Mijlpalen[[#This Row],[Aantal dagen]])=0,\"\",IF(AND(AJ$5=$E22,$F22=1),Milestone_Markering,\"\")),\"\")","v":""},{"$f":"IFERROR(IF(LEN(Mijlpalen[[#This Row],[Aantal dagen]])=0,\"\",IF(AND(AK$5=$E22,$F22=1),Milestone_Markering,\"\")),\"\")","v":""},{"$f":"IFERROR(IF(LEN(Mijlpalen[[#This Row],[Aantal dagen]])=0,\"\",IF(AND(AL$5=$E22,$F22=1),Milestone_Markering,\"\")),\"\")","v":""},{"$f":"IFERROR(IF(LEN(Mijlpalen[[#This Row],[Aantal dagen]])=0,\"\",IF(AND(AM$5=$E22,$F22=1),Milestone_Markering,\"\")),\"\")","v":""},{"$f":"IFERROR(IF(LEN(Mijlpalen[[#This Row],[Aantal dagen]])=0,\"\",IF(AND(AN$5=$E22,$F22=1),Milestone_Markering,\"\")),\"\")","v":""},{"$f":"IFERROR(IF(LEN(Mijlpalen[[#This Row],[Aantal dagen]])=0,\"\",IF(AND(AO$5=$E22,$F22=1),Milestone_Markering,\"\")),\"\")","v":""},{"$f":"IFERROR(IF(LEN(Mijlpalen[[#This Row],[Aantal dagen]])=0,\"\",IF(AND(AP$5=$E22,$F22=1),Milestone_Markering,\"\")),\"\")","v":""},{"$f":"IFERROR(IF(LEN(Mijlpalen[[#This Row],[Aantal dagen]])=0,\"\",IF(AND(AQ$5=$E22,$F22=1),Milestone_Markering,\"\")),\"\")","v":""},{"$f":"IFERROR(IF(LEN(Mijlpalen[[#This Row],[Aantal dagen]])=0,\"\",IF(AND(AR$5=$E22,$F22=1),Milestone_Markering,\"\")),\"\")","v":""},{"$f":"IFERROR(IF(LEN(Mijlpalen[[#This Row],[Aantal dagen]])=0,\"\",IF(AND(AS$5=$E22,$F22=1),Milestone_Markering,\"\")),\"\")","v":""},{"$f":"IFERROR(IF(LEN(Mijlpalen[[#This Row],[Aantal dagen]])=0,\"\",IF(AND(AT$5=$E22,$F22=1),Milestone_Markering,\"\")),\"\")","v":""},{"$f":"IFERROR(IF(LEN(Mijlpalen[[#This Row],[Aantal dagen]])=0,\"\",IF(AND(AU$5=$E22,$F22=1),Milestone_Markering,\"\")),\"\")","v":""},{"$f":"IFERROR(IF(LEN(Mijlpalen[[#This Row],[Aantal dagen]])=0,\"\",IF(AND(AV$5=$E22,$F22=1),Milestone_Markering,\"\")),\"\")","v":""},{"$f":"IFERROR(IF(LEN(Mijlpalen[[#This Row],[Aantal dagen]])=0,\"\",IF(AND(AW$5=$E22,$F22=1),Milestone_Markering,\"\")),\"\")","v":""},{"$f":"IFERROR(IF(LEN(Mijlpalen[[#This Row],[Aantal dagen]])=0,\"\",IF(AND(AX$5=$E22,$F22=1),Milestone_Markering,\"\")),\"\")","v":""},{"$f":"IFERROR(IF(LEN(Mijlpalen[[#This Row],[Aantal dagen]])=0,\"\",IF(AND(AY$5=$E22,$F22=1),Milestone_Markering,\"\")),\"\")","v":""},{"$f":"IFERROR(IF(LEN(Mijlpalen[[#This Row],[Aantal dagen]])=0,\"\",IF(AND(AZ$5=$E22,$F22=1),Milestone_Markering,\"\")),\"\")","v":""},{"$f":"IFERROR(IF(LEN(Mijlpalen[[#This Row],[Aantal dagen]])=0,\"\",IF(AND(BA$5=$E22,$F22=1),Milestone_Markering,\"\")),\"\")","v":""},{"$f":"IFERROR(IF(LEN(Mijlpalen[[#This Row],[Aantal dagen]])=0,\"\",IF(AND(BB$5=$E22,$F22=1),Milestone_Markering,\"\")),\"\")","v":""},{"$f":"IFERROR(IF(LEN(Mijlpalen[[#This Row],[Aantal dagen]])=0,\"\",IF(AND(BC$5=$E22,$F22=1),Milestone_Markering,\"\")),\"\")","v":""},{"$f":"IFERROR(IF(LEN(Mijlpalen[[#This Row],[Aantal dagen]])=0,\"\",IF(AND(BD$5=$E22,$F22=1),Milestone_Markering,\"\")),\"\")","v":""},{"$f":"IFERROR(IF(LEN(Mijlpalen[[#This Row],[Aantal dagen]])=0,\"\",IF(AND(BE$5=$E22,$F22=1),Milestone_Markering,\"\")),\"\")","v":""},{"$f":"IFERROR(IF(LEN(Mijlpalen[[#This Row],[Aantal dagen]])=0,\"\",IF(AND(BF$5=$E22,$F22=1),Milestone_Markering,\"\")),\"\")","v":""},{"$f":"IFERROR(IF(LEN(Mijlpalen[[#This Row],[Aantal dagen]])=0,\"\",IF(AND(BG$5=$E22,$F22=1),Milestone_Markering,\"\")),\"\")","v":""},{"$f":"IFERROR(IF(LEN(Mijlpalen[[#This Row],[Aantal dagen]])=0,\"\",IF(AND(BH$5=$E22,$F22=1),Milestone_Markering,\"\")),\"\")","v":""},{"$f":"IFERROR(IF(LEN(Mijlpalen[[#This Row],[Aantal dagen]])=0,\"\",IF(AND(BI$5=$E22,$F22=1),Milestone_Markering,\"\")),\"\")","v":""},{"$f":"IFERROR(IF(LEN(Mijlpalen[[#This Row],[Aantal dagen]])=0,\"\",IF(AND(BJ$5=$E22,$F22=1),Milestone_Markering,\"\")),\"\")","v":""},{"$f":"IFERROR(IF(LEN(Mijlpalen[[#This Row],[Aantal dagen]])=0,\"\",IF(AND(BK$5=$E22,$F22=1),Milestone_Markering,\"\")),\"\")","v":""}]
[null,"Taak 3",null,null,{"$f":"TODAY()+35","v":"2018-10-24"},6,null,{"$f":"IFERROR(IF(LEN(Mijlpalen[[#This Row],[Aantal dagen]])=0,\"\",IF(AND(H$5=$E23,$F23=1),Milestone_Markering,\"\")),\"\")","v":""},{"$f":"IFERROR(IF(LEN(Mijlpalen[[#This Row],[Aantal dagen]])=0,\"\",IF(AND(I$5=$E23,$F23=1),Milestone_Markering,\"\")),\"\")","v":""},{"$f":"IFERROR(IF(LEN(Mijlpalen[[#This Row],[Aantal dagen]])=0,\"\",IF(AND(J$5=$E23,$F23=1),Milestone_Markering,\"\")),\"\")","v":""},{"$f":"IFERROR(IF(LEN(Mijlpalen[[#This Row],[Aantal dagen]])=0,\"\",IF(AND(K$5=$E23,$F23=1),Milestone_Markering,\"\")),\"\")","v":""},{"$f":"IFERROR(IF(LEN(Mijlpalen[[#This Row],[Aantal dagen]])=0,\"\",IF(AND(L$5=$E23,$F23=1),Milestone_Markering,\"\")),\"\")","v":""},{"$f":"IFERROR(IF(LEN(Mijlpalen[[#This Row],[Aantal dagen]])=0,\"\",IF(AND(M$5=$E23,$F23=1),Milestone_Markering,\"\")),\"\")","v":""},{"$f":"IFERROR(IF(LEN(Mijlpalen[[#This Row],[Aantal dagen]])=0,\"\",IF(AND(N$5=$E23,$F23=1),Milestone_Markering,\"\")),\"\")","v":""},{"$f":"IFERROR(IF(LEN(Mijlpalen[[#This Row],[Aantal dagen]])=0,\"\",IF(AND(O$5=$E23,$F23=1),Milestone_Markering,\"\")),\"\")","v":""},{"$f":"IFERROR(IF(LEN(Mijlpalen[[#This Row],[Aantal dagen]])=0,\"\",IF(AND(P$5=$E23,$F23=1),Milestone_Markering,\"\")),\"\")","v":""},{"$f":"IFERROR(IF(LEN(Mijlpalen[[#This Row],[Aantal dagen]])=0,\"\",IF(AND(Q$5=$E23,$F23=1),Milestone_Markering,\"\")),\"\")","v":""},{"$f":"IFERROR(IF(LEN(Mijlpalen[[#This Row],[Aantal dagen]])=0,\"\",IF(AND(R$5=$E23,$F23=1),Milestone_Markering,\"\")),\"\")","v":""},{"$f":"IFERROR(IF(LEN(Mijlpalen[[#This Row],[Aantal dagen]])=0,\"\",IF(AND(S$5=$E23,$F23=1),Milestone_Markering,\"\")),\"\")","v":""},{"$f":"IFERROR(IF(LEN(Mijlpalen[[#This Row],[Aantal dagen]])=0,\"\",IF(AND(T$5=$E23,$F23=1),Milestone_Markering,\"\")),\"\")","v":""},{"$f":"IFERROR(IF(LEN(Mijlpalen[[#This Row],[Aantal dagen]])=0,\"\",IF(AND(U$5=$E23,$F23=1),Milestone_Markering,\"\")),\"\")","v":""},{"$f":"IFERROR(IF(LEN(Mijlpalen[[#This Row],[Aantal dagen]])=0,\"\",IF(AND(V$5=$E23,$F23=1),Milestone_Markering,\"\")),\"\")","v":""},{"$f":"IFERROR(IF(LEN(Mijlpalen[[#This Row],[Aantal dagen]])=0,\"\",IF(AND(W$5=$E23,$F23=1),Milestone_Markering,\"\")),\"\")","v":""},{"$f":"IFERROR(IF(LEN(Mijlpalen[[#This Row],[Aantal dagen]])=0,\"\",IF(AND(X$5=$E23,$F23=1),Milestone_Markering,\"\")),\"\")","v":""},{"$f":"IFERROR(IF(LEN(Mijlpalen[[#This Row],[Aantal dagen]])=0,\"\",IF(AND(Y$5=$E23,$F23=1),Milestone_Markering,\"\")),\"\")","v":""},{"$f":"IFERROR(IF(LEN(Mijlpalen[[#This Row],[Aantal dagen]])=0,\"\",IF(AND(Z$5=$E23,$F23=1),Milestone_Markering,\"\")),\"\")","v":""},{"$f":"IFERROR(IF(LEN(Mijlpalen[[#This Row],[Aantal dagen]])=0,\"\",IF(AND(AA$5=$E23,$F23=1),Milestone_Markering,\"\")),\"\")","v":""},{"$f":"IFERROR(IF(LEN(Mijlpalen[[#This Row],[Aantal dagen]])=0,\"\",IF(AND(AB$5=$E23,$F23=1),Milestone_Markering,\"\")),\"\")","v":""},{"$f":"IFERROR(IF(LEN(Mijlpalen[[#This Row],[Aantal dagen]])=0,\"\",IF(AND(AC$5=$E23,$F23=1),Milestone_Markering,\"\")),\"\")","v":""},{"$f":"IFERROR(IF(LEN(Mijlpalen[[#This Row],[Aantal dagen]])=0,\"\",IF(AND(AD$5=$E23,$F23=1),Milestone_Markering,\"\")),\"\")","v":""},{"$f":"IFERROR(IF(LEN(Mijlpalen[[#This Row],[Aantal dagen]])=0,\"\",IF(AND(AE$5=$E23,$F23=1),Milestone_Markering,\"\")),\"\")","v":""},{"$f":"IFERROR(IF(LEN(Mijlpalen[[#This Row],[Aantal dagen]])=0,\"\",IF(AND(AF$5=$E23,$F23=1),Milestone_Markering,\"\")),\"\")","v":""},{"$f":"IFERROR(IF(LEN(Mijlpalen[[#This Row],[Aantal dagen]])=0,\"\",IF(AND(AG$5=$E23,$F23=1),Milestone_Markering,\"\")),\"\")","v":""},{"$f":"IFERROR(IF(LEN(Mijlpalen[[#This Row],[Aantal dagen]])=0,\"\",IF(AND(AH$5=$E23,$F23=1),Milestone_Markering,\"\")),\"\")","v":""},{"$f":"IFERROR(IF(LEN(Mijlpalen[[#This Row],[Aantal dagen]])=0,\"\",IF(AND(AI$5=$E23,$F23=1),Milestone_Markering,\"\")),\"\")","v":""},{"$f":"IFERROR(IF(LEN(Mijlpalen[[#This Row],[Aantal dagen]])=0,\"\",IF(AND(AJ$5=$E23,$F23=1),Milestone_Markering,\"\")),\"\")","v":""},{"$f":"IFERROR(IF(LEN(Mijlpalen[[#This Row],[Aantal dagen]])=0,\"\",IF(AND(AK$5=$E23,$F23=1),Milestone_Markering,\"\")),\"\")","v":""},{"$f":"IFERROR(IF(LEN(Mijlpalen[[#This Row],[Aantal dagen]])=0,\"\",IF(AND(AL$5=$E23,$F23=1),Milestone_Markering,\"\")),\"\")","v":""},{"$f":"IFERROR(IF(LEN(Mijlpalen[[#This Row],[Aantal dagen]])=0,\"\",IF(AND(AM$5=$E23,$F23=1),Milestone_Markering,\"\")),\"\")","v":""},{"$f":"IFERROR(IF(LEN(Mijlpalen[[#This Row],[Aantal dagen]])=0,\"\",IF(AND(AN$5=$E23,$F23=1),Milestone_Markering,\"\")),\"\")","v":""},{"$f":"IFERROR(IF(LEN(Mijlpalen[[#This Row],[Aantal dagen]])=0,\"\",IF(AND(AO$5=$E23,$F23=1),Milestone_Markering,\"\")),\"\")","v":""},{"$f":"IFERROR(IF(LEN(Mijlpalen[[#This Row],[Aantal dagen]])=0,\"\",IF(AND(AP$5=$E23,$F23=1),Milestone_Markering,\"\")),\"\")","v":""},{"$f":"IFERROR(IF(LEN(Mijlpalen[[#This Row],[Aantal dagen]])=0,\"\",IF(AND(AQ$5=$E23,$F23=1),Milestone_Markering,\"\")),\"\")","v":""},{"$f":"IFERROR(IF(LEN(Mijlpalen[[#This Row],[Aantal dagen]])=0,\"\",IF(AND(AR$5=$E23,$F23=1),Milestone_Markering,\"\")),\"\")","v":""},{"$f":"IFERROR(IF(LEN(Mijlpalen[[#This Row],[Aantal dagen]])=0,\"\",IF(AND(AS$5=$E23,$F23=1),Milestone_Markering,\"\")),\"\")","v":""},{"$f":"IFERROR(IF(LEN(Mijlpalen[[#This Row],[Aantal dagen]])=0,\"\",IF(AND(AT$5=$E23,$F23=1),Milestone_Markering,\"\")),\"\")","v":""},{"$f":"IFERROR(IF(LEN(Mijlpalen[[#This Row],[Aantal dagen]])=0,\"\",IF(AND(AU$5=$E23,$F23=1),Milestone_Markering,\"\")),\"\")","v":""},{"$f":"IFERROR(IF(LEN(Mijlpalen[[#This Row],[Aantal dagen]])=0,\"\",IF(AND(AV$5=$E23,$F23=1),Milestone_Markering,\"\")),\"\")","v":""},{"$f":"IFERROR(IF(LEN(Mijlpalen[[#This Row],[Aantal dagen]])=0,\"\",IF(AND(AW$5=$E23,$F23=1),Milestone_Markering,\"\")),\"\")","v":""},{"$f":"IFERROR(IF(LEN(Mijlpalen[[#This Row],[Aantal dagen]])=0,\"\",IF(AND(AX$5=$E23,$F23=1),Milestone_Markering,\"\")),\"\")","v":""},{"$f":"IFERROR(IF(LEN(Mijlpalen[[#This Row],[Aantal dagen]])=0,\"\",IF(AND(AY$5=$E23,$F23=1),Milestone_Markering,\"\")),\"\")","v":""},{"$f":"IFERROR(IF(LEN(Mijlpalen[[#This Row],[Aantal dagen]])=0,\"\",IF(AND(AZ$5=$E23,$F23=1),Milestone_Markering,\"\")),\"\")","v":""},{"$f":"IFERROR(IF(LEN(Mijlpalen[[#This Row],[Aantal dagen]])=0,\"\",IF(AND(BA$5=$E23,$F23=1),Milestone_Markering,\"\")),\"\")","v":""},{"$f":"IFERROR(IF(LEN(Mijlpalen[[#This Row],[Aantal dagen]])=0,\"\",IF(AND(BB$5=$E23,$F23=1),Milestone_Markering,\"\")),\"\")","v":""},{"$f":"IFERROR(IF(LEN(Mijlpalen[[#This Row],[Aantal dagen]])=0,\"\",IF(AND(BC$5=$E23,$F23=1),Milestone_Markering,\"\")),\"\")","v":""},{"$f":"IFERROR(IF(LEN(Mijlpalen[[#This Row],[Aantal dagen]])=0,\"\",IF(AND(BD$5=$E23,$F23=1),Milestone_Markering,\"\")),\"\")","v":""},{"$f":"IFERROR(IF(LEN(Mijlpalen[[#This Row],[Aantal dagen]])=0,\"\",IF(AND(BE$5=$E23,$F23=1),Milestone_Markering,\"\")),\"\")","v":""},{"$f":"IFERROR(IF(LEN(Mijlpalen[[#This Row],[Aantal dagen]])=0,\"\",IF(AND(BF$5=$E23,$F23=1),Milestone_Markering,\"\")),\"\")","v":""},{"$f":"IFERROR(IF(LEN(Mijlpalen[[#This Row],[Aantal dagen]])=0,\"\",IF(AND(BG$5=$E23,$F23=1),Milestone_Markering,\"\")),\"\")","v":""},{"$f":"IFERROR(IF(LEN(Mijlpalen[[#This Row],[Aantal dagen]])=0,\"\",IF(AND(BH$5=$E23,$F23=1),Milestone_Markering,\"\")),\"\")","v":""},{"$f":"IFERROR(IF(LEN(Mijlpalen[[#This Row],[Aantal dagen]])=0,\"\",IF(AND(BI$5=$E23,$F23=1),Milestone_Markering,\"\")),\"\")","v":""},{"$f":"IFERROR(IF(LEN(Mijlpalen[[#This Row],[Aantal dagen]])=0,\"\",IF(AND(BJ$5=$E23,$F23=1),Milestone_Markering,\"\")),\"\")","v":""},{"$f":"IFERROR(IF(LEN(Mijlpalen[[#This Row],[Aantal dagen]])=0,\"\",IF(AND(BK$5=$E23,$F23=1),Milestone_Markering,\"\")),\"\")","v":""}]
[null,"Taak 4",null,null,{"$f":"TODAY()+48","v":"2018-11-06"},3,null,{"$f":"IFERROR(IF(LEN(Mijlpalen[[#This Row],[Aantal dagen]])=0,\"\",IF(AND(H$5=$E24,$F24=1),Milestone_Markering,\"\")),\"\")","v":""},{"$f":"IFERROR(IF(LEN(Mijlpalen[[#This Row],[Aantal dagen]])=0,\"\",IF(AND(I$5=$E24,$F24=1),Milestone_Markering,\"\")),\"\")","v":""},{"$f":"IFERROR(IF(LEN(Mijlpalen[[#This Row],[Aantal dagen]])=0,\"\",IF(AND(J$5=$E24,$F24=1),Milestone_Markering,\"\")),\"\")","v":""},{"$f":"IFERROR(IF(LEN(Mijlpalen[[#This Row],[Aantal dagen]])=0,\"\",IF(AND(K$5=$E24,$F24=1),Milestone_Markering,\"\")),\"\")","v":""},{"$f":"IFERROR(IF(LEN(Mijlpalen[[#This Row],[Aantal dagen]])=0,\"\",IF(AND(L$5=$E24,$F24=1),Milestone_Markering,\"\")),\"\")","v":""},{"$f":"IFERROR(IF(LEN(Mijlpalen[[#This Row],[Aantal dagen]])=0,\"\",IF(AND(M$5=$E24,$F24=1),Milestone_Markering,\"\")),\"\")","v":""},{"$f":"IFERROR(IF(LEN(Mijlpalen[[#This Row],[Aantal dagen]])=0,\"\",IF(AND(N$5=$E24,$F24=1),Milestone_Markering,\"\")),\"\")","v":""},{"$f":"IFERROR(IF(LEN(Mijlpalen[[#This Row],[Aantal dagen]])=0,\"\",IF(AND(O$5=$E24,$F24=1),Milestone_Markering,\"\")),\"\")","v":""},{"$f":"IFERROR(IF(LEN(Mijlpalen[[#This Row],[Aantal dagen]])=0,\"\",IF(AND(P$5=$E24,$F24=1),Milestone_Markering,\"\")),\"\")","v":""},{"$f":"IFERROR(IF(LEN(Mijlpalen[[#This Row],[Aantal dagen]])=0,\"\",IF(AND(Q$5=$E24,$F24=1),Milestone_Markering,\"\")),\"\")","v":""},{"$f":"IFERROR(IF(LEN(Mijlpalen[[#This Row],[Aantal dagen]])=0,\"\",IF(AND(R$5=$E24,$F24=1),Milestone_Markering,\"\")),\"\")","v":""},{"$f":"IFERROR(IF(LEN(Mijlpalen[[#This Row],[Aantal dagen]])=0,\"\",IF(AND(S$5=$E24,$F24=1),Milestone_Markering,\"\")),\"\")","v":""},{"$f":"IFERROR(IF(LEN(Mijlpalen[[#This Row],[Aantal dagen]])=0,\"\",IF(AND(T$5=$E24,$F24=1),Milestone_Markering,\"\")),\"\")","v":""},{"$f":"IFERROR(IF(LEN(Mijlpalen[[#This Row],[Aantal dagen]])=0,\"\",IF(AND(U$5=$E24,$F24=1),Milestone_Markering,\"\")),\"\")","v":""},{"$f":"IFERROR(IF(LEN(Mijlpalen[[#This Row],[Aantal dagen]])=0,\"\",IF(AND(V$5=$E24,$F24=1),Milestone_Markering,\"\")),\"\")","v":""},{"$f":"IFERROR(IF(LEN(Mijlpalen[[#This Row],[Aantal dagen]])=0,\"\",IF(AND(W$5=$E24,$F24=1),Milestone_Markering,\"\")),\"\")","v":""},{"$f":"IFERROR(IF(LEN(Mijlpalen[[#This Row],[Aantal dagen]])=0,\"\",IF(AND(X$5=$E24,$F24=1),Milestone_Markering,\"\")),\"\")","v":""},{"$f":"IFERROR(IF(LEN(Mijlpalen[[#This Row],[Aantal dagen]])=0,\"\",IF(AND(Y$5=$E24,$F24=1),Milestone_Markering,\"\")),\"\")","v":""},{"$f":"IFERROR(IF(LEN(Mijlpalen[[#This Row],[Aantal dagen]])=0,\"\",IF(AND(Z$5=$E24,$F24=1),Milestone_Markering,\"\")),\"\")","v":""},{"$f":"IFERROR(IF(LEN(Mijlpalen[[#This Row],[Aantal dagen]])=0,\"\",IF(AND(AA$5=$E24,$F24=1),Milestone_Markering,\"\")),\"\")","v":""},{"$f":"IFERROR(IF(LEN(Mijlpalen[[#This Row],[Aantal dagen]])=0,\"\",IF(AND(AB$5=$E24,$F24=1),Milestone_Markering,\"\")),\"\")","v":""},{"$f":"IFERROR(IF(LEN(Mijlpalen[[#This Row],[Aantal dagen]])=0,\"\",IF(AND(AC$5=$E24,$F24=1),Milestone_Markering,\"\")),\"\")","v":""},{"$f":"IFERROR(IF(LEN(Mijlpalen[[#This Row],[Aantal dagen]])=0,\"\",IF(AND(AD$5=$E24,$F24=1),Milestone_Markering,\"\")),\"\")","v":""},{"$f":"IFERROR(IF(LEN(Mijlpalen[[#This Row],[Aantal dagen]])=0,\"\",IF(AND(AE$5=$E24,$F24=1),Milestone_Markering,\"\")),\"\")","v":""},{"$f":"IFERROR(IF(LEN(Mijlpalen[[#This Row],[Aantal dagen]])=0,\"\",IF(AND(AF$5=$E24,$F24=1),Milestone_Markering,\"\")),\"\")","v":""},{"$f":"IFERROR(IF(LEN(Mijlpalen[[#This Row],[Aantal dagen]])=0,\"\",IF(AND(AG$5=$E24,$F24=1),Milestone_Markering,\"\")),\"\")","v":""},{"$f":"IFERROR(IF(LEN(Mijlpalen[[#This Row],[Aantal dagen]])=0,\"\",IF(AND(AH$5=$E24,$F24=1),Milestone_Markering,\"\")),\"\")","v":""},{"$f":"IFERROR(IF(LEN(Mijlpalen[[#This Row],[Aantal dagen]])=0,\"\",IF(AND(AI$5=$E24,$F24=1),Milestone_Markering,\"\")),\"\")","v":""},{"$f":"IFERROR(IF(LEN(Mijlpalen[[#This Row],[Aantal dagen]])=0,\"\",IF(AND(AJ$5=$E24,$F24=1),Milestone_Markering,\"\")),\"\")","v":""},{"$f":"IFERROR(IF(LEN(Mijlpalen[[#This Row],[Aantal dagen]])=0,\"\",IF(AND(AK$5=$E24,$F24=1),Milestone_Markering,\"\")),\"\")","v":""},{"$f":"IFERROR(IF(LEN(Mijlpalen[[#This Row],[Aantal dagen]])=0,\"\",IF(AND(AL$5=$E24,$F24=1),Milestone_Markering,\"\")),\"\")","v":""},{"$f":"IFERROR(IF(LEN(Mijlpalen[[#This Row],[Aantal dagen]])=0,\"\",IF(AND(AM$5=$E24,$F24=1),Milestone_Markering,\"\")),\"\")","v":""},{"$f":"IFERROR(IF(LEN(Mijlpalen[[#This Row],[Aantal dagen]])=0,\"\",IF(AND(AN$5=$E24,$F24=1),Milestone_Markering,\"\")),\"\")","v":""},{"$f":"IFERROR(IF(LEN(Mijlpalen[[#This Row],[Aantal dagen]])=0,\"\",IF(AND(AO$5=$E24,$F24=1),Milestone_Markering,\"\")),\"\")","v":""},{"$f":"IFERROR(IF(LEN(Mijlpalen[[#This Row],[Aantal dagen]])=0,\"\",IF(AND(AP$5=$E24,$F24=1),Milestone_Markering,\"\")),\"\")","v":""},{"$f":"IFERROR(IF(LEN(Mijlpalen[[#This Row],[Aantal dagen]])=0,\"\",IF(AND(AQ$5=$E24,$F24=1),Milestone_Markering,\"\")),\"\")","v":""},{"$f":"IFERROR(IF(LEN(Mijlpalen[[#This Row],[Aantal dagen]])=0,\"\",IF(AND(AR$5=$E24,$F24=1),Milestone_Markering,\"\")),\"\")","v":""},{"$f":"IFERROR(IF(LEN(Mijlpalen[[#This Row],[Aantal dagen]])=0,\"\",IF(AND(AS$5=$E24,$F24=1),Milestone_Markering,\"\")),\"\")","v":""},{"$f":"IFERROR(IF(LEN(Mijlpalen[[#This Row],[Aantal dagen]])=0,\"\",IF(AND(AT$5=$E24,$F24=1),Milestone_Markering,\"\")),\"\")","v":""},{"$f":"IFERROR(IF(LEN(Mijlpalen[[#This Row],[Aantal dagen]])=0,\"\",IF(AND(AU$5=$E24,$F24=1),Milestone_Markering,\"\")),\"\")","v":""},{"$f":"IFERROR(IF(LEN(Mijlpalen[[#This Row],[Aantal dagen]])=0,\"\",IF(AND(AV$5=$E24,$F24=1),Milestone_Markering,\"\")),\"\")","v":""},{"$f":"IFERROR(IF(LEN(Mijlpalen[[#This Row],[Aantal dagen]])=0,\"\",IF(AND(AW$5=$E24,$F24=1),Milestone_Markering,\"\")),\"\")","v":""},{"$f":"IFERROR(IF(LEN(Mijlpalen[[#This Row],[Aantal dagen]])=0,\"\",IF(AND(AX$5=$E24,$F24=1),Milestone_Markering,\"\")),\"\")","v":""},{"$f":"IFERROR(IF(LEN(Mijlpalen[[#This Row],[Aantal dagen]])=0,\"\",IF(AND(AY$5=$E24,$F24=1),Milestone_Markering,\"\")),\"\")","v":""},{"$f":"IFERROR(IF(LEN(Mijlpalen[[#This Row],[Aantal dagen]])=0,\"\",IF(AND(AZ$5=$E24,$F24=1),Milestone_Markering,\"\")),\"\")","v":""},{"$f":"IFERROR(IF(LEN(Mijlpalen[[#This Row],[Aantal dagen]])=0,\"\",IF(AND(BA$5=$E24,$F24=1),Milestone_Markering,\"\")),\"\")","v":""},{"$f":"IFERROR(IF(LEN(Mijlpalen[[#This Row],[Aantal dagen]])=0,\"\",IF(AND(BB$5=$E24,$F24=1),Milestone_Markering,\"\")),\"\")","v":""},{"$f":"IFERROR(IF(LEN(Mijlpalen[[#This Row],[Aantal dagen]])=0,\"\",IF(AND(BC$5=$E24,$F24=1),Milestone_Markering,\"\")),\"\")","v":""},{"$f":"IFERROR(IF(LEN(Mijlpalen[[#This Row],[Aantal dagen]])=0,\"\",IF(AND(BD$5=$E24,$F24=1),Milestone_Markering,\"\")),\"\")","v":""},{"$f":"IFERROR(IF(LEN(Mijlpalen[[#This Row],[Aantal dagen]])=0,\"\",IF(AND(BE$5=$E24,$F24=1),Milestone_Markering,\"\")),\"\")","v":""},{"$f":"IFERROR(IF(LEN(Mijlpalen[[#This Row],[Aantal dagen]])=0,\"\",IF(AND(BF$5=$E24,$F24=1),Milestone_Markering,\"\")),\"\")","v":""},{"$f":"IFERROR(IF(LEN(Mijlpalen[[#This Row],[Aantal dagen]])=0,\"\",IF(AND(BG$5=$E24,$F24=1),Milestone_Markering,\"\")),\"\")","v":""},{"$f":"IFERROR(IF(LEN(Mijlpalen[[#This Row],[Aantal dagen]])=0,\"\",IF(AND(BH$5=$E24,$F24=1),Milestone_Markering,\"\")),\"\")","v":""},{"$f":"IFERROR(IF(LEN(Mijlpalen[[#This Row],[Aantal dagen]])=0,\"\",IF(AND(BI$5=$E24,$F24=1),Milestone_Markering,\"\")),\"\")","v":""},{"$f":"IFERROR(IF(LEN(Mijlpalen[[#This Row],[Aantal dagen]])=0,\"\",IF(AND(BJ$5=$E24,$F24=1),Milestone_Markering,\"\")),\"\")","v":""},{"$f":"IFERROR(IF(LEN(Mijlpalen[[#This Row],[Aantal dagen]])=0,\"\",IF(AND(BK$5=$E24,$F24=1),Milestone_Markering,\"\")),\"\")","v":""}]
[null,"Taak 5",null,null,{"$f":"TODAY()+40","v":"2018-10-29"},19,null,{"$f":"IFERROR(IF(LEN(Mijlpalen[[#This Row],[Aantal dagen]])=0,\"\",IF(AND(H$5=$E25,$F25=1),Milestone_Markering,\"\")),\"\")","v":""},{"$f":"IFERROR(IF(LEN(Mijlpalen[[#This Row],[Aantal dagen]])=0,\"\",IF(AND(I$5=$E25,$F25=1),Milestone_Markering,\"\")),\"\")","v":""},{"$f":"IFERROR(IF(LEN(Mijlpalen[[#This Row],[Aantal dagen]])=0,\"\",IF(AND(J$5=$E25,$F25=1),Milestone_Markering,\"\")),\"\")","v":""},{"$f":"IFERROR(IF(LEN(Mijlpalen[[#This Row],[Aantal dagen]])=0,\"\",IF(AND(K$5=$E25,$F25=1),Milestone_Markering,\"\")),\"\")","v":""},{"$f":"IFERROR(IF(LEN(Mijlpalen[[#This Row],[Aantal dagen]])=0,\"\",IF(AND(L$5=$E25,$F25=1),Milestone_Markering,\"\")),\"\")","v":""},{"$f":"IFERROR(IF(LEN(Mijlpalen[[#This Row],[Aantal dagen]])=0,\"\",IF(AND(M$5=$E25,$F25=1),Milestone_Markering,\"\")),\"\")","v":""},{"$f":"IFERROR(IF(LEN(Mijlpalen[[#This Row],[Aantal dagen]])=0,\"\",IF(AND(N$5=$E25,$F25=1),Milestone_Markering,\"\")),\"\")","v":""},{"$f":"IFERROR(IF(LEN(Mijlpalen[[#This Row],[Aantal dagen]])=0,\"\",IF(AND(O$5=$E25,$F25=1),Milestone_Markering,\"\")),\"\")","v":""},{"$f":"IFERROR(IF(LEN(Mijlpalen[[#This Row],[Aantal dagen]])=0,\"\",IF(AND(P$5=$E25,$F25=1),Milestone_Markering,\"\")),\"\")","v":""},{"$f":"IFERROR(IF(LEN(Mijlpalen[[#This Row],[Aantal dagen]])=0,\"\",IF(AND(Q$5=$E25,$F25=1),Milestone_Markering,\"\")),\"\")","v":""},{"$f":"IFERROR(IF(LEN(Mijlpalen[[#This Row],[Aantal dagen]])=0,\"\",IF(AND(R$5=$E25,$F25=1),Milestone_Markering,\"\")),\"\")","v":""},{"$f":"IFERROR(IF(LEN(Mijlpalen[[#This Row],[Aantal dagen]])=0,\"\",IF(AND(S$5=$E25,$F25=1),Milestone_Markering,\"\")),\"\")","v":""},{"$f":"IFERROR(IF(LEN(Mijlpalen[[#This Row],[Aantal dagen]])=0,\"\",IF(AND(T$5=$E25,$F25=1),Milestone_Markering,\"\")),\"\")","v":""},{"$f":"IFERROR(IF(LEN(Mijlpalen[[#This Row],[Aantal dagen]])=0,\"\",IF(AND(U$5=$E25,$F25=1),Milestone_Markering,\"\")),\"\")","v":""},{"$f":"IFERROR(IF(LEN(Mijlpalen[[#This Row],[Aantal dagen]])=0,\"\",IF(AND(V$5=$E25,$F25=1),Milestone_Markering,\"\")),\"\")","v":""},{"$f":"IFERROR(IF(LEN(Mijlpalen[[#This Row],[Aantal dagen]])=0,\"\",IF(AND(W$5=$E25,$F25=1),Milestone_Markering,\"\")),\"\")","v":""},{"$f":"IFERROR(IF(LEN(Mijlpalen[[#This Row],[Aantal dagen]])=0,\"\",IF(AND(X$5=$E25,$F25=1),Milestone_Markering,\"\")),\"\")","v":""},{"$f":"IFERROR(IF(LEN(Mijlpalen[[#This Row],[Aantal dagen]])=0,\"\",IF(AND(Y$5=$E25,$F25=1),Milestone_Markering,\"\")),\"\")","v":""},{"$f":"IFERROR(IF(LEN(Mijlpalen[[#This Row],[Aantal dagen]])=0,\"\",IF(AND(Z$5=$E25,$F25=1),Milestone_Markering,\"\")),\"\")","v":""},{"$f":"IFERROR(IF(LEN(Mijlpalen[[#This Row],[Aantal dagen]])=0,\"\",IF(AND(AA$5=$E25,$F25=1),Milestone_Markering,\"\")),\"\")","v":""},{"$f":"IFERROR(IF(LEN(Mijlpalen[[#This Row],[Aantal dagen]])=0,\"\",IF(AND(AB$5=$E25,$F25=1),Milestone_Markering,\"\")),\"\")","v":""},{"$f":"IFERROR(IF(LEN(Mijlpalen[[#This Row],[Aantal dagen]])=0,\"\",IF(AND(AC$5=$E25,$F25=1),Milestone_Markering,\"\")),\"\")","v":""},{"$f":"IFERROR(IF(LEN(Mijlpalen[[#This Row],[Aantal dagen]])=0,\"\",IF(AND(AD$5=$E25,$F25=1),Milestone_Markering,\"\")),\"\")","v":""},{"$f":"IFERROR(IF(LEN(Mijlpalen[[#This Row],[Aantal dagen]])=0,\"\",IF(AND(AE$5=$E25,$F25=1),Milestone_Markering,\"\")),\"\")","v":""},{"$f":"IFERROR(IF(LEN(Mijlpalen[[#This Row],[Aantal dagen]])=0,\"\",IF(AND(AF$5=$E25,$F25=1),Milestone_Markering,\"\")),\"\")","v":""},{"$f":"IFERROR(IF(LEN(Mijlpalen[[#This Row],[Aantal dagen]])=0,\"\",IF(AND(AG$5=$E25,$F25=1),Milestone_Markering,\"\")),\"\")","v":""},{"$f":"IFERROR(IF(LEN(Mijlpalen[[#This Row],[Aantal dagen]])=0,\"\",IF(AND(AH$5=$E25,$F25=1),Milestone_Markering,\"\")),\"\")","v":""},{"$f":"IFERROR(IF(LEN(Mijlpalen[[#This Row],[Aantal dagen]])=0,\"\",IF(AND(AI$5=$E25,$F25=1),Milestone_Markering,\"\")),\"\")","v":""},{"$f":"IFERROR(IF(LEN(Mijlpalen[[#This Row],[Aantal dagen]])=0,\"\",IF(AND(AJ$5=$E25,$F25=1),Milestone_Markering,\"\")),\"\")","v":""},{"$f":"IFERROR(IF(LEN(Mijlpalen[[#This Row],[Aantal dagen]])=0,\"\",IF(AND(AK$5=$E25,$F25=1),Milestone_Markering,\"\")),\"\")","v":""},{"$f":"IFERROR(IF(LEN(Mijlpalen[[#This Row],[Aantal dagen]])=0,\"\",IF(AND(AL$5=$E25,$F25=1),Milestone_Markering,\"\")),\"\")","v":""},{"$f":"IFERROR(IF(LEN(Mijlpalen[[#This Row],[Aantal dagen]])=0,\"\",IF(AND(AM$5=$E25,$F25=1),Milestone_Markering,\"\")),\"\")","v":""},{"$f":"IFERROR(IF(LEN(Mijlpalen[[#This Row],[Aantal dagen]])=0,\"\",IF(AND(AN$5=$E25,$F25=1),Milestone_Markering,\"\")),\"\")","v":""},{"$f":"IFERROR(IF(LEN(Mijlpalen[[#This Row],[Aantal dagen]])=0,\"\",IF(AND(AO$5=$E25,$F25=1),Milestone_Markering,\"\")),\"\")","v":""},{"$f":"IFERROR(IF(LEN(Mijlpalen[[#This Row],[Aantal dagen]])=0,\"\",IF(AND(AP$5=$E25,$F25=1),Milestone_Markering,\"\")),\"\")","v":""},{"$f":"IFERROR(IF(LEN(Mijlpalen[[#This Row],[Aantal dagen]])=0,\"\",IF(AND(AQ$5=$E25,$F25=1),Milestone_Markering,\"\")),\"\")","v":""},{"$f":"IFERROR(IF(LEN(Mijlpalen[[#This Row],[Aantal dagen]])=0,\"\",IF(AND(AR$5=$E25,$F25=1),Milestone_Markering,\"\")),\"\")","v":""},{"$f":"IFERROR(IF(LEN(Mijlpalen[[#This Row],[Aantal dagen]])=0,\"\",IF(AND(AS$5=$E25,$F25=1),Milestone_Markering,\"\")),\"\")","v":""},{"$f":"IFERROR(IF(LEN(Mijlpalen[[#This Row],[Aantal dagen]])=0,\"\",IF(AND(AT$5=$E25,$F25=1),Milestone_Markering,\"\")),\"\")","v":""},{"$f":"IFERROR(IF(LEN(Mijlpalen[[#This Row],[Aantal dagen]])=0,\"\",IF(AND(AU$5=$E25,$F25=1),Milestone_Markering,\"\")),\"\")","v":""},{"$f":"IFERROR(IF(LEN(Mijlpalen[[#This Row],[Aantal dagen]])=0,\"\",IF(AND(AV$5=$E25,$F25=1),Milestone_Markering,\"\")),\"\")","v":""},{"$f":"IFERROR(IF(LEN(Mijlpalen[[#This Row],[Aantal dagen]])=0,\"\",IF(AND(AW$5=$E25,$F25=1),Milestone_Markering,\"\")),\"\")","v":""},{"$f":"IFERROR(IF(LEN(Mijlpalen[[#This Row],[Aantal dagen]])=0,\"\",IF(AND(AX$5=$E25,$F25=1),Milestone_Markering,\"\")),\"\")","v":""},{"$f":"IFERROR(IF(LEN(Mijlpalen[[#This Row],[Aantal dagen]])=0,\"\",IF(AND(AY$5=$E25,$F25=1),Milestone_Markering,\"\")),\"\")","v":""},{"$f":"IFERROR(IF(LEN(Mijlpalen[[#This Row],[Aantal dagen]])=0,\"\",IF(AND(AZ$5=$E25,$F25=1),Milestone_Markering,\"\")),\"\")","v":""},{"$f":"IFERROR(IF(LEN(Mijlpalen[[#This Row],[Aantal dagen]])=0,\"\",IF(AND(BA$5=$E25,$F25=1),Milestone_Markering,\"\")),\"\")","v":""},{"$f":"IFERROR(IF(LEN(Mijlpalen[[#This Row],[Aantal dagen]])=0,\"\",IF(AND(BB$5=$E25,$F25=1),Milestone_Markering,\"\")),\"\")","v":""},{"$f":"IFERROR(IF(LEN(Mijlpalen[[#This Row],[Aantal dagen]])=0,\"\",IF(AND(BC$5=$E25,$F25=1),Milestone_Markering,\"\")),\"\")","v":""},{"$f":"IFERROR(IF(LEN(Mijlpalen[[#This Row],[Aantal dagen]])=0,\"\",IF(AND(BD$5=$E25,$F25=1),Milestone_Markering,\"\")),\"\")","v":""},{"$f":"IFERROR(IF(LEN(Mijlpalen[[#This Row],[Aantal dagen]])=0,\"\",IF(AND(BE$5=$E25,$F25=1),Milestone_Markering,\"\")),\"\")","v":""},{"$f":"IFERROR(IF(LEN(Mijlpalen[[#This Row],[Aantal dagen]])=0,\"\",IF(AND(BF$5=$E25,$F25=1),Milestone_Markering,\"\")),\"\")","v":""},{"$f":"IFERROR(IF(LEN(Mijlpalen[[#This Row],[Aantal dagen]])=0,\"\",IF(AND(BG$5=$E25,$F25=1),Milestone_Markering,\"\")),\"\")","v":""},{"$f":"IFERROR(IF(LEN(Mijlpalen[[#This Row],[Aantal dagen]])=0,\"\",IF(AND(BH$5=$E25,$F25=1),Milestone_Markering,\"\")),\"\")","v":""},{"$f":"IFERROR(IF(LEN(Mijlpalen[[#This Row],[Aantal dagen]])=0,\"\",IF(AND(BI$5=$E25,$F25=1),Milestone_Markering,\"\")),\"\")","v":""},{"$f":"IFERROR(IF(LEN(Mijlpalen[[#This Row],[Aantal dagen]])=0,\"\",IF(AND(BJ$5=$E25,$F25=1),Milestone_Markering,\"\")),\"\")","v":""},{"$f":"IFERROR(IF(LEN(Mijlpalen[[#This Row],[Aantal dagen]])=0,\"\",IF(AND(BK$5=$E25,$F25=1),Milestone_Markering,\"\")),\"\")","v":""}]
[null,"Titel 4",{"$nulls":5},{"$f":"IFERROR(IF(LEN(Mijlpalen[[#This Row],[Aantal dagen]])=0,\"\",IF(AND(H$5=$E26,$F26=1),Milestone_Markering,\"\")),\"\")","v":""},{"$f":"IFERROR(IF(LEN(Mijlpalen[[#This Row],[Aantal dagen]])=0,\"\",IF(AND(I$5=$E26,$F26=1),Milestone_Markering,\"\")),\"\")","v":""},{"$f":"IFERROR(IF(LEN(Mijlpalen[[#This Row],[Aantal dagen]])=0,\"\",IF(AND(J$5=$E26,$F26=1),Milestone_Markering,\"\")),\"\")","v":""},{"$f":"IFERROR(IF(LEN(Mijlpalen[[#This Row],[Aantal dagen]])=0,\"\",IF(AND(K$5=$E26,$F26=1),Milestone_Markering,\"\")),\"\")","v":""},{"$f":"IFERROR(IF(LEN(Mijlpalen[[#This Row],[Aantal dagen]])=0,\"\",IF(AND(L$5=$E26,$F26=1),Milestone_Markering,\"\")),\"\")","v":""},{"$f":"IFERROR(IF(LEN(Mijlpalen[[#This Row],[Aantal dagen]])=0,\"\",IF(AND(M$5=$E26,$F26=1),Milestone_Markering,\"\")),\"\")","v":""},{"$f":"IFERROR(IF(LEN(Mijlpalen[[#This Row],[Aantal dagen]])=0,\"\",IF(AND(N$5=$E26,$F26=1),Milestone_Markering,\"\")),\"\")","v":""},{"$f":"IFERROR(IF(LEN(Mijlpalen[[#This Row],[Aantal dagen]])=0,\"\",IF(AND(O$5=$E26,$F26=1),Milestone_Markering,\"\")),\"\")","v":""},{"$f":"IFERROR(IF(LEN(Mijlpalen[[#This Row],[Aantal dagen]])=0,\"\",IF(AND(P$5=$E26,$F26=1),Milestone_Markering,\"\")),\"\")","v":""},{"$f":"IFERROR(IF(LEN(Mijlpalen[[#This Row],[Aantal dagen]])=0,\"\",IF(AND(Q$5=$E26,$F26=1),Milestone_Markering,\"\")),\"\")","v":""},{"$f":"IFERROR(IF(LEN(Mijlpalen[[#This Row],[Aantal dagen]])=0,\"\",IF(AND(R$5=$E26,$F26=1),Milestone_Markering,\"\")),\"\")","v":""},{"$f":"IFERROR(IF(LEN(Mijlpalen[[#This Row],[Aantal dagen]])=0,\"\",IF(AND(S$5=$E26,$F26=1),Milestone_Markering,\"\")),\"\")","v":""},{"$f":"IFERROR(IF(LEN(Mijlpalen[[#This Row],[Aantal dagen]])=0,\"\",IF(AND(T$5=$E26,$F26=1),Milestone_Markering,\"\")),\"\")","v":""},{"$f":"IFERROR(IF(LEN(Mijlpalen[[#This Row],[Aantal dagen]])=0,\"\",IF(AND(U$5=$E26,$F26=1),Milestone_Markering,\"\")),\"\")","v":""},{"$f":"IFERROR(IF(LEN(Mijlpalen[[#This Row],[Aantal dagen]])=0,\"\",IF(AND(V$5=$E26,$F26=1),Milestone_Markering,\"\")),\"\")","v":""},{"$f":"IFERROR(IF(LEN(Mijlpalen[[#This Row],[Aantal dagen]])=0,\"\",IF(AND(W$5=$E26,$F26=1),Milestone_Markering,\"\")),\"\")","v":""},{"$f":"IFERROR(IF(LEN(Mijlpalen[[#This Row],[Aantal dagen]])=0,\"\",IF(AND(X$5=$E26,$F26=1),Milestone_Markering,\"\")),\"\")","v":""},{"$f":"IFERROR(IF(LEN(Mijlpalen[[#This Row],[Aantal dagen]])=0,\"\",IF(AND(Y$5=$E26,$F26=1),Milestone_Markering,\"\")),\"\")","v":""},{"$f":"IFERROR(IF(LEN(Mijlpalen[[#This Row],[Aantal dagen]])=0,\"\",IF(AND(Z$5=$E26,$F26=1),Milestone_Markering,\"\")),\"\")","v":""},{"$f":"IFERROR(IF(LEN(Mijlpalen[[#This Row],[Aantal dagen]])=0,\"\",IF(AND(AA$5=$E26,$F26=1),Milestone_Markering,\"\")),\"\")","v":""},{"$f":"IFERROR(IF(LEN(Mijlpalen[[#This Row],[Aantal dagen]])=0,\"\",IF(AND(AB$5=$E26,$F26=1),Milestone_Markering,\"\")),\"\")","v":""},{"$f":"IFERROR(IF(LEN(Mijlpalen[[#This Row],[Aantal dagen]])=0,\"\",IF(AND(AC$5=$E26,$F26=1),Milestone_Markering,\"\")),\"\")","v":""},{"$f":"IFERROR(IF(LEN(Mijlpalen[[#This Row],[Aantal dagen]])=0,\"\",IF(AND(AD$5=$E26,$F26=1),Milestone_Markering,\"\")),\"\")","v":""},{"$f":"IFERROR(IF(LEN(Mijlpalen[[#This Row],[Aantal dagen]])=0,\"\",IF(AND(AE$5=$E26,$F26=1),Milestone_Markering,\"\")),\"\")","v":""},{"$f":"IFERROR(IF(LEN(Mijlpalen[[#This Row],[Aantal dagen]])=0,\"\",IF(AND(AF$5=$E26,$F26=1),Milestone_Markering,\"\")),\"\")","v":""},{"$f":"IFERROR(IF(LEN(Mijlpalen[[#This Row],[Aantal dagen]])=0,\"\",IF(AND(AG$5=$E26,$F26=1),Milestone_Markering,\"\")),\"\")","v":""},{"$f":"IFERROR(IF(LEN(Mijlpalen[[#This Row],[Aantal dagen]])=0,\"\",IF(AND(AH$5=$E26,$F26=1),Milestone_Markering,\"\")),\"\")","v":""},{"$f":"IFERROR(IF(LEN(Mijlpalen[[#This Row],[Aantal dagen]])=0,\"\",IF(AND(AI$5=$E26,$F26=1),Milestone_Markering,\"\")),\"\")","v":""},{"$f":"IFERROR(IF(LEN(Mijlpalen[[#This Row],[Aantal dagen]])=0,\"\",IF(AND(AJ$5=$E26,$F26=1),Milestone_Markering,\"\")),\"\")","v":""},{"$f":"IFERROR(IF(LEN(Mijlpalen[[#This Row],[Aantal dagen]])=0,\"\",IF(AND(AK$5=$E26,$F26=1),Milestone_Markering,\"\")),\"\")","v":""},{"$f":"IFERROR(IF(LEN(Mijlpalen[[#This Row],[Aantal dagen]])=0,\"\",IF(AND(AL$5=$E26,$F26=1),Milestone_Markering,\"\")),\"\")","v":""},{"$f":"IFERROR(IF(LEN(Mijlpalen[[#This Row],[Aantal dagen]])=0,\"\",IF(AND(AM$5=$E26,$F26=1),Milestone_Markering,\"\")),\"\")","v":""},{"$f":"IFERROR(IF(LEN(Mijlpalen[[#This Row],[Aantal dagen]])=0,\"\",IF(AND(AN$5=$E26,$F26=1),Milestone_Markering,\"\")),\"\")","v":""},{"$f":"IFERROR(IF(LEN(Mijlpalen[[#This Row],[Aantal dagen]])=0,\"\",IF(AND(AO$5=$E26,$F26=1),Milestone_Markering,\"\")),\"\")","v":""},{"$f":"IFERROR(IF(LEN(Mijlpalen[[#This Row],[Aantal dagen]])=0,\"\",IF(AND(AP$5=$E26,$F26=1),Milestone_Markering,\"\")),\"\")","v":""},{"$f":"IFERROR(IF(LEN(Mijlpalen[[#This Row],[Aantal dagen]])=0,\"\",IF(AND(AQ$5=$E26,$F26=1),Milestone_Markering,\"\")),\"\")","v":""},{"$f":"IFERROR(IF(LEN(Mijlpalen[[#This Row],[Aantal dagen]])=0,\"\",IF(AND(AR$5=$E26,$F26=1),Milestone_Markering,\"\")),\"\")","v":""},{"$f":"IFERROR(IF(LEN(Mijlpalen[[#This Row],[Aantal dagen]])=0,\"\",IF(AND(AS$5=$E26,$F26=1),Milestone_Markering,\"\")),\"\")","v":""},{"$f":"IFERROR(IF(LEN(Mijlpalen[[#This Row],[Aantal dagen]])=0,\"\",IF(AND(AT$5=$E26,$F26=1),Milestone_Markering,\"\")),\"\")","v":""},{"$f":"IFERROR(IF(LEN(Mijlpalen[[#This Row],[Aantal dagen]])=0,\"\",IF(AND(AU$5=$E26,$F26=1),Milestone_Markering,\"\")),\"\")","v":""},{"$f":"IFERROR(IF(LEN(Mijlpalen[[#This Row],[Aantal dagen]])=0,\"\",IF(AND(AV$5=$E26,$F26=1),Milestone_Markering,\"\")),\"\")","v":""},{"$f":"IFERROR(IF(LEN(Mijlpalen[[#This Row],[Aantal dagen]])=0,\"\",IF(AND(AW$5=$E26,$F26=1),Milestone_Markering,\"\")),\"\")","v":""},{"$f":"IFERROR(IF(LEN(Mijlpalen[[#This Row],[Aantal dagen]])=0,\"\",IF(AND(AX$5=$E26,$F26=1),Milestone_Markering,\"\")),\"\")","v":""},{"$f":"IFERROR(IF(LEN(Mijlpalen[[#This Row],[Aantal dagen]])=0,\"\",IF(AND(AY$5=$E26,$F26=1),Milestone_Markering,\"\")),\"\")","v":""},{"$f":"IFERROR(IF(LEN(Mijlpalen[[#This Row],[Aantal dagen]])=0,\"\",IF(AND(AZ$5=$E26,$F26=1),Milestone_Markering,\"\")),\"\")","v":""},{"$f":"IFERROR(IF(LEN(Mijlpalen[[#This Row],[Aantal dagen]])=0,\"\",IF(AND(BA$5=$E26,$F26=1),Milestone_Markering,\"\")),\"\")","v":""},{"$f":"IFERROR(IF(LEN(Mijlpalen[[#This Row],[Aantal dagen]])=0,\"\",IF(AND(BB$5=$E26,$F26=1),Milestone_Markering,\"\")),\"\")","v":""},{"$f":"IFERROR(IF(LEN(Mijlpalen[[#This Row],[Aantal dagen]])=0,\"\",IF(AND(BC$5=$E26,$F26=1),Milestone_Markering,\"\")),\"\")","v":""},{"$f":"IFERROR(IF(LEN(Mijlpalen[[#This Row],[Aantal dagen]])=0,\"\",IF(AND(BD$5=$E26,$F26=1),Milestone_Markering,\"\")),\"\")","v":""},{"$f":"IFERROR(IF(LEN(Mijlpalen[[#This Row],[Aantal dagen]])=0,\"\",IF(AND(BE$5=$E26,$F26=1),Milestone_Markering,\"\")),\"\")","v":""},{"$f":"IFERROR(IF(LEN(Mijlpalen[[#This Row],[Aantal dagen]])=0,\"\",IF(AND(BF$5=$E26,$F26=1),Milestone_Markering,\"\")),\"\")","v":""},{"$f":"IFERROR(IF(LEN(Mijlpalen[[#This Row],[Aantal dagen]])=0,\"\",IF(AND(BG$5=$E26,$F26=1),Milestone_Markering,\"\")),\"\")","v":""},{"$f":"IFERROR(IF(LEN(Mijlpalen[[#This Row],[Aantal dagen]])=0,\"\",IF(AND(BH$5=$E26,$F26=1),Milestone_Markering,\"\")),\"\")","v":""},{"$f":"IFERROR(IF(LEN(Mijlpalen[[#This Row],[Aantal dagen]])=0,\"\",IF(AND(BI$5=$E26,$F26=1),Milestone_Markering,\"\")),\"\")","v":""},{"$f":"IFERROR(IF(LEN(Mijlpalen[[#This Row],[Aantal dagen]])=0,\"\",IF(AND(BJ$5=$E26,$F26=1),Milestone_Markering,\"\")),\"\")","v":""},{"$f":"IFERROR(IF(LEN(Mijlpalen[[#This Row],[Aantal dagen]])=0,\"\",IF(AND(BK$5=$E26,$F26=1),Milestone_Markering,\"\")),\"\")","v":""}]
[null,"Taak 1",null,null,{"$f":"TODAY()+37","v":"2018-10-26"},15,null,{"$f":"IFERROR(IF(LEN(Mijlpalen[[#This Row],[Aantal dagen]])=0,\"\",IF(AND(H$5=$E27,$F27=1),Milestone_Markering,\"\")),\"\")","v":""},{"$f":"IFERROR(IF(LEN(Mijlpalen[[#This Row],[Aantal dagen]])=0,\"\",IF(AND(I$5=$E27,$F27=1),Milestone_Markering,\"\")),\"\")","v":""},{"$f":"IFERROR(IF(LEN(Mijlpalen[[#This Row],[Aantal dagen]])=0,\"\",IF(AND(J$5=$E27,$F27=1),Milestone_Markering,\"\")),\"\")","v":""},{"$f":"IFERROR(IF(LEN(Mijlpalen[[#This Row],[Aantal dagen]])=0,\"\",IF(AND(K$5=$E27,$F27=1),Milestone_Markering,\"\")),\"\")","v":""},{"$f":"IFERROR(IF(LEN(Mijlpalen[[#This Row],[Aantal dagen]])=0,\"\",IF(AND(L$5=$E27,$F27=1),Milestone_Markering,\"\")),\"\")","v":""},{"$f":"IFERROR(IF(LEN(Mijlpalen[[#This Row],[Aantal dagen]])=0,\"\",IF(AND(M$5=$E27,$F27=1),Milestone_Markering,\"\")),\"\")","v":""},{"$f":"IFERROR(IF(LEN(Mijlpalen[[#This Row],[Aantal dagen]])=0,\"\",IF(AND(N$5=$E27,$F27=1),Milestone_Markering,\"\")),\"\")","v":""},{"$f":"IFERROR(IF(LEN(Mijlpalen[[#This Row],[Aantal dagen]])=0,\"\",IF(AND(O$5=$E27,$F27=1),Milestone_Markering,\"\")),\"\")","v":""},{"$f":"IFERROR(IF(LEN(Mijlpalen[[#This Row],[Aantal dagen]])=0,\"\",IF(AND(P$5=$E27,$F27=1),Milestone_Markering,\"\")),\"\")","v":""},{"$f":"IFERROR(IF(LEN(Mijlpalen[[#This Row],[Aantal dagen]])=0,\"\",IF(AND(Q$5=$E27,$F27=1),Milestone_Markering,\"\")),\"\")","v":""},{"$f":"IFERROR(IF(LEN(Mijlpalen[[#This Row],[Aantal dagen]])=0,\"\",IF(AND(R$5=$E27,$F27=1),Milestone_Markering,\"\")),\"\")","v":""},{"$f":"IFERROR(IF(LEN(Mijlpalen[[#This Row],[Aantal dagen]])=0,\"\",IF(AND(S$5=$E27,$F27=1),Milestone_Markering,\"\")),\"\")","v":""},{"$f":"IFERROR(IF(LEN(Mijlpalen[[#This Row],[Aantal dagen]])=0,\"\",IF(AND(T$5=$E27,$F27=1),Milestone_Markering,\"\")),\"\")","v":""},{"$f":"IFERROR(IF(LEN(Mijlpalen[[#This Row],[Aantal dagen]])=0,\"\",IF(AND(U$5=$E27,$F27=1),Milestone_Markering,\"\")),\"\")","v":""},{"$f":"IFERROR(IF(LEN(Mijlpalen[[#This Row],[Aantal dagen]])=0,\"\",IF(AND(V$5=$E27,$F27=1),Milestone_Markering,\"\")),\"\")","v":""},{"$f":"IFERROR(IF(LEN(Mijlpalen[[#This Row],[Aantal dagen]])=0,\"\",IF(AND(W$5=$E27,$F27=1),Milestone_Markering,\"\")),\"\")","v":""},{"$f":"IFERROR(IF(LEN(Mijlpalen[[#This Row],[Aantal dagen]])=0,\"\",IF(AND(X$5=$E27,$F27=1),Milestone_Markering,\"\")),\"\")","v":""},{"$f":"IFERROR(IF(LEN(Mijlpalen[[#This Row],[Aantal dagen]])=0,\"\",IF(AND(Y$5=$E27,$F27=1),Milestone_Markering,\"\")),\"\")","v":""},{"$f":"IFERROR(IF(LEN(Mijlpalen[[#This Row],[Aantal dagen]])=0,\"\",IF(AND(Z$5=$E27,$F27=1),Milestone_Markering,\"\")),\"\")","v":""},{"$f":"IFERROR(IF(LEN(Mijlpalen[[#This Row],[Aantal dagen]])=0,\"\",IF(AND(AA$5=$E27,$F27=1),Milestone_Markering,\"\")),\"\")","v":""},{"$f":"IFERROR(IF(LEN(Mijlpalen[[#This Row],[Aantal dagen]])=0,\"\",IF(AND(AB$5=$E27,$F27=1),Milestone_Markering,\"\")),\"\")","v":""},{"$f":"IFERROR(IF(LEN(Mijlpalen[[#This Row],[Aantal dagen]])=0,\"\",IF(AND(AC$5=$E27,$F27=1),Milestone_Markering,\"\")),\"\")","v":""},{"$f":"IFERROR(IF(LEN(Mijlpalen[[#This Row],[Aantal dagen]])=0,\"\",IF(AND(AD$5=$E27,$F27=1),Milestone_Markering,\"\")),\"\")","v":""},{"$f":"IFERROR(IF(LEN(Mijlpalen[[#This Row],[Aantal dagen]])=0,\"\",IF(AND(AE$5=$E27,$F27=1),Milestone_Markering,\"\")),\"\")","v":""},{"$f":"IFERROR(IF(LEN(Mijlpalen[[#This Row],[Aantal dagen]])=0,\"\",IF(AND(AF$5=$E27,$F27=1),Milestone_Markering,\"\")),\"\")","v":""},{"$f":"IFERROR(IF(LEN(Mijlpalen[[#This Row],[Aantal dagen]])=0,\"\",IF(AND(AG$5=$E27,$F27=1),Milestone_Markering,\"\")),\"\")","v":""},{"$f":"IFERROR(IF(LEN(Mijlpalen[[#This Row],[Aantal dagen]])=0,\"\",IF(AND(AH$5=$E27,$F27=1),Milestone_Markering,\"\")),\"\")","v":""},{"$f":"IFERROR(IF(LEN(Mijlpalen[[#This Row],[Aantal dagen]])=0,\"\",IF(AND(AI$5=$E27,$F27=1),Milestone_Markering,\"\")),\"\")","v":""},{"$f":"IFERROR(IF(LEN(Mijlpalen[[#This Row],[Aantal dagen]])=0,\"\",IF(AND(AJ$5=$E27,$F27=1),Milestone_Markering,\"\")),\"\")","v":""},{"$f":"IFERROR(IF(LEN(Mijlpalen[[#This Row],[Aantal dagen]])=0,\"\",IF(AND(AK$5=$E27,$F27=1),Milestone_Markering,\"\")),\"\")","v":""},{"$f":"IFERROR(IF(LEN(Mijlpalen[[#This Row],[Aantal dagen]])=0,\"\",IF(AND(AL$5=$E27,$F27=1),Milestone_Markering,\"\")),\"\")","v":""},{"$f":"IFERROR(IF(LEN(Mijlpalen[[#This Row],[Aantal dagen]])=0,\"\",IF(AND(AM$5=$E27,$F27=1),Milestone_Markering,\"\")),\"\")","v":""},{"$f":"IFERROR(IF(LEN(Mijlpalen[[#This Row],[Aantal dagen]])=0,\"\",IF(AND(AN$5=$E27,$F27=1),Milestone_Markering,\"\")),\"\")","v":""},{"$f":"IFERROR(IF(LEN(Mijlpalen[[#This Row],[Aantal dagen]])=0,\"\",IF(AND(AO$5=$E27,$F27=1),Milestone_Markering,\"\")),\"\")","v":""},{"$f":"IFERROR(IF(LEN(Mijlpalen[[#This Row],[Aantal dagen]])=0,\"\",IF(AND(AP$5=$E27,$F27=1),Milestone_Markering,\"\")),\"\")","v":""},{"$f":"IFERROR(IF(LEN(Mijlpalen[[#This Row],[Aantal dagen]])=0,\"\",IF(AND(AQ$5=$E27,$F27=1),Milestone_Markering,\"\")),\"\")","v":""},{"$f":"IFERROR(IF(LEN(Mijlpalen[[#This Row],[Aantal dagen]])=0,\"\",IF(AND(AR$5=$E27,$F27=1),Milestone_Markering,\"\")),\"\")","v":""},{"$f":"IFERROR(IF(LEN(Mijlpalen[[#This Row],[Aantal dagen]])=0,\"\",IF(AND(AS$5=$E27,$F27=1),Milestone_Markering,\"\")),\"\")","v":""},{"$f":"IFERROR(IF(LEN(Mijlpalen[[#This Row],[Aantal dagen]])=0,\"\",IF(AND(AT$5=$E27,$F27=1),Milestone_Markering,\"\")),\"\")","v":""},{"$f":"IFERROR(IF(LEN(Mijlpalen[[#This Row],[Aantal dagen]])=0,\"\",IF(AND(AU$5=$E27,$F27=1),Milestone_Markering,\"\")),\"\")","v":""},{"$f":"IFERROR(IF(LEN(Mijlpalen[[#This Row],[Aantal dagen]])=0,\"\",IF(AND(AV$5=$E27,$F27=1),Milestone_Markering,\"\")),\"\")","v":""},{"$f":"IFERROR(IF(LEN(Mijlpalen[[#This Row],[Aantal dagen]])=0,\"\",IF(AND(AW$5=$E27,$F27=1),Milestone_Markering,\"\")),\"\")","v":""},{"$f":"IFERROR(IF(LEN(Mijlpalen[[#This Row],[Aantal dagen]])=0,\"\",IF(AND(AX$5=$E27,$F27=1),Milestone_Markering,\"\")),\"\")","v":""},{"$f":"IFERROR(IF(LEN(Mijlpalen[[#This Row],[Aantal dagen]])=0,\"\",IF(AND(AY$5=$E27,$F27=1),Milestone_Markering,\"\")),\"\")","v":""},{"$f":"IFERROR(IF(LEN(Mijlpalen[[#This Row],[Aantal dagen]])=0,\"\",IF(AND(AZ$5=$E27,$F27=1),Milestone_Markering,\"\")),\"\")","v":""},{"$f":"IFERROR(IF(LEN(Mijlpalen[[#This Row],[Aantal dagen]])=0,\"\",IF(AND(BA$5=$E27,$F27=1),Milestone_Markering,\"\")),\"\")","v":""},{"$f":"IFERROR(IF(LEN(Mijlpalen[[#This Row],[Aantal dagen]])=0,\"\",IF(AND(BB$5=$E27,$F27=1),Milestone_Markering,\"\")),\"\")","v":""},{"$f":"IFERROR(IF(LEN(Mijlpalen[[#This Row],[Aantal dagen]])=0,\"\",IF(AND(BC$5=$E27,$F27=1),Milestone_Markering,\"\")),\"\")","v":""},{"$f":"IFERROR(IF(LEN(Mijlpalen[[#This Row],[Aantal dagen]])=0,\"\",IF(AND(BD$5=$E27,$F27=1),Milestone_Markering,\"\")),\"\")","v":""},{"$f":"IFERROR(IF(LEN(Mijlpalen[[#This Row],[Aantal dagen]])=0,\"\",IF(AND(BE$5=$E27,$F27=1),Milestone_Markering,\"\")),\"\")","v":""},{"$f":"IFERROR(IF(LEN(Mijlpalen[[#This Row],[Aantal dagen]])=0,\"\",IF(AND(BF$5=$E27,$F27=1),Milestone_Markering,\"\")),\"\")","v":""},{"$f":"IFERROR(IF(LEN(Mijlpalen[[#This Row],[Aantal dagen]])=0,\"\",IF(AND(BG$5=$E27,$F27=1),Milestone_Markering,\"\")),\"\")","v":""},{"$f":"IFERROR(IF(LEN(Mijlpalen[[#This Row],[Aantal dagen]])=0,\"\",IF(AND(BH$5=$E27,$F27=1),Milestone_Markering,\"\")),\"\")","v":""},{"$f":"IFERROR(IF(LEN(Mijlpalen[[#This Row],[Aantal dagen]])=0,\"\",IF(AND(BI$5=$E27,$F27=1),Milestone_Markering,\"\")),\"\")","v":""},{"$f":"IFERROR(IF(LEN(Mijlpalen[[#This Row],[Aantal dagen]])=0,\"\",IF(AND(BJ$5=$E27,$F27=1),Milestone_Markering,\"\")),\"\")","v":""},{"$f":"IFERROR(IF(LEN(Mijlpalen[[#This Row],[Aantal dagen]])=0,\"\",IF(AND(BK$5=$E27,$F27=1),Milestone_Markering,\"\")),\"\")","v":""}]
[null,"Taak 2",null,null,{"$f":"TODAY()+29","v":"2018-10-18"},5,null,{"$f":"IFERROR(IF(LEN(Mijlpalen[[#This Row],[Aantal dagen]])=0,\"\",IF(AND(H$5=$E28,$F28=1),Milestone_Markering,\"\")),\"\")","v":""},{"$f":"IFERROR(IF(LEN(Mijlpalen[[#This Row],[Aantal dagen]])=0,\"\",IF(AND(I$5=$E28,$F28=1),Milestone_Markering,\"\")),\"\")","v":""},{"$f":"IFERROR(IF(LEN(Mijlpalen[[#This Row],[Aantal dagen]])=0,\"\",IF(AND(J$5=$E28,$F28=1),Milestone_Markering,\"\")),\"\")","v":""},{"$f":"IFERROR(IF(LEN(Mijlpalen[[#This Row],[Aantal dagen]])=0,\"\",IF(AND(K$5=$E28,$F28=1),Milestone_Markering,\"\")),\"\")","v":""},{"$f":"IFERROR(IF(LEN(Mijlpalen[[#This Row],[Aantal dagen]])=0,\"\",IF(AND(L$5=$E28,$F28=1),Milestone_Markering,\"\")),\"\")","v":""},{"$f":"IFERROR(IF(LEN(Mijlpalen[[#This Row],[Aantal dagen]])=0,\"\",IF(AND(M$5=$E28,$F28=1),Milestone_Markering,\"\")),\"\")","v":""},{"$f":"IFERROR(IF(LEN(Mijlpalen[[#This Row],[Aantal dagen]])=0,\"\",IF(AND(N$5=$E28,$F28=1),Milestone_Markering,\"\")),\"\")","v":""},{"$f":"IFERROR(IF(LEN(Mijlpalen[[#This Row],[Aantal dagen]])=0,\"\",IF(AND(O$5=$E28,$F28=1),Milestone_Markering,\"\")),\"\")","v":""},{"$f":"IFERROR(IF(LEN(Mijlpalen[[#This Row],[Aantal dagen]])=0,\"\",IF(AND(P$5=$E28,$F28=1),Milestone_Markering,\"\")),\"\")","v":""},{"$f":"IFERROR(IF(LEN(Mijlpalen[[#This Row],[Aantal dagen]])=0,\"\",IF(AND(Q$5=$E28,$F28=1),Milestone_Markering,\"\")),\"\")","v":""},{"$f":"IFERROR(IF(LEN(Mijlpalen[[#This Row],[Aantal dagen]])=0,\"\",IF(AND(R$5=$E28,$F28=1),Milestone_Markering,\"\")),\"\")","v":""},{"$f":"IFERROR(IF(LEN(Mijlpalen[[#This Row],[Aantal dagen]])=0,\"\",IF(AND(S$5=$E28,$F28=1),Milestone_Markering,\"\")),\"\")","v":""},{"$f":"IFERROR(IF(LEN(Mijlpalen[[#This Row],[Aantal dagen]])=0,\"\",IF(AND(T$5=$E28,$F28=1),Milestone_Markering,\"\")),\"\")","v":""},{"$f":"IFERROR(IF(LEN(Mijlpalen[[#This Row],[Aantal dagen]])=0,\"\",IF(AND(U$5=$E28,$F28=1),Milestone_Markering,\"\")),\"\")","v":""},{"$f":"IFERROR(IF(LEN(Mijlpalen[[#This Row],[Aantal dagen]])=0,\"\",IF(AND(V$5=$E28,$F28=1),Milestone_Markering,\"\")),\"\")","v":""},{"$f":"IFERROR(IF(LEN(Mijlpalen[[#This Row],[Aantal dagen]])=0,\"\",IF(AND(W$5=$E28,$F28=1),Milestone_Markering,\"\")),\"\")","v":""},{"$f":"IFERROR(IF(LEN(Mijlpalen[[#This Row],[Aantal dagen]])=0,\"\",IF(AND(X$5=$E28,$F28=1),Milestone_Markering,\"\")),\"\")","v":""},{"$f":"IFERROR(IF(LEN(Mijlpalen[[#This Row],[Aantal dagen]])=0,\"\",IF(AND(Y$5=$E28,$F28=1),Milestone_Markering,\"\")),\"\")","v":""},{"$f":"IFERROR(IF(LEN(Mijlpalen[[#This Row],[Aantal dagen]])=0,\"\",IF(AND(Z$5=$E28,$F28=1),Milestone_Markering,\"\")),\"\")","v":""},{"$f":"IFERROR(IF(LEN(Mijlpalen[[#This Row],[Aantal dagen]])=0,\"\",IF(AND(AA$5=$E28,$F28=1),Milestone_Markering,\"\")),\"\")","v":""},{"$f":"IFERROR(IF(LEN(Mijlpalen[[#This Row],[Aantal dagen]])=0,\"\",IF(AND(AB$5=$E28,$F28=1),Milestone_Markering,\"\")),\"\")","v":""},{"$f":"IFERROR(IF(LEN(Mijlpalen[[#This Row],[Aantal dagen]])=0,\"\",IF(AND(AC$5=$E28,$F28=1),Milestone_Markering,\"\")),\"\")","v":""},{"$f":"IFERROR(IF(LEN(Mijlpalen[[#This Row],[Aantal dagen]])=0,\"\",IF(AND(AD$5=$E28,$F28=1),Milestone_Markering,\"\")),\"\")","v":""},{"$f":"IFERROR(IF(LEN(Mijlpalen[[#This Row],[Aantal dagen]])=0,\"\",IF(AND(AE$5=$E28,$F28=1),Milestone_Markering,\"\")),\"\")","v":""},{"$f":"IFERROR(IF(LEN(Mijlpalen[[#This Row],[Aantal dagen]])=0,\"\",IF(AND(AF$5=$E28,$F28=1),Milestone_Markering,\"\")),\"\")","v":""},{"$f":"IFERROR(IF(LEN(Mijlpalen[[#This Row],[Aantal dagen]])=0,\"\",IF(AND(AG$5=$E28,$F28=1),Milestone_Markering,\"\")),\"\")","v":""},{"$f":"IFERROR(IF(LEN(Mijlpalen[[#This Row],[Aantal dagen]])=0,\"\",IF(AND(AH$5=$E28,$F28=1),Milestone_Markering,\"\")),\"\")","v":""},{"$f":"IFERROR(IF(LEN(Mijlpalen[[#This Row],[Aantal dagen]])=0,\"\",IF(AND(AI$5=$E28,$F28=1),Milestone_Markering,\"\")),\"\")","v":""},{"$f":"IFERROR(IF(LEN(Mijlpalen[[#This Row],[Aantal dagen]])=0,\"\",IF(AND(AJ$5=$E28,$F28=1),Milestone_Markering,\"\")),\"\")","v":""},{"$f":"IFERROR(IF(LEN(Mijlpalen[[#This Row],[Aantal dagen]])=0,\"\",IF(AND(AK$5=$E28,$F28=1),Milestone_Markering,\"\")),\"\")","v":""},{"$f":"IFERROR(IF(LEN(Mijlpalen[[#This Row],[Aantal dagen]])=0,\"\",IF(AND(AL$5=$E28,$F28=1),Milestone_Markering,\"\")),\"\")","v":""},{"$f":"IFERROR(IF(LEN(Mijlpalen[[#This Row],[Aantal dagen]])=0,\"\",IF(AND(AM$5=$E28,$F28=1),Milestone_Markering,\"\")),\"\")","v":""},{"$f":"IFERROR(IF(LEN(Mijlpalen[[#This Row],[Aantal dagen]])=0,\"\",IF(AND(AN$5=$E28,$F28=1),Milestone_Markering,\"\")),\"\")","v":""},{"$f":"IFERROR(IF(LEN(Mijlpalen[[#This Row],[Aantal dagen]])=0,\"\",IF(AND(AO$5=$E28,$F28=1),Milestone_Markering,\"\")),\"\")","v":""},{"$f":"IFERROR(IF(LEN(Mijlpalen[[#This Row],[Aantal dagen]])=0,\"\",IF(AND(AP$5=$E28,$F28=1),Milestone_Markering,\"\")),\"\")","v":""},{"$f":"IFERROR(IF(LEN(Mijlpalen[[#This Row],[Aantal dagen]])=0,\"\",IF(AND(AQ$5=$E28,$F28=1),Milestone_Markering,\"\")),\"\")","v":""},{"$f":"IFERROR(IF(LEN(Mijlpalen[[#This Row],[Aantal dagen]])=0,\"\",IF(AND(AR$5=$E28,$F28=1),Milestone_Markering,\"\")),\"\")","v":""},{"$f":"IFERROR(IF(LEN(Mijlpalen[[#This Row],[Aantal dagen]])=0,\"\",IF(AND(AS$5=$E28,$F28=1),Milestone_Markering,\"\")),\"\")","v":""},{"$f":"IFERROR(IF(LEN(Mijlpalen[[#This Row],[Aantal dagen]])=0,\"\",IF(AND(AT$5=$E28,$F28=1),Milestone_Markering,\"\")),\"\")","v":""},{"$f":"IFERROR(IF(LEN(Mijlpalen[[#This Row],[Aantal dagen]])=0,\"\",IF(AND(AU$5=$E28,$F28=1),Milestone_Markering,\"\")),\"\")","v":""},{"$f":"IFERROR(IF(LEN(Mijlpalen[[#This Row],[Aantal dagen]])=0,\"\",IF(AND(AV$5=$E28,$F28=1),Milestone_Markering,\"\")),\"\")","v":""},{"$f":"IFERROR(IF(LEN(Mijlpalen[[#This Row],[Aantal dagen]])=0,\"\",IF(AND(AW$5=$E28,$F28=1),Milestone_Markering,\"\")),\"\")","v":""},{"$f":"IFERROR(IF(LEN(Mijlpalen[[#This Row],[Aantal dagen]])=0,\"\",IF(AND(AX$5=$E28,$F28=1),Milestone_Markering,\"\")),\"\")","v":""},{"$f":"IFERROR(IF(LEN(Mijlpalen[[#This Row],[Aantal dagen]])=0,\"\",IF(AND(AY$5=$E28,$F28=1),Milestone_Markering,\"\")),\"\")","v":""},{"$f":"IFERROR(IF(LEN(Mijlpalen[[#This Row],[Aantal dagen]])=0,\"\",IF(AND(AZ$5=$E28,$F28=1),Milestone_Markering,\"\")),\"\")","v":""},{"$f":"IFERROR(IF(LEN(Mijlpalen[[#This Row],[Aantal dagen]])=0,\"\",IF(AND(BA$5=$E28,$F28=1),Milestone_Markering,\"\")),\"\")","v":""},{"$f":"IFERROR(IF(LEN(Mijlpalen[[#This Row],[Aantal dagen]])=0,\"\",IF(AND(BB$5=$E28,$F28=1),Milestone_Markering,\"\")),\"\")","v":""},{"$f":"IFERROR(IF(LEN(Mijlpalen[[#This Row],[Aantal dagen]])=0,\"\",IF(AND(BC$5=$E28,$F28=1),Milestone_Markering,\"\")),\"\")","v":""},{"$f":"IFERROR(IF(LEN(Mijlpalen[[#This Row],[Aantal dagen]])=0,\"\",IF(AND(BD$5=$E28,$F28=1),Milestone_Markering,\"\")),\"\")","v":""},{"$f":"IFERROR(IF(LEN(Mijlpalen[[#This Row],[Aantal dagen]])=0,\"\",IF(AND(BE$5=$E28,$F28=1),Milestone_Markering,\"\")),\"\")","v":""},{"$f":"IFERROR(IF(LEN(Mijlpalen[[#This Row],[Aantal dagen]])=0,\"\",IF(AND(BF$5=$E28,$F28=1),Milestone_Markering,\"\")),\"\")","v":""},{"$f":"IFERROR(IF(LEN(Mijlpalen[[#This Row],[Aantal dagen]])=0,\"\",IF(AND(BG$5=$E28,$F28=1),Milestone_Markering,\"\")),\"\")","v":""},{"$f":"IFERROR(IF(LEN(Mijlpalen[[#This Row],[Aantal dagen]])=0,\"\",IF(AND(BH$5=$E28,$F28=1),Milestone_Markering,\"\")),\"\")","v":""},{"$f":"IFERROR(IF(LEN(Mijlpalen[[#This Row],[Aantal dagen]])=0,\"\",IF(AND(BI$5=$E28,$F28=1),Milestone_Markering,\"\")),\"\")","v":""},{"$f":"IFERROR(IF(LEN(Mijlpalen[[#This Row],[Aantal dagen]])=0,\"\",IF(AND(BJ$5=$E28,$F28=1),Milestone_Markering,\"\")),\"\")","v":""},{"$f":"IFERROR(IF(LEN(Mijlpalen[[#This Row],[Aantal dagen]])=0,\"\",IF(AND(BK$5=$E28,$F28=1),Milestone_Markering,\"\")),\"\")","v":""}]
[null,"Taak 3",null,null,{"$f":"TODAY()+80","v":"2018-12-08"},5,null,{"$f":"IFERROR(IF(LEN(Mijlpalen[[#This Row],[Aantal dagen]])=0,\"\",IF(AND(H$5=$E29,$F29=1),Milestone_Markering,\"\")),\"\")","v":""},{"$f":"IFERROR(IF(LEN(Mijlpalen[[#This Row],[Aantal dagen]])=0,\"\",IF(AND(I$5=$E29,$F29=1),Milestone_Markering,\"\")),\"\")","v":""},{"$f":"IFERROR(IF(LEN(Mijlpalen[[#This Row],[Aantal dagen]])=0,\"\",IF(AND(J$5=$E29,$F29=1),Milestone_Markering,\"\")),\"\")","v":""},{"$f":"IFERROR(IF(LEN(Mijlpalen[[#This Row],[Aantal dagen]])=0,\"\",IF(AND(K$5=$E29,$F29=1),Milestone_Markering,\"\")),\"\")","v":""},{"$f":"IFERROR(IF(LEN(Mijlpalen[[#This Row],[Aantal dagen]])=0,\"\",IF(AND(L$5=$E29,$F29=1),Milestone_Markering,\"\")),\"\")","v":""},{"$f":"IFERROR(IF(LEN(Mijlpalen[[#This Row],[Aantal dagen]])=0,\"\",IF(AND(M$5=$E29,$F29=1),Milestone_Markering,\"\")),\"\")","v":""},{"$f":"IFERROR(IF(LEN(Mijlpalen[[#This Row],[Aantal dagen]])=0,\"\",IF(AND(N$5=$E29,$F29=1),Milestone_Markering,\"\")),\"\")","v":""},{"$f":"IFERROR(IF(LEN(Mijlpalen[[#This Row],[Aantal dagen]])=0,\"\",IF(AND(O$5=$E29,$F29=1),Milestone_Markering,\"\")),\"\")","v":""},{"$f":"IFERROR(IF(LEN(Mijlpalen[[#This Row],[Aantal dagen]])=0,\"\",IF(AND(P$5=$E29,$F29=1),Milestone_Markering,\"\")),\"\")","v":""},{"$f":"IFERROR(IF(LEN(Mijlpalen[[#This Row],[Aantal dagen]])=0,\"\",IF(AND(Q$5=$E29,$F29=1),Milestone_Markering,\"\")),\"\")","v":""},{"$f":"IFERROR(IF(LEN(Mijlpalen[[#This Row],[Aantal dagen]])=0,\"\",IF(AND(R$5=$E29,$F29=1),Milestone_Markering,\"\")),\"\")","v":""},{"$f":"IFERROR(IF(LEN(Mijlpalen[[#This Row],[Aantal dagen]])=0,\"\",IF(AND(S$5=$E29,$F29=1),Milestone_Markering,\"\")),\"\")","v":""},{"$f":"IFERROR(IF(LEN(Mijlpalen[[#This Row],[Aantal dagen]])=0,\"\",IF(AND(T$5=$E29,$F29=1),Milestone_Markering,\"\")),\"\")","v":""},{"$f":"IFERROR(IF(LEN(Mijlpalen[[#This Row],[Aantal dagen]])=0,\"\",IF(AND(U$5=$E29,$F29=1),Milestone_Markering,\"\")),\"\")","v":""},{"$f":"IFERROR(IF(LEN(Mijlpalen[[#This Row],[Aantal dagen]])=0,\"\",IF(AND(V$5=$E29,$F29=1),Milestone_Markering,\"\")),\"\")","v":""},{"$f":"IFERROR(IF(LEN(Mijlpalen[[#This Row],[Aantal dagen]])=0,\"\",IF(AND(W$5=$E29,$F29=1),Milestone_Markering,\"\")),\"\")","v":""},{"$f":"IFERROR(IF(LEN(Mijlpalen[[#This Row],[Aantal dagen]])=0,\"\",IF(AND(X$5=$E29,$F29=1),Milestone_Markering,\"\")),\"\")","v":""},{"$f":"IFERROR(IF(LEN(Mijlpalen[[#This Row],[Aantal dagen]])=0,\"\",IF(AND(Y$5=$E29,$F29=1),Milestone_Markering,\"\")),\"\")","v":""},{"$f":"IFERROR(IF(LEN(Mijlpalen[[#This Row],[Aantal dagen]])=0,\"\",IF(AND(Z$5=$E29,$F29=1),Milestone_Markering,\"\")),\"\")","v":""},{"$f":"IFERROR(IF(LEN(Mijlpalen[[#This Row],[Aantal dagen]])=0,\"\",IF(AND(AA$5=$E29,$F29=1),Milestone_Markering,\"\")),\"\")","v":""},{"$f":"IFERROR(IF(LEN(Mijlpalen[[#This Row],[Aantal dagen]])=0,\"\",IF(AND(AB$5=$E29,$F29=1),Milestone_Markering,\"\")),\"\")","v":""},{"$f":"IFERROR(IF(LEN(Mijlpalen[[#This Row],[Aantal dagen]])=0,\"\",IF(AND(AC$5=$E29,$F29=1),Milestone_Markering,\"\")),\"\")","v":""},{"$f":"IFERROR(IF(LEN(Mijlpalen[[#This Row],[Aantal dagen]])=0,\"\",IF(AND(AD$5=$E29,$F29=1),Milestone_Markering,\"\")),\"\")","v":""},{"$f":"IFERROR(IF(LEN(Mijlpalen[[#This Row],[Aantal dagen]])=0,\"\",IF(AND(AE$5=$E29,$F29=1),Milestone_Markering,\"\")),\"\")","v":""},{"$f":"IFERROR(IF(LEN(Mijlpalen[[#This Row],[Aantal dagen]])=0,\"\",IF(AND(AF$5=$E29,$F29=1),Milestone_Markering,\"\")),\"\")","v":""},{"$f":"IFERROR(IF(LEN(Mijlpalen[[#This Row],[Aantal dagen]])=0,\"\",IF(AND(AG$5=$E29,$F29=1),Milestone_Markering,\"\")),\"\")","v":""},{"$f":"IFERROR(IF(LEN(Mijlpalen[[#This Row],[Aantal dagen]])=0,\"\",IF(AND(AH$5=$E29,$F29=1),Milestone_Markering,\"\")),\"\")","v":""},{"$f":"IFERROR(IF(LEN(Mijlpalen[[#This Row],[Aantal dagen]])=0,\"\",IF(AND(AI$5=$E29,$F29=1),Milestone_Markering,\"\")),\"\")","v":""},{"$f":"IFERROR(IF(LEN(Mijlpalen[[#This Row],[Aantal dagen]])=0,\"\",IF(AND(AJ$5=$E29,$F29=1),Milestone_Markering,\"\")),\"\")","v":""},{"$f":"IFERROR(IF(LEN(Mijlpalen[[#This Row],[Aantal dagen]])=0,\"\",IF(AND(AK$5=$E29,$F29=1),Milestone_Markering,\"\")),\"\")","v":""},{"$f":"IFERROR(IF(LEN(Mijlpalen[[#This Row],[Aantal dagen]])=0,\"\",IF(AND(AL$5=$E29,$F29=1),Milestone_Markering,\"\")),\"\")","v":""},{"$f":"IFERROR(IF(LEN(Mijlpalen[[#This Row],[Aantal dagen]])=0,\"\",IF(AND(AM$5=$E29,$F29=1),Milestone_Markering,\"\")),\"\")","v":""},{"$f":"IFERROR(IF(LEN(Mijlpalen[[#This Row],[Aantal dagen]])=0,\"\",IF(AND(AN$5=$E29,$F29=1),Milestone_Markering,\"\")),\"\")","v":""},{"$f":"IFERROR(IF(LEN(Mijlpalen[[#This Row],[Aantal dagen]])=0,\"\",IF(AND(AO$5=$E29,$F29=1),Milestone_Markering,\"\")),\"\")","v":""},{"$f":"IFERROR(IF(LEN(Mijlpalen[[#This Row],[Aantal dagen]])=0,\"\",IF(AND(AP$5=$E29,$F29=1),Milestone_Markering,\"\")),\"\")","v":""},{"$f":"IFERROR(IF(LEN(Mijlpalen[[#This Row],[Aantal dagen]])=0,\"\",IF(AND(AQ$5=$E29,$F29=1),Milestone_Markering,\"\")),\"\")","v":""},{"$f":"IFERROR(IF(LEN(Mijlpalen[[#This Row],[Aantal dagen]])=0,\"\",IF(AND(AR$5=$E29,$F29=1),Milestone_Markering,\"\")),\"\")","v":""},{"$f":"IFERROR(IF(LEN(Mijlpalen[[#This Row],[Aantal dagen]])=0,\"\",IF(AND(AS$5=$E29,$F29=1),Milestone_Markering,\"\")),\"\")","v":""},{"$f":"IFERROR(IF(LEN(Mijlpalen[[#This Row],[Aantal dagen]])=0,\"\",IF(AND(AT$5=$E29,$F29=1),Milestone_Markering,\"\")),\"\")","v":""},{"$f":"IFERROR(IF(LEN(Mijlpalen[[#This Row],[Aantal dagen]])=0,\"\",IF(AND(AU$5=$E29,$F29=1),Milestone_Markering,\"\")),\"\")","v":""},{"$f":"IFERROR(IF(LEN(Mijlpalen[[#This Row],[Aantal dagen]])=0,\"\",IF(AND(AV$5=$E29,$F29=1),Milestone_Markering,\"\")),\"\")","v":""},{"$f":"IFERROR(IF(LEN(Mijlpalen[[#This Row],[Aantal dagen]])=0,\"\",IF(AND(AW$5=$E29,$F29=1),Milestone_Markering,\"\")),\"\")","v":""},{"$f":"IFERROR(IF(LEN(Mijlpalen[[#This Row],[Aantal dagen]])=0,\"\",IF(AND(AX$5=$E29,$F29=1),Milestone_Markering,\"\")),\"\")","v":""},{"$f":"IFERROR(IF(LEN(Mijlpalen[[#This Row],[Aantal dagen]])=0,\"\",IF(AND(AY$5=$E29,$F29=1),Milestone_Markering,\"\")),\"\")","v":""},{"$f":"IFERROR(IF(LEN(Mijlpalen[[#This Row],[Aantal dagen]])=0,\"\",IF(AND(AZ$5=$E29,$F29=1),Milestone_Markering,\"\")),\"\")","v":""},{"$f":"IFERROR(IF(LEN(Mijlpalen[[#This Row],[Aantal dagen]])=0,\"\",IF(AND(BA$5=$E29,$F29=1),Milestone_Markering,\"\")),\"\")","v":""},{"$f":"IFERROR(IF(LEN(Mijlpalen[[#This Row],[Aantal dagen]])=0,\"\",IF(AND(BB$5=$E29,$F29=1),Milestone_Markering,\"\")),\"\")","v":""},{"$f":"IFERROR(IF(LEN(Mijlpalen[[#This Row],[Aantal dagen]])=0,\"\",IF(AND(BC$5=$E29,$F29=1),Milestone_Markering,\"\")),\"\")","v":""},{"$f":"IFERROR(IF(LEN(Mijlpalen[[#This Row],[Aantal dagen]])=0,\"\",IF(AND(BD$5=$E29,$F29=1),Milestone_Markering,\"\")),\"\")","v":""},{"$f":"IFERROR(IF(LEN(Mijlpalen[[#This Row],[Aantal dagen]])=0,\"\",IF(AND(BE$5=$E29,$F29=1),Milestone_Markering,\"\")),\"\")","v":""},{"$f":"IFERROR(IF(LEN(Mijlpalen[[#This Row],[Aantal dagen]])=0,\"\",IF(AND(BF$5=$E29,$F29=1),Milestone_Markering,\"\")),\"\")","v":""},{"$f":"IFERROR(IF(LEN(Mijlpalen[[#This Row],[Aantal dagen]])=0,\"\",IF(AND(BG$5=$E29,$F29=1),Milestone_Markering,\"\")),\"\")","v":""},{"$f":"IFERROR(IF(LEN(Mijlpalen[[#This Row],[Aantal dagen]])=0,\"\",IF(AND(BH$5=$E29,$F29=1),Milestone_Markering,\"\")),\"\")","v":""},{"$f":"IFERROR(IF(LEN(Mijlpalen[[#This Row],[Aantal dagen]])=0,\"\",IF(AND(BI$5=$E29,$F29=1),Milestone_Markering,\"\")),\"\")","v":""},{"$f":"IFERROR(IF(LEN(Mijlpalen[[#This Row],[Aantal dagen]])=0,\"\",IF(AND(BJ$5=$E29,$F29=1),Milestone_Markering,\"\")),\"\")","v":""},{"$f":"IFERROR(IF(LEN(Mijlpalen[[#This Row],[Aantal dagen]])=0,\"\",IF(AND(BK$5=$E29,$F29=1),Milestone_Markering,\"\")),\"\")","v":""}]
[null,"Taak 4",{"$nulls":5},{"$f":"IFERROR(IF(LEN(Mijlpalen[[#This Row],[Aantal dagen]])=0,\"\",IF(AND(H$5=$E30,$F30=1),Milestone_Markering,\"\")),\"\")","v":""},{"$f":"IFERROR(IF(LEN(Mijlpalen[[#This Row],[Aantal dagen]])=0,\"\",IF(AND(I$5=$E30,$F30=1),Milestone_Markering,\"\")),\"\")","v":""},{"$f":"IFERROR(IF(LEN(Mijlpalen[[#This Row],[Aantal dagen]])=0,\"\",IF(AND(J$5=$E30,$F30=1),Milestone_Markering,\"\")),\"\")","v":""},{"$f":"IFERROR(IF(LEN(Mijlpalen[[#This Row],[Aantal dagen]])=0,\"\",IF(AND(K$5=$E30,$F30=1),Milestone_Markering,\"\")),\"\")","v":""},{"$f":"IFERROR(IF(LEN(Mijlpalen[[#This Row],[Aantal dagen]])=0,\"\",IF(AND(L$5=$E30,$F30=1),Milestone_Markering,\"\")),\"\")","v":""},{"$f":"IFERROR(IF(LEN(Mijlpalen[[#This Row],[Aantal dagen]])=0,\"\",IF(AND(M$5=$E30,$F30=1),Milestone_Markering,\"\")),\"\")","v":""},{"$f":"IFERROR(IF(LEN(Mijlpalen[[#This Row],[Aantal dagen]])=0,\"\",IF(AND(N$5=$E30,$F30=1),Milestone_Markering,\"\")),\"\")","v":""},{"$f":"IFERROR(IF(LEN(Mijlpalen[[#This Row],[Aantal dagen]])=0,\"\",IF(AND(O$5=$E30,$F30=1),Milestone_Markering,\"\")),\"\")","v":""},{"$f":"IFERROR(IF(LEN(Mijlpalen[[#This Row],[Aantal dagen]])=0,\"\",IF(AND(P$5=$E30,$F30=1),Milestone_Markering,\"\")),\"\")","v":""},{"$f":"IFERROR(IF(LEN(Mijlpalen[[#This Row],[Aantal dagen]])=0,\"\",IF(AND(Q$5=$E30,$F30=1),Milestone_Markering,\"\")),\"\")","v":""},{"$f":"IFERROR(IF(LEN(Mijlpalen[[#This Row],[Aantal dagen]])=0,\"\",IF(AND(R$5=$E30,$F30=1),Milestone_Markering,\"\")),\"\")","v":""},{"$f":"IFERROR(IF(LEN(Mijlpalen[[#This Row],[Aantal dagen]])=0,\"\",IF(AND(S$5=$E30,$F30=1),Milestone_Markering,\"\")),\"\")","v":""},{"$f":"IFERROR(IF(LEN(Mijlpalen[[#This Row],[Aantal dagen]])=0,\"\",IF(AND(T$5=$E30,$F30=1),Milestone_Markering,\"\")),\"\")","v":""},{"$f":"IFERROR(IF(LEN(Mijlpalen[[#This Row],[Aantal dagen]])=0,\"\",IF(AND(U$5=$E30,$F30=1),Milestone_Markering,\"\")),\"\")","v":""},{"$f":"IFERROR(IF(LEN(Mijlpalen[[#This Row],[Aantal dagen]])=0,\"\",IF(AND(V$5=$E30,$F30=1),Milestone_Markering,\"\")),\"\")","v":""},{"$f":"IFERROR(IF(LEN(Mijlpalen[[#This Row],[Aantal dagen]])=0,\"\",IF(AND(W$5=$E30,$F30=1),Milestone_Markering,\"\")),\"\")","v":""},{"$f":"IFERROR(IF(LEN(Mijlpalen[[#This Row],[Aantal dagen]])=0,\"\",IF(AND(X$5=$E30,$F30=1),Milestone_Markering,\"\")),\"\")","v":""},{"$f":"IFERROR(IF(LEN(Mijlpalen[[#This Row],[Aantal dagen]])=0,\"\",IF(AND(Y$5=$E30,$F30=1),Milestone_Markering,\"\")),\"\")","v":""},{"$f":"IFERROR(IF(LEN(Mijlpalen[[#This Row],[Aantal dagen]])=0,\"\",IF(AND(Z$5=$E30,$F30=1),Milestone_Markering,\"\")),\"\")","v":""},{"$f":"IFERROR(IF(LEN(Mijlpalen[[#This Row],[Aantal dagen]])=0,\"\",IF(AND(AA$5=$E30,$F30=1),Milestone_Markering,\"\")),\"\")","v":""},{"$f":"IFERROR(IF(LEN(Mijlpalen[[#This Row],[Aantal dagen]])=0,\"\",IF(AND(AB$5=$E30,$F30=1),Milestone_Markering,\"\")),\"\")","v":""},{"$f":"IFERROR(IF(LEN(Mijlpalen[[#This Row],[Aantal dagen]])=0,\"\",IF(AND(AC$5=$E30,$F30=1),Milestone_Markering,\"\")),\"\")","v":""},{"$f":"IFERROR(IF(LEN(Mijlpalen[[#This Row],[Aantal dagen]])=0,\"\",IF(AND(AD$5=$E30,$F30=1),Milestone_Markering,\"\")),\"\")","v":""},{"$f":"IFERROR(IF(LEN(Mijlpalen[[#This Row],[Aantal dagen]])=0,\"\",IF(AND(AE$5=$E30,$F30=1),Milestone_Markering,\"\")),\"\")","v":""},{"$f":"IFERROR(IF(LEN(Mijlpalen[[#This Row],[Aantal dagen]])=0,\"\",IF(AND(AF$5=$E30,$F30=1),Milestone_Markering,\"\")),\"\")","v":""},{"$f":"IFERROR(IF(LEN(Mijlpalen[[#This Row],[Aantal dagen]])=0,\"\",IF(AND(AG$5=$E30,$F30=1),Milestone_Markering,\"\")),\"\")","v":""},{"$f":"IFERROR(IF(LEN(Mijlpalen[[#This Row],[Aantal dagen]])=0,\"\",IF(AND(AH$5=$E30,$F30=1),Milestone_Markering,\"\")),\"\")","v":""},{"$f":"IFERROR(IF(LEN(Mijlpalen[[#This Row],[Aantal dagen]])=0,\"\",IF(AND(AI$5=$E30,$F30=1),Milestone_Markering,\"\")),\"\")","v":""},{"$f":"IFERROR(IF(LEN(Mijlpalen[[#This Row],[Aantal dagen]])=0,\"\",IF(AND(AJ$5=$E30,$F30=1),Milestone_Markering,\"\")),\"\")","v":""},{"$f":"IFERROR(IF(LEN(Mijlpalen[[#This Row],[Aantal dagen]])=0,\"\",IF(AND(AK$5=$E30,$F30=1),Milestone_Markering,\"\")),\"\")","v":""},{"$f":"IFERROR(IF(LEN(Mijlpalen[[#This Row],[Aantal dagen]])=0,\"\",IF(AND(AL$5=$E30,$F30=1),Milestone_Markering,\"\")),\"\")","v":""},{"$f":"IFERROR(IF(LEN(Mijlpalen[[#This Row],[Aantal dagen]])=0,\"\",IF(AND(AM$5=$E30,$F30=1),Milestone_Markering,\"\")),\"\")","v":""},{"$f":"IFERROR(IF(LEN(Mijlpalen[[#This Row],[Aantal dagen]])=0,\"\",IF(AND(AN$5=$E30,$F30=1),Milestone_Markering,\"\")),\"\")","v":""},{"$f":"IFERROR(IF(LEN(Mijlpalen[[#This Row],[Aantal dagen]])=0,\"\",IF(AND(AO$5=$E30,$F30=1),Milestone_Markering,\"\")),\"\")","v":""},{"$f":"IFERROR(IF(LEN(Mijlpalen[[#This Row],[Aantal dagen]])=0,\"\",IF(AND(AP$5=$E30,$F30=1),Milestone_Markering,\"\")),\"\")","v":""},{"$f":"IFERROR(IF(LEN(Mijlpalen[[#This Row],[Aantal dagen]])=0,\"\",IF(AND(AQ$5=$E30,$F30=1),Milestone_Markering,\"\")),\"\")","v":""},{"$f":"IFERROR(IF(LEN(Mijlpalen[[#This Row],[Aantal dagen]])=0,\"\",IF(AND(AR$5=$E30,$F30=1),Milestone_Markering,\"\")),\"\")","v":""},{"$f":"IFERROR(IF(LEN(Mijlpalen[[#This Row],[Aantal dagen]])=0,\"\",IF(AND(AS$5=$E30,$F30=1),Milestone_Markering,\"\")),\"\")","v":""},{"$f":"IFERROR(IF(LEN(Mijlpalen[[#This Row],[Aantal dagen]])=0,\"\",IF(AND(AT$5=$E30,$F30=1),Milestone_Markering,\"\")),\"\")","v":""},{"$f":"IFERROR(IF(LEN(Mijlpalen[[#This Row],[Aantal dagen]])=0,\"\",IF(AND(AU$5=$E30,$F30=1),Milestone_Markering,\"\")),\"\")","v":""},{"$f":"IFERROR(IF(LEN(Mijlpalen[[#This Row],[Aantal dagen]])=0,\"\",IF(AND(AV$5=$E30,$F30=1),Milestone_Markering,\"\")),\"\")","v":""},{"$f":"IFERROR(IF(LEN(Mijlpalen[[#This Row],[Aantal dagen]])=0,\"\",IF(AND(AW$5=$E30,$F30=1),Milestone_Markering,\"\")),\"\")","v":""},{"$f":"IFERROR(IF(LEN(Mijlpalen[[#This Row],[Aantal dagen]])=0,\"\",IF(AND(AX$5=$E30,$F30=1),Milestone_Markering,\"\")),\"\")","v":""},{"$f":"IFERROR(IF(LEN(Mijlpalen[[#This Row],[Aantal dagen]])=0,\"\",IF(AND(AY$5=$E30,$F30=1),Milestone_Markering,\"\")),\"\")","v":""},{"$f":"IFERROR(IF(LEN(Mijlpalen[[#This Row],[Aantal dagen]])=0,\"\",IF(AND(AZ$5=$E30,$F30=1),Milestone_Markering,\"\")),\"\")","v":""},{"$f":"IFERROR(IF(LEN(Mijlpalen[[#This Row],[Aantal dagen]])=0,\"\",IF(AND(BA$5=$E30,$F30=1),Milestone_Markering,\"\")),\"\")","v":""},{"$f":"IFERROR(IF(LEN(Mijlpalen[[#This Row],[Aantal dagen]])=0,\"\",IF(AND(BB$5=$E30,$F30=1),Milestone_Markering,\"\")),\"\")","v":""},{"$f":"IFERROR(IF(LEN(Mijlpalen[[#This Row],[Aantal dagen]])=0,\"\",IF(AND(BC$5=$E30,$F30=1),Milestone_Markering,\"\")),\"\")","v":""},{"$f":"IFERROR(IF(LEN(Mijlpalen[[#This Row],[Aantal dagen]])=0,\"\",IF(AND(BD$5=$E30,$F30=1),Milestone_Markering,\"\")),\"\")","v":""},{"$f":"IFERROR(IF(LEN(Mijlpalen[[#This Row],[Aantal dagen]])=0,\"\",IF(AND(BE$5=$E30,$F30=1),Milestone_Markering,\"\")),\"\")","v":""},{"$f":"IFERROR(IF(LEN(Mijlpalen[[#This Row],[Aantal dagen]])=0,\"\",IF(AND(BF$5=$E30,$F30=1),Milestone_Markering,\"\")),\"\")","v":""},{"$f":"IFERROR(IF(LEN(Mijlpalen[[#This Row],[Aantal dagen]])=0,\"\",IF(AND(BG$5=$E30,$F30=1),Milestone_Markering,\"\")),\"\")","v":""},{"$f":"IFERROR(IF(LEN(Mijlpalen[[#This Row],[Aantal dagen]])=0,\"\",IF(AND(BH$5=$E30,$F30=1),Milestone_Markering,\"\")),\"\")","v":""},{"$f":"IFERROR(IF(LEN(Mijlpalen[[#This Row],[Aantal dagen]])=0,\"\",IF(AND(BI$5=$E30,$F30=1),Milestone_Markering,\"\")),\"\")","v":""},{"$f":"IFERROR(IF(LEN(Mijlpalen[[#This Row],[Aantal dagen]])=0,\"\",IF(AND(BJ$5=$E30,$F30=1),Milestone_Markering,\"\")),\"\")","v":""},{"$f":"IFERROR(IF(LEN(Mijlpalen[[#This Row],[Aantal dagen]])=0,\"\",IF(AND(BK$5=$E30,$F30=1),Milestone_Markering,\"\")),\"\")","v":""}]
[null,"Taak 5",{"$nulls":5},{"$f":"IFERROR(IF(LEN(Mijlpalen[[#This Row],[Aantal dagen]])=0,\"\",IF(AND(H$5=$E31,$F31=1),Milestone_Markering,\"\")),\"\")","v":""},{"$f":"IFERROR(IF(LEN(Mijlpalen[[#This Row],[Aantal dagen]])=0,\"\",IF(AND(I$5=$E31,$F31=1),Milestone_Markering,\"\")),\"\")","v":""},{"$f":"IFERROR(IF(LEN(Mijlpalen[[#This Row],[Aantal dagen]])=0,\"\",IF(AND(J$5=$E31,$F31=1),Milestone_Markering,\"\")),\"\")","v":""},{"$f":"IFERROR(IF(LEN(Mijlpalen[[#This Row],[Aantal dagen]])=0,\"\",IF(AND(K$5=$E31,$F31=1),Milestone_Markering,\"\")),\"\")","v":""},{"$f":"IFERROR(IF(LEN(Mijlpalen[[#This Row],[Aantal dagen]])=0,\"\",IF(AND(L$5=$E31,$F31=1),Milestone_Markering,\"\")),\"\")","v":""},{"$f":"IFERROR(IF(LEN(Mijlpalen[[#This Row],[Aantal dagen]])=0,\"\",IF(AND(M$5=$E31,$F31=1),Milestone_Markering,\"\")),\"\")","v":""},{"$f":"IFERROR(IF(LEN(Mijlpalen[[#This Row],[Aantal dagen]])=0,\"\",IF(AND(N$5=$E31,$F31=1),Milestone_Markering,\"\")),\"\")","v":""},{"$f":"IFERROR(IF(LEN(Mijlpalen[[#This Row],[Aantal dagen]])=0,\"\",IF(AND(O$5=$E31,$F31=1),Milestone_Markering,\"\")),\"\")","v":""},{"$f":"IFERROR(IF(LEN(Mijlpalen[[#This Row],[Aantal dagen]])=0,\"\",IF(AND(P$5=$E31,$F31=1),Milestone_Markering,\"\")),\"\")","v":""},{"$f":"IFERROR(IF(LEN(Mijlpalen[[#This Row],[Aantal dagen]])=0,\"\",IF(AND(Q$5=$E31,$F31=1),Milestone_Markering,\"\")),\"\")","v":""},{"$f":"IFERROR(IF(LEN(Mijlpalen[[#This Row],[Aantal dagen]])=0,\"\",IF(AND(R$5=$E31,$F31=1),Milestone_Markering,\"\")),\"\")","v":""},{"$f":"IFERROR(IF(LEN(Mijlpalen[[#This Row],[Aantal dagen]])=0,\"\",IF(AND(S$5=$E31,$F31=1),Milestone_Markering,\"\")),\"\")","v":""},{"$f":"IFERROR(IF(LEN(Mijlpalen[[#This Row],[Aantal dagen]])=0,\"\",IF(AND(T$5=$E31,$F31=1),Milestone_Markering,\"\")),\"\")","v":""},{"$f":"IFERROR(IF(LEN(Mijlpalen[[#This Row],[Aantal dagen]])=0,\"\",IF(AND(U$5=$E31,$F31=1),Milestone_Markering,\"\")),\"\")","v":""},{"$f":"IFERROR(IF(LEN(Mijlpalen[[#This Row],[Aantal dagen]])=0,\"\",IF(AND(V$5=$E31,$F31=1),Milestone_Markering,\"\")),\"\")","v":""},{"$f":"IFERROR(IF(LEN(Mijlpalen[[#This Row],[Aantal dagen]])=0,\"\",IF(AND(W$5=$E31,$F31=1),Milestone_Markering,\"\")),\"\")","v":""},{"$f":"IFERROR(IF(LEN(Mijlpalen[[#This Row],[Aantal dagen]])=0,\"\",IF(AND(X$5=$E31,$F31=1),Milestone_Markering,\"\")),\"\")","v":""},{"$f":"IFERROR(IF(LEN(Mijlpalen[[#This Row],[Aantal dagen]])=0,\"\",IF(AND(Y$5=$E31,$F31=1),Milestone_Markering,\"\")),\"\")","v":""},{"$f":"IFERROR(IF(LEN(Mijlpalen[[#This Row],[Aantal dagen]])=0,\"\",IF(AND(Z$5=$E31,$F31=1),Milestone_Markering,\"\")),\"\")","v":""},{"$f":"IFERROR(IF(LEN(Mijlpalen[[#This Row],[Aantal dagen]])=0,\"\",IF(AND(AA$5=$E31,$F31=1),Milestone_Markering,\"\")),\"\")","v":""},{"$f":"IFERROR(IF(LEN(Mijlpalen[[#This Row],[Aantal dagen]])=0,\"\",IF(AND(AB$5=$E31,$F31=1),Milestone_Markering,\"\")),\"\")","v":""},{"$f":"IFERROR(IF(LEN(Mijlpalen[[#This Row],[Aantal dagen]])=0,\"\",IF(AND(AC$5=$E31,$F31=1),Milestone_Markering,\"\")),\"\")","v":""},{"$f":"IFERROR(IF(LEN(Mijlpalen[[#This Row],[Aantal dagen]])=0,\"\",IF(AND(AD$5=$E31,$F31=1),Milestone_Markering,\"\")),\"\")","v":""},{"$f":"IFERROR(IF(LEN(Mijlpalen[[#This Row],[Aantal dagen]])=0,\"\",IF(AND(AE$5=$E31,$F31=1),Milestone_Markering,\"\")),\"\")","v":""},{"$f":"IFERROR(IF(LEN(Mijlpalen[[#This Row],[Aantal dagen]])=0,\"\",IF(AND(AF$5=$E31,$F31=1),Milestone_Markering,\"\")),\"\")","v":""},{"$f":"IFERROR(IF(LEN(Mijlpalen[[#This Row],[Aantal dagen]])=0,\"\",IF(AND(AG$5=$E31,$F31=1),Milestone_Markering,\"\")),\"\")","v":""},{"$f":"IFERROR(IF(LEN(Mijlpalen[[#This Row],[Aantal dagen]])=0,\"\",IF(AND(AH$5=$E31,$F31=1),Milestone_Markering,\"\")),\"\")","v":""},{"$f":"IFERROR(IF(LEN(Mijlpalen[[#This Row],[Aantal dagen]])=0,\"\",IF(AND(AI$5=$E31,$F31=1),Milestone_Markering,\"\")),\"\")","v":""},{"$f":"IFERROR(IF(LEN(Mijlpalen[[#This Row],[Aantal dagen]])=0,\"\",IF(AND(AJ$5=$E31,$F31=1),Milestone_Markering,\"\")),\"\")","v":""},{"$f":"IFERROR(IF(LEN(Mijlpalen[[#This Row],[Aantal dagen]])=0,\"\",IF(AND(AK$5=$E31,$F31=1),Milestone_Markering,\"\")),\"\")","v":""},{"$f":"IFERROR(IF(LEN(Mijlpalen[[#This Row],[Aantal dagen]])=0,\"\",IF(AND(AL$5=$E31,$F31=1),Milestone_Markering,\"\")),\"\")","v":""},{"$f":"IFERROR(IF(LEN(Mijlpalen[[#This Row],[Aantal dagen]])=0,\"\",IF(AND(AM$5=$E31,$F31=1),Milestone_Markering,\"\")),\"\")","v":""},{"$f":"IFERROR(IF(LEN(Mijlpalen[[#This Row],[Aantal dagen]])=0,\"\",IF(AND(AN$5=$E31,$F31=1),Milestone_Markering,\"\")),\"\")","v":""},{"$f":"IFERROR(IF(LEN(Mijlpalen[[#This Row],[Aantal dagen]])=0,\"\",IF(AND(AO$5=$E31,$F31=1),Milestone_Markering,\"\")),\"\")","v":""},{"$f":"IFERROR(IF(LEN(Mijlpalen[[#This Row],[Aantal dagen]])=0,\"\",IF(AND(AP$5=$E31,$F31=1),Milestone_Markering,\"\")),\"\")","v":""},{"$f":"IFERROR(IF(LEN(Mijlpalen[[#This Row],[Aantal dagen]])=0,\"\",IF(AND(AQ$5=$E31,$F31=1),Milestone_Markering,\"\")),\"\")","v":""},{"$f":"IFERROR(IF(LEN(Mijlpalen[[#This Row],[Aantal dagen]])=0,\"\",IF(AND(AR$5=$E31,$F31=1),Milestone_Markering,\"\")),\"\")","v":""},{"$f":"IFERROR(IF(LEN(Mijlpalen[[#This Row],[Aantal dagen]])=0,\"\",IF(AND(AS$5=$E31,$F31=1),Milestone_Markering,\"\")),\"\")","v":""},{"$f":"IFERROR(IF(LEN(Mijlpalen[[#This Row],[Aantal dagen]])=0,\"\",IF(AND(AT$5=$E31,$F31=1),Milestone_Markering,\"\")),\"\")","v":""},{"$f":"IFERROR(IF(LEN(Mijlpalen[[#This Row],[Aantal dagen]])=0,\"\",IF(AND(AU$5=$E31,$F31=1),Milestone_Markering,\"\")),\"\")","v":""},{"$f":"IFERROR(IF(LEN(Mijlpalen[[#This Row],[Aantal dagen]])=0,\"\",IF(AND(AV$5=$E31,$F31=1),Milestone_Markering,\"\")),\"\")","v":""},{"$f":"IFERROR(IF(LEN(Mijlpalen[[#This Row],[Aantal dagen]])=0,\"\",IF(AND(AW$5=$E31,$F31=1),Milestone_Markering,\"\")),\"\")","v":""},{"$f":"IFERROR(IF(LEN(Mijlpalen[[#This Row],[Aantal dagen]])=0,\"\",IF(AND(AX$5=$E31,$F31=1),Milestone_Markering,\"\")),\"\")","v":""},{"$f":"IFERROR(IF(LEN(Mijlpalen[[#This Row],[Aantal dagen]])=0,\"\",IF(AND(AY$5=$E31,$F31=1),Milestone_Markering,\"\")),\"\")","v":""},{"$f":"IFERROR(IF(LEN(Mijlpalen[[#This Row],[Aantal dagen]])=0,\"\",IF(AND(AZ$5=$E31,$F31=1),Milestone_Markering,\"\")),\"\")","v":""},{"$f":"IFERROR(IF(LEN(Mijlpalen[[#This Row],[Aantal dagen]])=0,\"\",IF(AND(BA$5=$E31,$F31=1),Milestone_Markering,\"\")),\"\")","v":""},{"$f":"IFERROR(IF(LEN(Mijlpalen[[#This Row],[Aantal dagen]])=0,\"\",IF(AND(BB$5=$E31,$F31=1),Milestone_Markering,\"\")),\"\")","v":""},{"$f":"IFERROR(IF(LEN(Mijlpalen[[#This Row],[Aantal dagen]])=0,\"\",IF(AND(BC$5=$E31,$F31=1),Milestone_Markering,\"\")),\"\")","v":""},{"$f":"IFERROR(IF(LEN(Mijlpalen[[#This Row],[Aantal dagen]])=0,\"\",IF(AND(BD$5=$E31,$F31=1),Milestone_Markering,\"\")),\"\")","v":""},{"$f":"IFERROR(IF(LEN(Mijlpalen[[#This Row],[Aantal dagen]])=0,\"\",IF(AND(BE$5=$E31,$F31=1),Milestone_Markering,\"\")),\"\")","v":""},{"$f":"IFERROR(IF(LEN(Mijlpalen[[#This Row],[Aantal dagen]])=0,\"\",IF(AND(BF$5=$E31,$F31=1),Milestone_Markering,\"\")),\"\")","v":""},{"$f":"IFERROR(IF(LEN(Mijlpalen[[#This Row],[Aantal dagen]])=0,\"\",IF(AND(BG$5=$E31,$F31=1),Milestone_Markering,\"\")),\"\")","v":""},{"$f":"IFERROR(IF(LEN(Mijlpalen[[#This Row],[Aantal dagen]])=0,\"\",IF(AND(BH$5=$E31,$F31=1),Milestone_Markering,\"\")),\"\")","v":""},{"$f":"IFERROR(IF(LEN(Mijlpalen[[#This Row],[Aantal dagen]])=0,\"\",IF(AND(BI$5=$E31,$F31=1),Milestone_Markering,\"\")),\"\")","v":""},{"$f":"IFERROR(IF(LEN(Mijlpalen[[#This Row],[Aantal dagen]])=0,\"\",IF(AND(BJ$5=$E31,$F31=1),Milestone_Markering,\"\")),\"\")","v":""},{"$f":"IFERROR(IF(LEN(Mijlpalen[[#This Row],[Aantal dagen]])=0,\"\",IF(AND(BK$5=$E31,$F31=1),Milestone_Markering,\"\")),\"\")","v":""}]
["Dit is een lege rij",{"$nulls":6},{"$f":"IFERROR(IF(LEN(Mijlpalen[[#This Row],[Aantal dagen]])=0,\"\",IF(AND(H$5=$E32,$F32=1),Milestone_Markering,\"\")),\"\")","v":""},{"$f":"IFERROR(IF(LEN(Mijlpalen[[#This Row],[Aantal dagen]])=0,\"\",IF(AND(I$5=$E32,$F32=1),Milestone_Markering,\"\")),\"\")","v":""},{"$f":"IFERROR(IF(LEN(Mijlpalen[[#This Row],[Aantal dagen]])=0,\"\",IF(AND(J$5=$E32,$F32=1),Milestone_Markering,\"\")),\"\")","v":""},{"$f":"IFERROR(IF(LEN(Mijlpalen[[#This Row],[Aantal dagen]])=0,\"\",IF(AND(K$5=$E32,$F32=1),Milestone_Markering,\"\")),\"\")","v":""},{"$f":"IFERROR(IF(LEN(Mijlpalen[[#This Row],[Aantal dagen]])=0,\"\",IF(AND(L$5=$E32,$F32=1),Milestone_Markering,\"\")),\"\")","v":""},{"$f":"IFERROR(IF(LEN(Mijlpalen[[#This Row],[Aantal dagen]])=0,\"\",IF(AND(M$5=$E32,$F32=1),Milestone_Markering,\"\")),\"\")","v":""},{"$f":"IFERROR(IF(LEN(Mijlpalen[[#This Row],[Aantal dagen]])=0,\"\",IF(AND(N$5=$E32,$F32=1),Milestone_Markering,\"\")),\"\")","v":""},{"$f":"IFERROR(IF(LEN(Mijlpalen[[#This Row],[Aantal dagen]])=0,\"\",IF(AND(O$5=$E32,$F32=1),Milestone_Markering,\"\")),\"\")","v":""},{"$f":"IFERROR(IF(LEN(Mijlpalen[[#This Row],[Aantal dagen]])=0,\"\",IF(AND(P$5=$E32,$F32=1),Milestone_Markering,\"\")),\"\")","v":""},{"$f":"IFERROR(IF(LEN(Mijlpalen[[#This Row],[Aantal dagen]])=0,\"\",IF(AND(Q$5=$E32,$F32=1),Milestone_Markering,\"\")),\"\")","v":""},{"$f":"IFERROR(IF(LEN(Mijlpalen[[#This Row],[Aantal dagen]])=0,\"\",IF(AND(R$5=$E32,$F32=1),Milestone_Markering,\"\")),\"\")","v":""},{"$f":"IFERROR(IF(LEN(Mijlpalen[[#This Row],[Aantal dagen]])=0,\"\",IF(AND(S$5=$E32,$F32=1),Milestone_Markering,\"\")),\"\")","v":""},{"$f":"IFERROR(IF(LEN(Mijlpalen[[#This Row],[Aantal dagen]])=0,\"\",IF(AND(T$5=$E32,$F32=1),Milestone_Markering,\"\")),\"\")","v":""},{"$f":"IFERROR(IF(LEN(Mijlpalen[[#This Row],[Aantal dagen]])=0,\"\",IF(AND(U$5=$E32,$F32=1),Milestone_Markering,\"\")),\"\")","v":""},{"$f":"IFERROR(IF(LEN(Mijlpalen[[#This Row],[Aantal dagen]])=0,\"\",IF(AND(V$5=$E32,$F32=1),Milestone_Markering,\"\")),\"\")","v":""},{"$f":"IFERROR(IF(LEN(Mijlpalen[[#This Row],[Aantal dagen]])=0,\"\",IF(AND(W$5=$E32,$F32=1),Milestone_Markering,\"\")),\"\")","v":""},{"$f":"IFERROR(IF(LEN(Mijlpalen[[#This Row],[Aantal dagen]])=0,\"\",IF(AND(X$5=$E32,$F32=1),Milestone_Markering,\"\")),\"\")","v":""},{"$f":"IFERROR(IF(LEN(Mijlpalen[[#This Row],[Aantal dagen]])=0,\"\",IF(AND(Y$5=$E32,$F32=1),Milestone_Markering,\"\")),\"\")","v":""},{"$f":"IFERROR(IF(LEN(Mijlpalen[[#This Row],[Aantal dagen]])=0,\"\",IF(AND(Z$5=$E32,$F32=1),Milestone_Markering,\"\")),\"\")","v":""},{"$f":"IFERROR(IF(LEN(Mijlpalen[[#This Row],[Aantal dagen]])=0,\"\",IF(AND(AA$5=$E32,$F32=1),Milestone_Markering,\"\")),\"\")","v":""},{"$f":"IFERROR(IF(LEN(Mijlpalen[[#This Row],[Aantal dagen]])=0,\"\",IF(AND(AB$5=$E32,$F32=1),Milestone_Markering,\"\")),\"\")","v":""},{"$f":"IFERROR(IF(LEN(Mijlpalen[[#This Row],[Aantal dagen]])=0,\"\",IF(AND(AC$5=$E32,$F32=1),Milestone_Markering,\"\")),\"\")","v":""},{"$f":"IFERROR(IF(LEN(Mijlpalen[[#This Row],[Aantal dagen]])=0,\"\",IF(AND(AD$5=$E32,$F32=1),Milestone_Markering,\"\")),\"\")","v":""},{"$f":"IFERROR(IF(LEN(Mijlpalen[[#This Row],[Aantal dagen]])=0,\"\",IF(AND(AE$5=$E32,$F32=1),Milestone_Markering,\"\")),\"\")","v":""},{"$f":"IFERROR(IF(LEN(Mijlpalen[[#This Row],[Aantal dagen]])=0,\"\",IF(AND(AF$5=$E32,$F32=1),Milestone_Markering,\"\")),\"\")","v":""},{"$f":"IFERROR(IF(LEN(Mijlpalen[[#This Row],[Aantal dagen]])=0,\"\",IF(AND(AG$5=$E32,$F32=1),Milestone_Markering,\"\")),\"\")","v":""},{"$f":"IFERROR(IF(LEN(Mijlpalen[[#This Row],[Aantal dagen]])=0,\"\",IF(AND(AH$5=$E32,$F32=1),Milestone_Markering,\"\")),\"\")","v":""},{"$f":"IFERROR(IF(LEN(Mijlpalen[[#This Row],[Aantal dagen]])=0,\"\",IF(AND(AI$5=$E32,$F32=1),Milestone_Markering,\"\")),\"\")","v":""},{"$f":"IFERROR(IF(LEN(Mijlpalen[[#This Row],[Aantal dagen]])=0,\"\",IF(AND(AJ$5=$E32,$F32=1),Milestone_Markering,\"\")),\"\")","v":""},{"$f":"IFERROR(IF(LEN(Mijlpalen[[#This Row],[Aantal dagen]])=0,\"\",IF(AND(AK$5=$E32,$F32=1),Milestone_Markering,\"\")),\"\")","v":""},{"$f":"IFERROR(IF(LEN(Mijlpalen[[#This Row],[Aantal dagen]])=0,\"\",IF(AND(AL$5=$E32,$F32=1),Milestone_Markering,\"\")),\"\")","v":""},{"$f":"IFERROR(IF(LEN(Mijlpalen[[#This Row],[Aantal dagen]])=0,\"\",IF(AND(AM$5=$E32,$F32=1),Milestone_Markering,\"\")),\"\")","v":""},{"$f":"IFERROR(IF(LEN(Mijlpalen[[#This Row],[Aantal dagen]])=0,\"\",IF(AND(AN$5=$E32,$F32=1),Milestone_Markering,\"\")),\"\")","v":""},{"$f":"IFERROR(IF(LEN(Mijlpalen[[#This Row],[Aantal dagen]])=0,\"\",IF(AND(AO$5=$E32,$F32=1),Milestone_Markering,\"\")),\"\")","v":""},{"$f":"IFERROR(IF(LEN(Mijlpalen[[#This Row],[Aantal dagen]])=0,\"\",IF(AND(AP$5=$E32,$F32=1),Milestone_Markering,\"\")),\"\")","v":""},{"$f":"IFERROR(IF(LEN(Mijlpalen[[#This Row],[Aantal dagen]])=0,\"\",IF(AND(AQ$5=$E32,$F32=1),Milestone_Markering,\"\")),\"\")","v":""},{"$f":"IFERROR(IF(LEN(Mijlpalen[[#This Row],[Aantal dagen]])=0,\"\",IF(AND(AR$5=$E32,$F32=1),Milestone_Markering,\"\")),\"\")","v":""},{"$f":"IFERROR(IF(LEN(Mijlpalen[[#This Row],[Aantal dagen]])=0,\"\",IF(AND(AS$5=$E32,$F32=1),Milestone_Markering,\"\")),\"\")","v":""},{"$f":"IFERROR(IF(LEN(Mijlpalen[[#This Row],[Aantal dagen]])=0,\"\",IF(AND(AT$5=$E32,$F32=1),Milestone_Markering,\"\")),\"\")","v":""},{"$f":"IFERROR(IF(LEN(Mijlpalen[[#This Row],[Aantal dagen]])=0,\"\",IF(AND(AU$5=$E32,$F32=1),Milestone_Markering,\"\")),\"\")","v":""},{"$f":"IFERROR(IF(LEN(Mijlpalen[[#This Row],[Aantal dagen]])=0,\"\",IF(AND(AV$5=$E32,$F32=1),Milestone_Markering,\"\")),\"\")","v":""},{"$f":"IFERROR(IF(LEN(Mijlpalen[[#This Row],[Aantal dagen]])=0,\"\",IF(AND(AW$5=$E32,$F32=1),Milestone_Markering,\"\")),\"\")","v":""},{"$f":"IFERROR(IF(LEN(Mijlpalen[[#This Row],[Aantal dagen]])=0,\"\",IF(AND(AX$5=$E32,$F32=1),Milestone_Markering,\"\")),\"\")","v":""},{"$f":"IFERROR(IF(LEN(Mijlpalen[[#This Row],[Aantal dagen]])=0,\"\",IF(AND(AY$5=$E32,$F32=1),Milestone_Markering,\"\")),\"\")","v":""},{"$f":"IFERROR(IF(LEN(Mijlpalen[[#This Row],[Aantal dagen]])=0,\"\",IF(AND(AZ$5=$E32,$F32=1),Milestone_Markering,\"\")),\"\")","v":""},{"$f":"IFERROR(IF(LEN(Mijlpalen[[#This Row],[Aantal dagen]])=0,\"\",IF(AND(BA$5=$E32,$F32=1),Milestone_Markering,\"\")),\"\")","v":""},{"$f":"IFERROR(IF(LEN(Mijlpalen[[#This Row],[Aantal dagen]])=0,\"\",IF(AND(BB$5=$E32,$F32=1),Milestone_Markering,\"\")),\"\")","v":""},{"$f":"IFERROR(IF(LEN(Mijlpalen[[#This Row],[Aantal dagen]])=0,\"\",IF(AND(BC$5=$E32,$F32=1),Milestone_Markering,\"\")),\"\")","v":""},{"$f":"IFERROR(IF(LEN(Mijlpalen[[#This Row],[Aantal dagen]])=0,\"\",IF(AND(BD$5=$E32,$F32=1),Milestone_Markering,\"\")),\"\")","v":""},{"$f":"IFERROR(IF(LEN(Mijlpalen[[#This Row],[Aantal dagen]])=0,\"\",IF(AND(BE$5=$E32,$F32=1),Milestone_Markering,\"\")),\"\")","v":""},{"$f":"IFERROR(IF(LEN(Mijlpalen[[#This Row],[Aantal dagen]])=0,\"\",IF(AND(BF$5=$E32,$F32=1),Milestone_Markering,\"\")),\"\")","v":""},{"$f":"IFERROR(IF(LEN(Mijlpalen[[#This Row],[Aantal dagen]])=0,\"\",IF(AND(BG$5=$E32,$F32=1),Milestone_Markering,\"\")),\"\")","v":""},{"$f":"IFERROR(IF(LEN(Mijlpalen[[#This Row],[Aantal dagen]])=0,\"\",IF(AND(BH$5=$E32,$F32=1),Milestone_Markering,\"\")),\"\")","v":""},{"$f":"IFERROR(IF(LEN(Mijlpalen[[#This Row],[Aantal dagen]])=0,\"\",IF(AND(BI$5=$E32,$F32=1),Milestone_Markering,\"\")),\"\")","v":""},{"$f":"IFERROR(IF(LEN(Mijlpalen[[#This Row],[Aantal dagen]])=0,\"\",IF(AND(BJ$5=$E32,$F32=1),Milestone_Markering,\"\")),\"\")","v":""},{"$f":"IFERROR(IF(LEN(Mijlpalen[[#This Row],[Aantal dagen]])=0,\"\",IF(AND(BK$5=$E32,$F32=1),Milestone_Markering,\"\")),\"\")","v":""}]
["Deze rij markeert het eind van de Gantt-mijlpaalgegevens. Voer NIETS in deze rij in. \nAls u nog meer items wilt toevoegen, voegt u boven deze rij nieuwe rijen in.","Als u nog meer gegevens wilt toevoegen, voegt u BOVEN deze rij nieuwe rijen in"]

{"sheet":"Over","index":1,"n_rows":4,"n_cols":1,"rows_kept":4}
["Over deze sjabloon"]
["Deze sjabloon biedt een eenvoudige manier om een Gantt-diagram te maken voor het visualiseren en bijhouden van uw project. Typ gewoon uw taakbeschrijving, de voortgang als een percentage van taakvoltooiing, een begindatum en het aantal dagen om de taak te voltooien. Het Gantt-diagram wordt automatisch bijgewerkt. Met de schuifbalk kunt u door de tijdlijn scrollen. Voeg nieuwe taken in door nieuwe rijen in te voegen.\n\nPas het uiterlijk van het diagram aan door de voorwaardelijke opmaak te wijzigen. \n\nDatums tot aan de huidige dag zijn gearceerd in de tijdlijn.\n"]
["Gids voor schermlezers"]
["Deze werkmap bevat twee werkbladen. \n\nGantt-diagram\nOver\n\nDe instructies voor elk werkblad staan in kolom A, beginnend in cel A1 van elk werkblad. Ze zijn geschreven met verborgen tekst. Elke stap leidt u door de informatie in die rij. Elke volgende stap gaat verder in cel A2, A3 enzovoort, tenzij uitdrukkelijk anderszins vermeld, bijvoorbeeld wanneer de instructietekst voor de volgende stap is: Ga naar cel A6. \n\nDeze verborgen tekst wordt niet afgedrukt.\n\nAls u deze instructies van het werkblad wilt verwijderen, verwijdert u gewoon kolom A."]